{"text_format":"3","workbook":"xlsx","n_sheets":5,"sheets":["START","BERÄKNADE UTGIFTER","FAKTISKA UTGIFTER","UTGIFTSAVVIKELSER","UTGIFTSANALYS"],"not_rendered":{"charts":2,"images":4,"defined_names":1},"read":"whole","date_system":"1900"}

{"sheet":"START","index":0,"n_rows":8,"n_cols":2,"rows_kept":8}
[null,"OM DEN HÄR MALLEN"]
[null,"Använd arbetsboken Utgiftsbudget för företag för att spåra beräknade utgifter, faktiska utgifter och avvikelser."]
[null,"Fyll i företagets namn och lägg till logotypen."]
[null,"Ange information i tabellerna i kalkylbladet Beräknade utgifter och Faktiska utgifter."]
[null,"Tabellerna uppdateras automatiskt i kalkylbladet Utgiftsavvikelser och diagrammen i kalkylbladet Utgiftsanalys"]
[null,"Obs! "]
[null,"Ytterligare anvisningar finns i kolumn A i varje kalkylblad. Den här texten har avsiktligt dolts. Om du vill ta bort texten markerar du kolumn A och väljer sedan TA BORT. Om du vill att texten ska visas markerar du kolumn A och ändrar sedan teckenfärg."]
[null,"Om du vill veta mer om tabeller trycker du på SKIFT och sedan på F10 i en tabell, väljer alternativet TABELL och sedan ALTERNATIVTEXT"]

{"sheet":"BERÄKNADE UTGIFTER","index":1,"n_rows":37,"n_cols":16,"rows_kept":37,"merged":[[1,10,1,12],[2,10,2,12],[3,17,12,19]]}
[{"$nulls":15}," "]
[null,"Företagsnamn",{"$nulls":8},"Detaljerade utgiftsberäkningar"]
[{"$nulls":10},"Skuggade celler är beräkningar."]
[null,"BERÄKNADE UTGIFTER","JAN","FEB","MAR","APR","MAJ","JUN","JUL","AUG","SEPT","OKT","NOV","DEC","ÅR"]
[null,"Kostnader för anställda","Jan","Feb","Mar","Apr","Maj","Jun","Jul","Aug","Sep","Okt","Nov","Dec","ÅR"]
[null,"Lön",{"v":85000,"d":"85,000.00 kr"},{"v":85000,"d":"85,000.00 kr"},{"v":85000,"d":"85,000.00 kr"},{"v":87500,"d":"87,500.00 kr"},{"v":87500,"d":"87,500.00 kr"},{"v":87500,"d":"87,500.00 kr"},{"v":87500,"d":"87,500.00 kr"},{"v":92400,"d":"92,400.00 kr"},{"v":92400,"d":"92,400.00 kr"},{"v":92400,"d":"92,400.00 kr"},{"v":92400,"d":"92,400.00 kr"},{"v":92400,"d":"92,400.00 kr"},{"$f":"SUM(C6:N6)","v":{"v":1067000,"d":"1,067,000.00 kr"}}]
[null,"Förmåner",{"$f":"C6*0.27","v":{"v":22950,"d":"22,950.00 kr"}},{"v":22950,"d":"22,950.00 kr"},{"v":22950,"d":"22,950.00 kr"},{"v":23625,"d":"23,625.00 kr"},{"v":23625,"d":"23,625.00 kr"},{"v":23625,"d":"23,625.00 kr"},{"v":23625,"d":"23,625.00 kr"},{"v":24948,"d":"24,948.00 kr"},{"v":24948,"d":"24,948.00 kr"},{"v":24948,"d":"24,948.00 kr"},{"v":24948,"d":"24,948.00 kr"},{"v":24948,"d":"24,948.00 kr"},{"$f":"SUM(C7:N7)","v":{"v":288090,"d":"288,090.00 kr"}}]
[null,"Delsumma",{"$f":"SUBTOTAL(109,PlaneradeAnställda[Jan])","v":{"v":107950,"d":"107,950.00 kr"}},{"$f":"SUBTOTAL(109,PlaneradeAnställda[Feb])","v":{"v":107950,"d":"107,950.00 kr"}},{"$f":"SUBTOTAL(109,PlaneradeAnställda[Mar])","v":{"v":107950,"d":"107,950.00 kr"}},{"$f":"SUBTOTAL(109,PlaneradeAnställda[Apr])","v":{"v":111125,"d":"111,125.00 kr"}},{"$f":"SUBTOTAL(109,PlaneradeAnställda[Maj])","v":{"v":111125,"d":"111,125.00 kr"}},{"$f":"SUBTOTAL(109,PlaneradeAnställda[Jun])","v":{"v":111125,"d":"111,125.00 kr"}},{"$f":"SUBTOTAL(109,PlaneradeAnställda[Jul])","v":{"v":111125,"d":"111,125.00 kr"}},{"$f":"SUBTOTAL(109,PlaneradeAnställda[Aug])","v":{"v":117348,"d":"117,348.00 kr"}},{"$f":"SUBTOTAL(109,PlaneradeAnställda[Sep])","v":{"v":117348,"d":"117,348.00 kr"}},{"$f":"SUBTOTAL(109,PlaneradeAnställda[Okt])","v":{"v":117348,"d":"117,348.00 kr"}},{"$f":"SUBTOTAL(109,PlaneradeAnställda[Nov])","v":{"v":117348,"d":"117,348.00 kr"}},{"$f":"SUBTOTAL(109,PlaneradeAnställda[Dec])","v":{"v":117348,"d":"117,348.00 kr"}},{"$f":"SUBTOTAL(109,PlaneradeAnställda[ÅR])","v":{"v":1355090,"d":"1,355,090.00 kr"}}]
[]
[null,"Kontorskostnader","Jan","Feb","Mar","Apr","Maj","Jun","Jul","Aug","Sep","Okt","Nov","Dec","ÅR"]
[null,"Kontorshyra",{"v":9800,"d":"9,800.00 kr"},{"v":9800,"d":"9,800.00 kr"},{"v":9800,"d":"9,800.00 kr"},{"v":9800,"d":"9,800.00 kr"},{"v":9800,"d":"9,800.00 kr"},{"v":9800,"d":"9,800.00 kr"},{"v":9800,"d":"9,800.00 kr"},{"v":9800,"d":"9,800.00 kr"},{"v":9800,"d":"9,800.00 kr"},{"v":9800,"d":"9,800.00 kr"},{"v":9800,"d":"9,800.00 kr"},{"v":9800,"d":"9,800.00 kr"},{"$f":"SUM(C11:N11)","v":{"v":117600,"d":"117,600.00 kr"}}]
[null,"Gas",null,{"v":400,"d":"400.00 kr"},{"v":400,"d":"400.00 kr"},{"v":100,"d":"100.00 kr"},{"v":100,"d":"100.00 kr"},{"v":100,"d":"100.00 kr"},{"v":100,"d":"100.00 kr"},{"v":100,"d":"100.00 kr"},{"v":100,"d":"100.00 kr"},{"v":100,"d":"100.00 kr"},{"v":400,"d":"400.00 kr"},{"v":400,"d":"400.00 kr"},{"v":2300,"d":"2,300.00 kr"}]
[null,"El",{"v":300,"d":"300.00 kr"},{"v":300,"d":"300.00 kr"},{"v":300,"d":"300.00 kr"},{"v":300,"d":"300.00 kr"},{"v":300,"d":"300.00 kr"},{"v":300,"d":"300.00 kr"},{"v":300,"d":"300.00 kr"},{"v":300,"d":"300.00 kr"},{"v":300,"d":"300.00 kr"},{"v":300,"d":"300.00 kr"},{"v":300,"d":"300.00 kr"},{"v":300,"d":"300.00 kr"},{"v":3600,"d":"3,600.00 kr"}]
[null,"Vatten",{"v":40,"d":"40.00 kr"},{"v":40,"d":"40.00 kr"},{"v":40,"d":"40.00 kr"},{"v":40,"d":"40.00 kr"},{"v":40,"d":"40.00 kr"},{"v":40,"d":"40.00 kr"},{"v":40,"d":"40.00 kr"},{"v":40,"d":"40.00 kr"},{"v":40,"d":"40.00 kr"},{"v":40,"d":"40.00 kr"},{"v":40,"d":"40.00 kr"},{"v":40,"d":"40.00 kr"},{"v":480,"d":"480.00 kr"}]
[null,"Telefon",{"v":250,"d":"250.00 kr"},{"v":250,"d":"250.00 kr"},{"v":250,"d":"250.00 kr"},{"v":250,"d":"250.00 kr"},{"v":250,"d":"250.00 kr"},{"v":250,"d":"250.00 kr"},{"v":250,"d":"250.00 kr"},{"v":250,"d":"250.00 kr"},{"v":250,"d":"250.00 kr"},{"v":250,"d":"250.00 kr"},{"v":250,"d":"250.00 kr"},{"v":250,"d":"250.00 kr"},{"v":3000,"d":"3,000.00 kr"}]
[null,"Internetåtkomst",{"v":180,"d":"180.00 kr"},{"v":180,"d":"180.00 kr"},{"v":180,"d":"180.00 kr"},{"v":180,"d":"180.00 kr"},{"v":180,"d":"180.00 kr"},{"v":180,"d":"180.00 kr"},{"v":180,"d":"180.00 kr"},{"v":180,"d":"180.00 kr"},{"v":180,"d":"180.00 kr"},{"v":180,"d":"180.00 kr"},{"v":180,"d":"180.00 kr"},{"v":180,"d":"180.00 kr"},{"v":2160,"d":"2,160.00 kr"}]
[null,"Kontorsmaterial",{"v":200,"d":"200.00 kr"},{"v":200,"d":"200.00 kr"},{"v":200,"d":"200.00 kr"},{"v":200,"d":"200.00 kr"},{"v":200,"d":"200.00 kr"},{"v":200,"d":"200.00 kr"},{"v":200,"d":"200.00 kr"},{"v":200,"d":"200.00 kr"},{"v":200,"d":"200.00 kr"},{"v":200,"d":"200.00 kr"},{"v":200,"d":"200.00 kr"},{"v":200,"d":"200.00 kr"},{"v":2400,"d":"2,400.00 kr"}]
[null,"Säkerhet",{"v":600,"d":"600.00 kr"},{"v":600,"d":"600.00 kr"},{"v":600,"d":"600.00 kr"},{"v":600,"d":"600.00 kr"},{"v":600,"d":"600.00 kr"},{"v":600,"d":"600.00 kr"},{"v":600,"d":"600.00 kr"},{"v":600,"d":"600.00 kr"},{"v":600,"d":"600.00 kr"},{"v":600,"d":"600.00 kr"},{"v":600,"d":"600.00 kr"},{"v":600,"d":"600.00 kr"},{"v":7200,"d":"7,200.00 kr"}]
[null,"Delsumma",{"$f":"SUBTOTAL(109,KontorsPlan[Jan])","v":{"v":11370,"d":"11,370.00 kr"}},{"$f":"SUBTOTAL(109,KontorsPlan[Feb])","v":{"v":11770,"d":"11,770.00 kr"}},{"$f":"SUBTOTAL(109,KontorsPlan[Mar])","v":{"v":11770,"d":"11,770.00 kr"}},{"$f":"SUBTOTAL(109,KontorsPlan[Apr])","v":{"v":11470,"d":"11,470.00 kr"}},{"$f":"SUBTOTAL(109,KontorsPlan[Maj])","v":{"v":11470,"d":"11,470.00 kr"}},{"$f":"SUBTOTAL(109,KontorsPlan[Jun])","v":{"v":11470,"d":"11,470.00 kr"}},{"$f":"SUBTOTAL(109,KontorsPlan[Jul])","v":{"v":11470,"d":"11,470.00 kr"}},{"$f":"SUBTOTAL(109,KontorsPlan[Aug])","v":{"v":11470,"d":"11,470.00 kr"}},{"$f":"SUBTOTAL(109,KontorsPlan[Sep])","v":{"v":11470,"d":"11,470.00 kr"}},{"$f":"SUBTOTAL(109,KontorsPlan[Okt])","v":{"v":11470,"d":"11,470.00 kr"}},{"$f":"SUBTOTAL(109,KontorsPlan[Nov])","v":{"v":11770,"d":"11,770.00 kr"}},{"$f":"SUBTOTAL(109,KontorsPlan[Dec])","v":{"v":11770,"d":"11,770.00 kr"}},{"$f":"SUBTOTAL(109,KontorsPlan[ÅR])","v":{"v":138740,"d":"138,740.00 kr"}}]
[]
[null,"Marknadsföringskostnader","Jan","Feb","Mar","Apr","Maj","Jun","Jul","Aug","Sep","Okt","Nov","Dec","ÅR"]
[null,"Webbplatsvärd",{"v":500,"d":"500.00 kr"},{"v":500,"d":"500.00 kr"},{"v":500,"d":"500.00 kr"},{"v":500,"d":"500.00 kr"},{"v":500,"d":"500.00 kr"},{"v":500,"d":"500.00 kr"},{"v":500,"d":"500.00 kr"},{"v":500,"d":"500.00 kr"},{"v":500,"d":"500.00 kr"},{"v":500,"d":"500.00 kr"},{"v":500,"d":"500.00 kr"},{"v":500,"d":"500.00 kr"},{"$f":"SUM(C22:N22)","v":{"v":6000,"d":"6,000.00 kr"}}]
[null,"Webbplatsuppdateringar",{"v":200,"d":"200.00 kr"},{"v":200,"d":"200.00 kr"},{"v":200,"d":"200.00 kr"},{"v":200,"d":"200.00 kr"},{"v":200,"d":"200.00 kr"},{"v":1000,"d":"1,000.00 kr"},{"v":200,"d":"200.00 kr"},{"v":200,"d":"200.00 kr"},{"v":200,"d":"200.00 kr"},{"v":200,"d":"200.00 kr"},{"v":200,"d":"200.00 kr"},{"v":1000,"d":"1,000.00 kr"},{"v":4000,"d":"4,000.00 kr"}]
[null,"Kollateral förberedelse",{"v":5000,"d":"5,000.00 kr"},{"v":0,"d":"0.00 kr"},{"v":0,"d":"0.00 kr"},{"v":5000,"d":"5,000.00 kr"},{"v":0,"d":"0.00 kr"},{"v":0,"d":"0.00 kr"},{"v":5000,"d":"5,000.00 kr"},{"v":0,"d":"0.00 kr"},{"v":0,"d":"0.00 kr"},{"v":5000,"d":"5,000.00 kr"},{"v":0,"d":"0.00 kr"},{"v":0,"d":"0.00 kr"},{"v":20000,"d":"20,000.00 kr"}]
[null,"Kollateral utskrift",{"v":200,"d":"200.00 kr"},{"v":200,"d":"200.00 kr"},{"v":200,"d":"200.00 kr"},{"v":200,"d":"200.00 kr"},{"v":200,"d":"200.00 kr"},{"v":200,"d":"200.00 kr"},{"v":200,"d":"200.00 kr"},{"v":200,"d":"200.00 kr"},{"v":200,"d":"200.00 kr"},{"v":200,"d":"200.00 kr"},{"v":200,"d":"200.00 kr"},{"v":200,"d":"200.00 kr"},{"v":2400,"d":"2,400.00 kr"}]
[null,"Marknadsföringshändelser",{"v":2000,"d":"2,000.00 kr"},{"v":2000,"d":"2,000.00 kr"},{"v":2000,"d":"2,000.00 kr"},{"v":5000,"d":"5,000.00 kr"},{"v":2000,"d":"2,000.00 kr"},{"v":2000,"d":"2,000.00 kr"},{"v":2000,"d":"2,000.00 kr"},{"v":5000,"d":"5,000.00 kr"},{"v":2000,"d":"2,000.00 kr"},{"v":2000,"d":"2,000.00 kr"},{"v":2000,"d":"2,000.00 kr"},{"v":5000,"d":"5,000.00 kr"},{"v":33000,"d":"33,000.00 kr"}]
[null,"Diverse utgifter",{"v":200,"d":"200.00 kr"},{"v":200,"d":"200.00 kr"},{"v":200,"d":"200.00 kr"},{"v":200,"d":"200.00 kr"},{"v":200,"d":"200.00 kr"},{"v":200,"d":"200.00 kr"},{"v":200,"d":"200.00 kr"},{"v":200,"d":"200.00 kr"},{"v":200,"d":"200.00 kr"},{"v":200,"d":"200.00 kr"},{"v":200,"d":"200.00 kr"},{"v":200,"d":"200.00 kr"},{"v":2400,"d":"2,400.00 kr"}]
[null,"Delsumma",{"$f":"SUBTOTAL(109,PlaneradeMarknadsföring[Jan])","v":{"v":8100,"d":"8,100.00 kr"}},{"$f":"SUBTOTAL(109,PlaneradeMarknadsföring[Feb])","v":{"v":3100,"d":"3,100.00 kr"}},{"$f":"SUBTOTAL(109,PlaneradeMarknadsföring[Mar])","v":{"v":3100,"d":"3,100.00 kr"}},{"$f":"SUBTOTAL(109,PlaneradeMarknadsföring[Apr])","v":{"v":11100,"d":"11,100.00 kr"}},{"$f":"SUBTOTAL(109,PlaneradeMarknadsföring[Maj])","v":{"v":3100,"d":"3,100.00 kr"}},{"$f":"SUBTOTAL(109,PlaneradeMarknadsföring[Jun])","v":{"v":3900,"d":"3,900.00 kr"}},{"$f":"SUBTOTAL(109,PlaneradeMarknadsföring[Jul])","v":{"v":8100,"d":"8,100.00 kr"}},{"$f":"SUBTOTAL(109,PlaneradeMarknadsföring[Aug])","v":{"v":6100,"d":"6,100.00 kr"}},{"$f":"SUBTOTAL(109,PlaneradeMarknadsföring[Sep])","v":{"v":3100,"d":"3,100.00 kr"}},{"$f":"SUBTOTAL(109,PlaneradeMarknadsföring[Okt])","v":{"v":8100,"d":"8,100.00 kr"}},{"$f":"SUBTOTAL(109,PlaneradeMarknadsföring[Nov])","v":{"v":3100,"d":"3,100.00 kr"}},{"$f":"SUBTOTAL(109,PlaneradeMarknadsföring[Dec])","v":{"v":6900,"d":"6,900.00 kr"}},{"$f":"SUBTOTAL(109,PlaneradeMarknadsföring[ÅR])","v":{"v":67800,"d":"67,800.00 kr"}}]
[]
[null,"Utbildning/resor","Jan","Feb","Mar","Apr","Maj","Jun","Jul","Aug","Sep","Okt","Nov","Dec","ÅR"]
[null,"Utbildning, kurser",{"v":2000,"d":"2,000.00 kr"},{"v":2000,"d":"2,000.00 kr"},{"v":2000,"d":"2,000.00 kr"},{"v":2000,"d":"2,000.00 kr"},{"v":2000,"d":"2,000.00 kr"},{"v":2000,"d":"2,000.00 kr"},{"v":2000,"d":"2,000.00 kr"},{"v":2000,"d":"2,000.00 kr"},{"v":2000,"d":"2,000.00 kr"},{"v":2000,"d":"2,000.00 kr"},{"v":2000,"d":"2,000.00 kr"},{"v":2000,"d":"2,000.00 kr"},{"$f":"SUM(C31:N31)","v":{"v":24000,"d":"24,000.00 kr"}}]
[null,"Utbildningsrelaterade resekostnader",{"v":2000,"d":"2,000.00 kr"},{"v":2000,"d":"2,000.00 kr"},{"v":2000,"d":"2,000.00 kr"},{"v":2000,"d":"2,000.00 kr"},{"v":2000,"d":"2,000.00 kr"},{"v":2000,"d":"2,000.00 kr"},{"v":2000,"d":"2,000.00 kr"},{"v":2000,"d":"2,000.00 kr"},{"v":2000,"d":"2,000.00 kr"},{"v":2000,"d":"2,000.00 kr"},{"v":2000,"d":"2,000.00 kr"},{"v":2000,"d":"2,000.00 kr"},{"$f":"SUM(C32:N32)","v":{"v":24000,"d":"24,000.00 kr"}}]
[null,"Delsumma",{"$f":"SUBTOTAL(109,PlaneradeUtbildningOchResor[Jan])","v":{"v":4000,"d":"4,000.00 kr"}},{"$f":"SUBTOTAL(109,PlaneradeUtbildningOchResor[Feb])","v":{"v":4000,"d":"4,000.00 kr"}},{"$f":"SUBTOTAL(109,PlaneradeUtbildningOchResor[Mar])","v":{"v":4000,"d":"4,000.00 kr"}},{"$f":"SUBTOTAL(109,PlaneradeUtbildningOchResor[Apr])","v":{"v":4000,"d":"4,000.00 kr"}},{"$f":"SUBTOTAL(109,PlaneradeUtbildningOchResor[Maj])","v":{"v":4000,"d":"4,000.00 kr"}},{"$f":"SUBTOTAL(109,PlaneradeUtbildningOchResor[Jun])","v":{"v":4000,"d":"4,000.00 kr"}},{"$f":"SUBTOTAL(109,PlaneradeUtbildningOchResor[Jul])","v":{"v":4000,"d":"4,000.00 kr"}},{"$f":"SUBTOTAL(109,PlaneradeUtbildningOchResor[Aug])","v":{"v":4000,"d":"4,000.00 kr"}},{"$f":"SUBTOTAL(109,PlaneradeUtbildningOchResor[Sep])","v":{"v":4000,"d":"4,000.00 kr"}},{"$f":"SUBTOTAL(109,PlaneradeUtbildningOchResor[Okt])","v":{"v":4000,"d":"4,000.00 kr"}},{"$f":"SUBTOTAL(109,PlaneradeUtbildningOchResor[Nov])","v":{"v":4000,"d":"4,000.00 kr"}},{"$f":"SUBTOTAL(109,PlaneradeUtbildningOchResor[Dec])","v":{"v":4000,"d":"4,000.00 kr"}},{"$f":"SUBTOTAL(109,PlaneradeUtbildningOchResor[ÅR])","v":{"v":48000,"d":"48,000.00 kr"}}]
[]
[null,"TOTALSUMMOR","Jan","Feb","Mar","Apr","Maj","Jun","Jul","Aug","Sep","Okt","Nov","Dec","År"]
[null,"Beräknade månadsutgifter",{"$f":"PlaneradeUtbildningOchResor[[#Totals],[Jan]]+PlaneradeMarknadsföring[[#Totals],[Jan]]+KontorsPlan[[#Totals],[Jan]]+PlaneradeAnställda[[#Totals],[Jan]]","v":{"v":131420,"d":"131,420.00 kr"}},{"$f":"PlaneradeUtbildningOchResor[[#Totals],[Feb]]+PlaneradeMarknadsföring[[#Totals],[Feb]]+KontorsPlan[[#Totals],[Feb]]+PlaneradeAnställda[[#Totals],[Feb]]","v":{"v":126820,"d":"126,820.00 kr"}},{"$f":"PlaneradeUtbildningOchResor[[#Totals],[Mar]]+PlaneradeMarknadsföring[[#Totals],[Mar]]+KontorsPlan[[#Totals],[Mar]]+PlaneradeAnställda[[#Totals],[Mar]]","v":{"v":126820,"d":"126,820.00 kr"}},{"$f":"PlaneradeUtbildningOchResor[[#Totals],[Apr]]+PlaneradeMarknadsföring[[#Totals],[Apr]]+KontorsPlan[[#Totals],[Apr]]+PlaneradeAnställda[[#Totals],[Apr]]","v":{"v":137695,"d":"137,695.00 kr"}},{"$f":"PlaneradeUtbildningOchResor[[#Totals],[Maj]]+PlaneradeMarknadsföring[[#Totals],[Maj]]+KontorsPlan[[#Totals],[Maj]]+PlaneradeAnställda[[#Totals],[Maj]]","v":{"v":129695,"d":"129,695.00 kr"}},{"$f":"PlaneradeUtbildningOchResor[[#Totals],[Jun]]+PlaneradeMarknadsföring[[#Totals],[Jun]]+KontorsPlan[[#Totals],[Jun]]+PlaneradeAnställda[[#Totals],[Jun]]","v":{"v":130495,"d":"130,495.00 kr"}},{"$f":"PlaneradeUtbildningOchResor[[#Totals],[Jul]]+PlaneradeMarknadsföring[[#Totals],[Jul]]+KontorsPlan[[#Totals],[Jul]]+PlaneradeAnställda[[#Totals],[Jul]]","v":{"v":134695,"d":"134,695.00 kr"}},{"$f":"PlaneradeUtbildningOchResor[[#Totals],[Aug]]+PlaneradeMarknadsföring[[#Totals],[Aug]]+KontorsPlan[[#Totals],[Aug]]+PlaneradeAnställda[[#Totals],[Aug]]","v":{"v":138918,"d":"138,918.00 kr"}},{"$f":"PlaneradeUtbildningOchResor[[#Totals],[Sep]]+PlaneradeMarknadsföring[[#Totals],[Sep]]+KontorsPlan[[#Totals],[Sep]]+PlaneradeAnställda[[#Totals],[Sep]]","v":{"v":135918,"d":"135,918.00 kr"}},{"$f":"PlaneradeUtbildningOchResor[[#Totals],[Okt]]+PlaneradeMarknadsföring[[#Totals],[Okt]]+KontorsPlan[[#Totals],[Okt]]+PlaneradeAnställda[[#Totals],[Okt]]","v":{"v":140918,"d":"140,918.00 kr"}},{"$f":"PlaneradeUtbildningOchResor[[#Totals],[Nov]]+PlaneradeMarknadsföring[[#Totals],[Nov]]+KontorsPlan[[#Totals],[Nov]]+PlaneradeAnställda[[#Totals],[Nov]]","v":{"v":136218,"d":"136,218.00 kr"}},{"$f":"PlaneradeUtbildningOchResor[[#Totals],[Dec]]+PlaneradeMarknadsföring[[#Totals],[Dec]]+KontorsPlan[[#Totals],[Dec]]+PlaneradeAnställda[[#Totals],[Dec]]","v":{"v":140018,"d":"140,018.00 kr"}},{"$f":"PlaneradeUtbildningOchResor[[#Totals],[ÅR]]+PlaneradeMarknadsföring[[#Totals],[ÅR]]+KontorsPlan[[#Totals],[ÅR]]+PlaneradeAnställda[[#Totals],[ÅR]]","v":{"v":1609630,"d":"1,609,630.00 kr"}}]
[null,"SUMMA beräknade utgifter",{"$f":"SUM($C$36:C36)","v":{"v":131420,"d":"131,420.00 kr"}},{"$f":"SUM($C$36:D36)","v":{"v":258240,"d":"258,240.00 kr"}},{"$f":"SUM($C$36:E36)","v":{"v":385060,"d":"385,060.00 kr"}},{"$f":"SUM($C$36:F36)","v":{"v":522755,"d":"522,755.00 kr"}},{"$f":"SUM($C$36:G36)","v":{"v":652450,"d":"652,450.00 kr"}},{"$f":"SUM($C$36:H36)","v":{"v":782945,"d":"782,945.00 kr"}},{"$f":"SUM($C$36:I36)","v":{"v":917640,"d":"917,640.00 kr"}},{"$f":"SUM($C$36:J36)","v":{"v":1056558,"d":"1,056,558.00 kr"}},{"$f":"SUM($C$36:K36)","v":{"v":1192476,"d":"1,192,476.00 kr"}},{"$f":"SUM($C$36:L36)","v":{"v":1333394,"d":"1,333,394.00 kr"}},{"$f":"SUM($C$36:M36)","v":{"v":1469612,"d":"1,469,612.00 kr"}},{"$f":"SUM($C$36:N36)","v":{"v":1609630,"d":"1,609,630.00 kr"}}]

{"sheet":"FAKTISKA UTGIFTER","index":2,"n_rows":37,"n_cols":16,"rows_kept":37,"merged":[[1,10,1,12],[2,10,2,12]]}
[{"$nulls":15}," "]
[null,{"$f":"'BERÄKNADE UTGIFTER'!B2:D3","v":"Företagsnamn"},{"$nulls":8},{"$f":"worksheet_title","v":"Detaljerade utgiftsberäkningar"}]
[{"$nulls":10},"Skuggade celler är beräkningar."]
[null,"FAKTISKA UTGIFTER","JAN","FEB","MAR","APR","MAJ","JUN","JUL","AUG","SEPT","OKT","NOV","DEC","ÅR"]
[null,"Kostnader för anställda","Jan","Feb","Mar","Apr","Maj","Jun","Jul","Aug","Sep","Okt","Nov","Dec","ÅR"]
[null,"Lön",{"v":85000,"d":"85,000.00 kr"},{"v":85000,"d":"85,000.00 kr"},{"v":85000,"d":"85,000.00 kr"},{"v":88000,"d":"88,000.00 kr"},{"v":88000,"d":"88,000.00 kr"},{"v":88000,"d":"88,000.00 kr"},{"$nulls":6},{"$f":"SUM(C6:N6)","v":{"v":519000,"d":"519,000.00 kr"}}]
[null,"Förmåner",{"$f":"C6*0.27","v":{"v":22950,"d":"22,950.00 kr"}},{"v":22950,"d":"22,950.00 kr"},{"v":22950,"d":"22,950.00 kr"},{"v":23760,"d":"23,760.00 kr"},{"v":23760,"d":"23,760.00 kr"},{"v":23760,"d":"23,760.00 kr"},{"v":0,"d":"0.00 kr"},{"v":0,"d":"0.00 kr"},{"v":0,"d":"0.00 kr"},{"v":0,"d":"0.00 kr"},{"v":0,"d":"0.00 kr"},{"v":0,"d":"0.00 kr"},{"$f":"SUM(C7:N7)","v":{"v":140130,"d":"140,130.00 kr"}}]
[null,"Delsumma",{"$f":"SUBTOTAL(109,FaktiskaAnställda[Jan])","v":{"v":107950,"d":"107,950.00 kr"}},{"$f":"SUBTOTAL(109,FaktiskaAnställda[Feb])","v":{"v":107950,"d":"107,950.00 kr"}},{"$f":"SUBTOTAL(109,FaktiskaAnställda[Mar])","v":{"v":107950,"d":"107,950.00 kr"}},{"$f":"SUBTOTAL(109,FaktiskaAnställda[Apr])","v":{"v":111760,"d":"111,760.00 kr"}},{"$f":"SUBTOTAL(109,FaktiskaAnställda[Maj])","v":{"v":111760,"d":"111,760.00 kr"}},{"$f":"SUBTOTAL(109,FaktiskaAnställda[Jun])","v":{"v":111760,"d":"111,760.00 kr"}},{"$f":"SUBTOTAL(109,FaktiskaAnställda[Jul])","v":{"v":0,"d":"0.00 kr"}},{"$f":"SUBTOTAL(109,FaktiskaAnställda[Aug])","v":{"v":0,"d":"0.00 kr"}},{"$f":"SUBTOTAL(109,FaktiskaAnställda[Sep])","v":{"v":0,"d":"0.00 kr"}},{"$f":"SUBTOTAL(109,FaktiskaAnställda[Okt])","v":{"v":0,"d":"0.00 kr"}},{"$f":"SUBTOTAL(109,FaktiskaAnställda[Nov])","v":{"v":0,"d":"0.00 kr"}},{"$f":"SUBTOTAL(109,FaktiskaAnställda[Dec])","v":{"v":0,"d":"0.00 kr"}},{"$f":"SUBTOTAL(109,FaktiskaAnställda[ÅR])","v":{"v":659130,"d":"659,130.00 kr"}}]
[]
[null,"Kontorskostnader","Jan","Feb","Mar","Apr","Maj","Jun","Jul","Aug","Sep","Okt","Nov","Dec","ÅR"]
[null,"Kontorshyra",{"v":9800,"d":"9,800.00 kr"},{"v":9800,"d":"9,800.00 kr"},{"v":9800,"d":"9,800.00 kr"},{"v":9800,"d":"9,800.00 kr"},{"v":9800,"d":"9,800.00 kr"},{"v":9800,"d":"9,800.00 kr"},{"$nulls":6},{"$f":"SUM(C11:N11)","v":{"v":58800,"d":"58,800.00 kr"}}]
[null,"Gas",{"v":4,"d":"4.00 kr"},{"v":430,"d":"430.00 kr"},{"v":385,"d":"385.00 kr"},{"v":230,"d":"230.00 kr"},{"v":87,"d":"87.00 kr"},{"v":88,"d":"88.00 kr"},{"$nulls":6},{"v":1224,"d":"1,224.00 kr"}]
[null,"El",{"v":288,"d":"288.00 kr"},{"v":278,"d":"278.00 kr"},{"v":268,"d":"268.00 kr"},{"v":299,"d":"299.00 kr"},{"v":306,"d":"306.00 kr"},{"v":290,"d":"290.00 kr"},{"$nulls":6},{"v":1729,"d":"1,729.00 kr"}]
[null,"Vatten",{"v":35,"d":"35.00 kr"},{"v":33,"d":"33.00 kr"},{"v":34,"d":"34.00 kr"},{"v":36,"d":"36.00 kr"},{"v":34,"d":"34.00 kr"},{"v":36,"d":"36.00 kr"},{"$nulls":6},{"v":208,"d":"208.00 kr"}]
[null,"Telefon",{"v":224,"d":"224.00 kr"},{"v":235,"d":"235.00 kr"},{"v":265,"d":"265.00 kr"},{"v":245,"d":"245.00 kr"},{"v":245,"d":"245.00 kr"},{"v":220,"d":"220.00 kr"},{"$nulls":6},{"v":1434,"d":"1,434.00 kr"}]
[null,"Internetåtkomst",{"v":180,"d":"180.00 kr"},{"v":180,"d":"180.00 kr"},{"v":180,"d":"180.00 kr"},{"v":180,"d":"180.00 kr"},{"v":180,"d":"180.00 kr"},{"v":180,"d":"180.00 kr"},{"$nulls":6},{"v":1080,"d":"1,080.00 kr"}]
[null,"Kontorsmaterial",{"v":256,"d":"256.00 kr"},{"v":142,"d":"142.00 kr"},{"v":160,"d":"160.00 kr"},{"v":221,"d":"221.00 kr"},{"v":256,"d":"256.00 kr"},{"v":240,"d":"240.00 kr"},{"$nulls":6},{"v":1275,"d":"1,275.00 kr"}]
[null,"Säkerhet",{"v":600,"d":"600.00 kr"},{"v":600,"d":"600.00 kr"},{"v":600,"d":"600.00 kr"},{"v":600,"d":"600.00 kr"},{"v":600,"d":"600.00 kr"},{"v":600,"d":"600.00 kr"},{"$nulls":6},{"v":3600,"d":"3,600.00 kr"}]
[null,"Delsumma",{"$f":"SUBTOTAL(109,FaktiskaKontor[Jan])","v":{"v":11387,"d":"11,387.00 kr"}},{"$f":"SUBTOTAL(109,FaktiskaKontor[Feb])","v":{"v":11698,"d":"11,698.00 kr"}},{"$f":"SUBTOTAL(109,FaktiskaKontor[Mar])","v":{"v":11692,"d":"11,692.00 kr"}},{"$f":"SUBTOTAL(109,FaktiskaKontor[Apr])","v":{"v":11611,"d":"11,611.00 kr"}},{"$f":"SUBTOTAL(109,FaktiskaKontor[Maj])","v":{"v":11508,"d":"11,508.00 kr"}},{"$f":"SUBTOTAL(109,FaktiskaKontor[Jun])","v":{"v":11454,"d":"11,454.00 kr"}},{"$f":"SUBTOTAL(109,FaktiskaKontor[Jul])","v":{"v":0,"d":"0.00 kr"}},{"$f":"SUBTOTAL(109,FaktiskaKontor[Aug])","v":{"v":0,"d":"0.00 kr"}},{"$f":"SUBTOTAL(109,FaktiskaKontor[Sep])","v":{"v":0,"d":"0.00 kr"}},{"$f":"SUBTOTAL(109,FaktiskaKontor[Okt])","v":{"v":0,"d":"0.00 kr"}},{"$f":"SUBTOTAL(109,FaktiskaKontor[Nov])","v":{"v":0,"d":"0.00 kr"}},{"$f":"SUBTOTAL(109,FaktiskaKontor[Dec])","v":{"v":0,"d":"0.00 kr"}},{"$f":"SUBTOTAL(109,FaktiskaKontor[ÅR])","v":{"v":69350,"d":"69,350.00 kr"}}]
[]
[null,"Marknadsföringskostnader","Jan","Feb","Mar","Apr","Maj","Jun","Jul","Aug","Sep","Okt","Nov","Dec","ÅR"]
[null,"Webbplatsvärd",{"v":500,"d":"500.00 kr"},{"v":500,"d":"500.00 kr"},{"v":500,"d":"500.00 kr"},{"v":500,"d":"500.00 kr"},{"v":500,"d":"500.00 kr"},{"v":500,"d":"500.00 kr"},{"$nulls":6},{"$f":"SUM(C22:N22)","v":{"v":3000,"d":"3,000.00 kr"}}]
[null,"Webbplatsuppdateringar",{"v":200,"d":"200.00 kr"},{"v":200,"d":"200.00 kr"},{"v":200,"d":"200.00 kr"},{"v":200,"d":"200.00 kr"},{"v":200,"d":"200.00 kr"},{"v":1500,"d":"1,500.00 kr"},{"$nulls":6},{"v":2500,"d":"2,500.00 kr"}]
[null,"Kollateral förberedelse",{"v":4800,"d":"4,800.00 kr"},{"v":0,"d":"0.00 kr"},{"v":0,"d":"0.00 kr"},{"v":5500,"d":"5,500.00 kr"},{"v":0,"d":"0.00 kr"},{"v":0,"d":"0.00 kr"},{"$nulls":6},{"v":10300,"d":"10,300.00 kr"}]
[null,"Kollateral utskrift",{"v":100,"d":"100.00 kr"},{"v":500,"d":"500.00 kr"},{"v":100,"d":"100.00 kr"},{"v":100,"d":"100.00 kr"},{"v":600,"d":"600.00 kr"},{"v":180,"d":"180.00 kr"},{"$nulls":6},{"v":1580,"d":"1,580.00 kr"}]
[null,"Marknadsföringshändelser",{"v":1800,"d":"1,800.00 kr"},{"v":2200,"d":"2,200.00 kr"},{"v":2200,"d":"2,200.00 kr"},{"v":4700,"d":"4,700.00 kr"},{"v":1500,"d":"1,500.00 kr"},{"v":2300,"d":"2,300.00 kr"},{"$nulls":6},{"v":14700,"d":"14,700.00 kr"}]
[null,"Diverse utgifter",{"v":145,"d":"145.00 kr"},{"v":156,"d":"156.00 kr"},{"v":123,"d":"123.00 kr"},{"v":223,"d":"223.00 kr"},{"v":187,"d":"187.00 kr"},{"v":245,"d":"245.00 kr"},{"$nulls":6},{"v":1079,"d":"1,079.00 kr"}]
[null,"Delsumma",{"$f":"SUBTOTAL(109,FaktiskaMarknadsföring[Jan])","v":{"v":7545,"d":"7,545.00 kr"}},{"$f":"SUBTOTAL(109,FaktiskaMarknadsföring[Feb])","v":{"v":3556,"d":"3,556.00 kr"}},{"$f":"SUBTOTAL(109,FaktiskaMarknadsföring[Mar])","v":{"v":3123,"d":"3,123.00 kr"}},{"$f":"SUBTOTAL(109,FaktiskaMarknadsföring[Apr])","v":{"v":11223,"d":"11,223.00 kr"}},{"$f":"SUBTOTAL(109,FaktiskaMarknadsföring[Maj])","v":{"v":2987,"d":"2,987.00 kr"}},{"$f":"SUBTOTAL(109,FaktiskaMarknadsföring[Jun])","v":{"v":4725,"d":"4,725.00 kr"}},{"$f":"SUBTOTAL(109,FaktiskaMarknadsföring[Jul])","v":{"v":0,"d":"0.00 kr"}},{"$f":"SUBTOTAL(109,FaktiskaMarknadsföring[Aug])","v":{"v":0,"d":"0.00 kr"}},{"$f":"SUBTOTAL(109,FaktiskaMarknadsföring[Sep])","v":{"v":0,"d":"0.00 kr"}},{"$f":"SUBTOTAL(109,FaktiskaMarknadsföring[Okt])","v":{"v":0,"d":"0.00 kr"}},{"$f":"SUBTOTAL(109,FaktiskaMarknadsföring[Nov])","v":{"v":0,"d":"0.00 kr"}},{"$f":"SUBTOTAL(109,FaktiskaMarknadsföring[Dec])","v":{"v":0,"d":"0.00 kr"}},{"$f":"SUBTOTAL(109,FaktiskaMarknadsföring[ÅR])","v":{"v":33159,"d":"33,159.00 kr"}}]
[]
[null,"Utbildning/resor","Jan","Feb","Mar","Apr","Maj","Jun","Jul","Aug","Sep","Okt","Nov","Dec","ÅR"]
[null,"Utbildning, kurser",{"v":1600,"d":"1,600.00 kr"},{"v":2400,"d":"2,400.00 kr"},{"v":1400,"d":"1,400.00 kr"},{"v":1600,"d":"1,600.00 kr"},{"v":1200,"d":"1,200.00 kr"},{"v":2800,"d":"2,800.00 kr"},{"$nulls":6},{"$f":"SUM(C31:N31)","v":{"v":11000,"d":"11,000.00 kr"}}]
[null,"Utbildningsrelaterade resekostnader",{"v":1200,"d":"1,200.00 kr"},{"v":2200,"d":"2,200.00 kr"},{"v":1400,"d":"1,400.00 kr"},{"v":1200,"d":"1,200.00 kr"},{"v":800,"d":"800.00 kr"},{"v":3500,"d":"3,500.00 kr"},{"$nulls":6},{"$f":"SUM(C32:N32)","v":{"v":10300,"d":"10,300.00 kr"}}]
[null,"Delsumma",{"$f":"SUBTOTAL(109,FaktiskaUtbildningOchResor[Jan])","v":{"v":2800,"d":"2,800.00 kr"}},{"$f":"SUBTOTAL(109,FaktiskaUtbildningOchResor[Feb])","v":{"v":4600,"d":"4,600.00 kr"}},{"$f":"SUBTOTAL(109,FaktiskaUtbildningOchResor[Mar])","v":{"v":2800,"d":"2,800.00 kr"}},{"$f":"SUBTOTAL(109,FaktiskaUtbildningOchResor[Apr])","v":{"v":2800,"d":"2,800.00 kr"}},{"$f":"SUBTOTAL(109,FaktiskaUtbildningOchResor[Maj])","v":{"v":2000,"d":"2,000.00 kr"}},{"$f":"SUBTOTAL(109,FaktiskaUtbildningOchResor[Jun])","v":{"v":6300,"d":"6,300.00 kr"}},{"$f":"SUBTOTAL(109,FaktiskaUtbildningOchResor[Jul])","v":{"v":0,"d":"0.00 kr"}},{"$f":"SUBTOTAL(109,FaktiskaUtbildningOchResor[Aug])","v":{"v":0,"d":"0.00 kr"}},{"$f":"SUBTOTAL(109,FaktiskaUtbildningOchResor[Sep])","v":{"v":0,"d":"0.00 kr"}},{"$f":"SUBTOTAL(109,FaktiskaUtbildningOchResor[Okt])","v":{"v":0,"d":"0.00 kr"}},{"$f":"SUBTOTAL(109,FaktiskaUtbildningOchResor[Nov])","v":{"v":0,"d":"0.00 kr"}},{"$f":"SUBTOTAL(109,FaktiskaUtbildningOchResor[Dec])","v":{"v":0,"d":"0.00 kr"}},{"$f":"SUBTOTAL(109,FaktiskaUtbildningOchResor[ÅR])","v":{"v":21300,"d":"21,300.00 kr"}}]
[]
[null,"SUMMA beräknade utgifter","Jan","Feb","Mar","Apr","Maj","Jun","Jul","Aug","Sep","Okt","Nov","Dec","År"]
[null,"Faktiska månadsutgifter",{"$f":"FaktiskaUtbildningOchResor[[#Totals],[Jan]]+FaktiskaMarknadsföring[[#Totals],[Jan]]+FaktiskaKontor[[#Totals],[Jan]]+FaktiskaAnställda[[#Totals],[Jan]]","v":{"v":129682,"d":"129,682.00 kr"}},{"$f":"FaktiskaUtbildningOchResor[[#Totals],[Feb]]+FaktiskaMarknadsföring[[#Totals],[Feb]]+FaktiskaKontor[[#Totals],[Feb]]+FaktiskaAnställda[[#Totals],[Feb]]","v":{"v":127804,"d":"127,804.00 kr"}},{"$f":"FaktiskaUtbildningOchResor[[#Totals],[Mar]]+FaktiskaMarknadsföring[[#Totals],[Mar]]+FaktiskaKontor[[#Totals],[Mar]]+FaktiskaAnställda[[#Totals],[Mar]]","v":{"v":125565,"d":"125,565.00 kr"}},{"$f":"FaktiskaUtbildningOchResor[[#Totals],[Apr]]+FaktiskaMarknadsföring[[#Totals],[Apr]]+FaktiskaKontor[[#Totals],[Apr]]+FaktiskaAnställda[[#Totals],[Apr]]","v":{"v":137394,"d":"137,394.00 kr"}},{"$f":"FaktiskaUtbildningOchResor[[#Totals],[Maj]]+FaktiskaMarknadsföring[[#Totals],[Maj]]+FaktiskaKontor[[#Totals],[Maj]]+FaktiskaAnställda[[#Totals],[Maj]]","v":{"v":128255,"d":"128,255.00 kr"}},{"$f":"FaktiskaUtbildningOchResor[[#Totals],[Jun]]+FaktiskaMarknadsföring[[#Totals],[Jun]]+FaktiskaKontor[[#Totals],[Jun]]+FaktiskaAnställda[[#Totals],[Jun]]","v":{"v":134239,"d":"134,239.00 kr"}},{"$f":"FaktiskaUtbildningOchResor[[#Totals],[Jul]]+FaktiskaMarknadsföring[[#Totals],[Jul]]+FaktiskaKontor[[#Totals],[Jul]]+FaktiskaAnställda[[#Totals],[Jul]]","v":{"v":0,"d":"0.00 kr"}},{"$f":"FaktiskaUtbildningOchResor[[#Totals],[Aug]]+FaktiskaMarknadsföring[[#Totals],[Aug]]+FaktiskaKontor[[#Totals],[Aug]]+FaktiskaAnställda[[#Totals],[Aug]]","v":{"v":0,"d":"0.00 kr"}},{"$f":"FaktiskaUtbildningOchResor[[#Totals],[Sep]]+FaktiskaMarknadsföring[[#Totals],[Sep]]+FaktiskaKontor[[#Totals],[Sep]]+FaktiskaAnställda[[#Totals],[Sep]]","v":{"v":0,"d":"0.00 kr"}},{"$f":"FaktiskaUtbildningOchResor[[#Totals],[Okt]]+FaktiskaMarknadsföring[[#Totals],[Okt]]+FaktiskaKontor[[#Totals],[Okt]]+FaktiskaAnställda[[#Totals],[Okt]]","v":{"v":0,"d":"0.00 kr"}},{"$f":"FaktiskaUtbildningOchResor[[#Totals],[Nov]]+FaktiskaMarknadsföring[[#Totals],[Nov]]+FaktiskaKontor[[#Totals],[Nov]]+FaktiskaAnställda[[#Totals],[Nov]]","v":{"v":0,"d":"0.00 kr"}},{"$f":"FaktiskaUtbildningOchResor[[#Totals],[Dec]]+FaktiskaMarknadsföring[[#Totals],[Dec]]+FaktiskaKontor[[#Totals],[Dec]]+FaktiskaAnställda[[#Totals],[Dec]]","v":{"v":0,"d":"0.00 kr"}},{"$f":"FaktiskaUtbildningOchResor[[#Totals],[ÅR]]+FaktiskaMarknadsföring[[#Totals],[ÅR]]+FaktiskaKontor[[#Totals],[ÅR]]+FaktiskaAnställda[[#Totals],[ÅR]]","v":{"v":782939,"d":"782,939.00 kr"}}]
[null,"Summa faktiska utgifter",{"$f":"SUM($C$36:C36)","v":{"v":129682,"d":"129,682.00 kr"}},{"$f":"SUM($C$36:D36)","v":{"v":257486,"d":"257,486.00 kr"}},{"$f":"SUM($C$36:E36)","v":{"v":383051,"d":"383,051.00 kr"}},{"$f":"SUM($C$36:F36)","v":{"v":520445,"d":"520,445.00 kr"}},{"$f":"SUM($C$36:G36)","v":{"v":648700,"d":"648,700.00 kr"}},{"$f":"SUM($C$36:H36)","v":{"v":782939,"d":"782,939.00 kr"}},{"$f":"SUM($C$36:I36)","v":{"v":782939,"d":"782,939.00 kr"}},{"$f":"SUM($C$36:J36)","v":{"v":782939,"d":"782,939.00 kr"}},{"$f":"SUM($C$36:K36)","v":{"v":782939,"d":"782,939.00 kr"}},{"$f":"SUM($C$36:L36)","v":{"v":782939,"d":"782,939.00 kr"}},{"$f":"SUM($C$36:M36)","v":{"v":782939,"d":"782,939.00 kr"}},{"$f":"SUM($C$36:N36)","v":{"v":782939,"d":"782,939.00 kr"}}]

{"sheet":"UTGIFTSAVVIKELSER","index":3,"n_rows":37,"n_cols":16,"rows_kept":37,"merged":[[1,10,1,12],[2,10,2,12]]}
[{"$nulls":15}," "]
[null,{"$f":"'BERÄKNADE UTGIFTER'!B2:D3","v":"Företagsnamn"},{"$nulls":8},{"$f":"worksheet_title","v":"Detaljerade utgiftsberäkningar"}]
[{"$nulls":10},"Skuggade celler är beräkningar."]
[null,"UTGIFTSAVVIKELSER","JAN","FEB","MAR","APR","MAJ","JUN","JUL","AUG","SEPT","OKT","NOV","DEC","ÅR"]
[null,"Kostnader för anställda","Jan","Feb","Mar","Apr","Maj","Jun","Jul","Aug","Sep","Okt","Nov","Dec","ÅR"]
[null,"Lön",{"$f":"INDEX(PlaneradeAnställda[],MATCH(INDEX(AvvikelserAnställda[],ROW()-ROW(AvvikelserAnställda[[#Headers],[Jan]]),1),INDEX(PlaneradeAnställda[],,1),0),MATCH(AvvikelserAnställda[[#Headers],[Jan]],PlaneradeAnställda[#Headers],0))-INDEX(FaktiskaAnställda[],MATCH(INDEX(AvvikelserAnställda[],ROW()-ROW(AvvikelserAnställda[[#Headers],[Jan]]),1),INDEX(PlaneradeAnställda[],,1),0),MATCH(AvvikelserAnställda[[#Headers],[Jan]],FaktiskaAnställda[#Headers],0))","v":{"v":0,"d":"0.00 kr"}},{"$f":"INDEX(PlaneradeAnställda[],MATCH(INDEX(AvvikelserAnställda[],ROW()-ROW(AvvikelserAnställda[[#Headers],[Feb]]),1),INDEX(PlaneradeAnställda[],,1),0),MATCH(AvvikelserAnställda[[#Headers],[Feb]],PlaneradeAnställda[#Headers],0))-INDEX(FaktiskaAnställda[],MATCH(INDEX(AvvikelserAnställda[],ROW()-ROW(AvvikelserAnställda[[#Headers],[Feb]]),1),INDEX(PlaneradeAnställda[],,1),0),MATCH(AvvikelserAnställda[[#Headers],[Feb]],FaktiskaAnställda[#Headers],0))","v":{"v":0,"d":"0.00 kr"}},{"$f":"INDEX(PlaneradeAnställda[],MATCH(INDEX(AvvikelserAnställda[],ROW()-ROW(AvvikelserAnställda[[#Headers],[Mar]]),1),INDEX(PlaneradeAnställda[],,1),0),MATCH(AvvikelserAnställda[[#Headers],[Mar]],PlaneradeAnställda[#Headers],0))-INDEX(FaktiskaAnställda[],MATCH(INDEX(AvvikelserAnställda[],ROW()-ROW(AvvikelserAnställda[[#Headers],[Mar]]),1),INDEX(PlaneradeAnställda[],,1),0),MATCH(AvvikelserAnställda[[#Headers],[Mar]],FaktiskaAnställda[#Headers],0))","v":{"v":0,"d":"0.00 kr"}},{"$f":"INDEX(PlaneradeAnställda[],MATCH(INDEX(AvvikelserAnställda[],ROW()-ROW(AvvikelserAnställda[[#Headers],[Apr]]),1),INDEX(PlaneradeAnställda[],,1),0),MATCH(AvvikelserAnställda[[#Headers],[Apr]],PlaneradeAnställda[#Headers],0))-INDEX(FaktiskaAnställda[],MATCH(INDEX(AvvikelserAnställda[],ROW()-ROW(AvvikelserAnställda[[#Headers],[Apr]]),1),INDEX(PlaneradeAnställda[],,1),0),MATCH(AvvikelserAnställda[[#Headers],[Apr]],FaktiskaAnställda[#Headers],0))","v":{"v":-500,"d":"-500.00 kr"}},{"$f":"INDEX(PlaneradeAnställda[],MATCH(INDEX(AvvikelserAnställda[],ROW()-ROW(AvvikelserAnställda[[#Headers],[Maj]]),1),INDEX(PlaneradeAnställda[],,1),0),MATCH(AvvikelserAnställda[[#Headers],[Maj]],PlaneradeAnställda[#Headers],0))-INDEX(FaktiskaAnställda[],MATCH(INDEX(AvvikelserAnställda[],ROW()-ROW(AvvikelserAnställda[[#Headers],[Maj]]),1),INDEX(PlaneradeAnställda[],,1),0),MATCH(AvvikelserAnställda[[#Headers],[Maj]],FaktiskaAnställda[#Headers],0))","v":{"v":-500,"d":"-500.00 kr"}},{"$f":"INDEX(PlaneradeAnställda[],MATCH(INDEX(AvvikelserAnställda[],ROW()-ROW(AvvikelserAnställda[[#Headers],[Jun]]),1),INDEX(PlaneradeAnställda[],,1),0),MATCH(AvvikelserAnställda[[#Headers],[Jun]],PlaneradeAnställda[#Headers],0))-INDEX(FaktiskaAnställda[],MATCH(INDEX(AvvikelserAnställda[],ROW()-ROW(AvvikelserAnställda[[#Headers],[Jun]]),1),INDEX(PlaneradeAnställda[],,1),0),MATCH(AvvikelserAnställda[[#Headers],[Jun]],FaktiskaAnställda[#Headers],0))","v":{"v":-500,"d":"-500.00 kr"}},{"$f":"INDEX(PlaneradeAnställda[],MATCH(INDEX(AvvikelserAnställda[],ROW()-ROW(AvvikelserAnställda[[#Headers],[Jul]]),1),INDEX(PlaneradeAnställda[],,1),0),MATCH(AvvikelserAnställda[[#Headers],[Jul]],PlaneradeAnställda[#Headers],0))-INDEX(FaktiskaAnställda[],MATCH(INDEX(AvvikelserAnställda[],ROW()-ROW(AvvikelserAnställda[[#Headers],[Jul]]),1),INDEX(PlaneradeAnställda[],,1),0),MATCH(AvvikelserAnställda[[#Headers],[Jul]],FaktiskaAnställda[#Headers],0))","v":{"v":87500,"d":"87,500.00 kr"}},{"$f":"INDEX(PlaneradeAnställda[],MATCH(INDEX(AvvikelserAnställda[],ROW()-ROW(AvvikelserAnställda[[#Headers],[Aug]]),1),INDEX(PlaneradeAnställda[],,1),0),MATCH(AvvikelserAnställda[[#Headers],[Aug]],PlaneradeAnställda[#Headers],0))-INDEX(FaktiskaAnställda[],MATCH(INDEX(AvvikelserAnställda[],ROW()-ROW(AvvikelserAnställda[[#Headers],[Aug]]),1),INDEX(PlaneradeAnställda[],,1),0),MATCH(AvvikelserAnställda[[#Headers],[Aug]],FaktiskaAnställda[#Headers],0))","v":{"v":92400,"d":"92,400.00 kr"}},{"$f":"INDEX(PlaneradeAnställda[],MATCH(INDEX(AvvikelserAnställda[],ROW()-ROW(AvvikelserAnställda[[#Headers],[Sep]]),1),INDEX(PlaneradeAnställda[],,1),0),MATCH(AvvikelserAnställda[[#Headers],[Sep]],PlaneradeAnställda[#Headers],0))-INDEX(FaktiskaAnställda[],MATCH(INDEX(AvvikelserAnställda[],ROW()-ROW(AvvikelserAnställda[[#Headers],[Sep]]),1),INDEX(PlaneradeAnställda[],,1),0),MATCH(AvvikelserAnställda[[#Headers],[Sep]],FaktiskaAnställda[#Headers],0))","v":{"v":92400,"d":"92,400.00 kr"}},{"$f":"INDEX(PlaneradeAnställda[],MATCH(INDEX(AvvikelserAnställda[],ROW()-ROW(AvvikelserAnställda[[#Headers],[Okt]]),1),INDEX(PlaneradeAnställda[],,1),0),MATCH(AvvikelserAnställda[[#Headers],[Okt]],PlaneradeAnställda[#Headers],0))-INDEX(FaktiskaAnställda[],MATCH(INDEX(AvvikelserAnställda[],ROW()-ROW(AvvikelserAnställda[[#Headers],[Okt]]),1),INDEX(PlaneradeAnställda[],,1),0),MATCH(AvvikelserAnställda[[#Headers],[Okt]],FaktiskaAnställda[#Headers],0))","v":{"v":92400,"d":"92,400.00 kr"}},{"$f":"INDEX(PlaneradeAnställda[],MATCH(INDEX(AvvikelserAnställda[],ROW()-ROW(AvvikelserAnställda[[#Headers],[Nov]]),1),INDEX(PlaneradeAnställda[],,1),0),MATCH(AvvikelserAnställda[[#Headers],[Nov]],PlaneradeAnställda[#Headers],0))-INDEX(FaktiskaAnställda[],MATCH(INDEX(AvvikelserAnställda[],ROW()-ROW(AvvikelserAnställda[[#Headers],[Nov]]),1),INDEX(PlaneradeAnställda[],,1),0),MATCH(AvvikelserAnställda[[#Headers],[Nov]],FaktiskaAnställda[#Headers],0))","v":{"v":92400,"d":"92,400.00 kr"}},{"$f":"INDEX(PlaneradeAnställda[],MATCH(INDEX(AvvikelserAnställda[],ROW()-ROW(AvvikelserAnställda[[#Headers],[Dec]]),1),INDEX(PlaneradeAnställda[],,1),0),MATCH(AvvikelserAnställda[[#Headers],[Dec]],PlaneradeAnställda[#Headers],0))-INDEX(FaktiskaAnställda[],MATCH(INDEX(AvvikelserAnställda[],ROW()-ROW(AvvikelserAnställda[[#Headers],[Dec]]),1),INDEX(PlaneradeAnställda[],,1),0),MATCH(AvvikelserAnställda[[#Headers],[Dec]],FaktiskaAnställda[#Headers],0))","v":{"v":92400,"d":"92,400.00 kr"}},{"$f":"SUM(AvvikelserAnställda[[#This Row],[Jan]:[Dec]])","v":{"v":548000,"d":"548,000.00 kr"}}]
[null,"Förmåner",{"$f":"INDEX(PlaneradeAnställda[],MATCH(INDEX(AvvikelserAnställda[],ROW()-ROW(AvvikelserAnställda[[#Headers],[Jan]]),1),INDEX(PlaneradeAnställda[],,1),0),MATCH(AvvikelserAnställda[[#Headers],[Jan]],PlaneradeAnställda[#Headers],0))-INDEX(FaktiskaAnställda[],MATCH(INDEX(AvvikelserAnställda[],ROW()-ROW(AvvikelserAnställda[[#Headers],[Jan]]),1),INDEX(PlaneradeAnställda[],,1),0),MATCH(AvvikelserAnställda[[#Headers],[Jan]],FaktiskaAnställda[#Headers],0))","v":{"v":0,"d":"0.00 kr"}},{"$f":"INDEX(PlaneradeAnställda[],MATCH(INDEX(AvvikelserAnställda[],ROW()-ROW(AvvikelserAnställda[[#Headers],[Feb]]),1),INDEX(PlaneradeAnställda[],,1),0),MATCH(AvvikelserAnställda[[#Headers],[Feb]],PlaneradeAnställda[#Headers],0))-INDEX(FaktiskaAnställda[],MATCH(INDEX(AvvikelserAnställda[],ROW()-ROW(AvvikelserAnställda[[#Headers],[Feb]]),1),INDEX(PlaneradeAnställda[],,1),0),MATCH(AvvikelserAnställda[[#Headers],[Feb]],FaktiskaAnställda[#Headers],0))","v":{"v":0,"d":"0.00 kr"}},{"$f":"INDEX(PlaneradeAnställda[],MATCH(INDEX(AvvikelserAnställda[],ROW()-ROW(AvvikelserAnställda[[#Headers],[Mar]]),1),INDEX(PlaneradeAnställda[],,1),0),MATCH(AvvikelserAnställda[[#Headers],[Mar]],PlaneradeAnställda[#Headers],0))-INDEX(FaktiskaAnställda[],MATCH(INDEX(AvvikelserAnställda[],ROW()-ROW(AvvikelserAnställda[[#Headers],[Mar]]),1),INDEX(PlaneradeAnställda[],,1),0),MATCH(AvvikelserAnställda[[#Headers],[Mar]],FaktiskaAnställda[#Headers],0))","v":{"v":0,"d":"0.00 kr"}},{"$f":"INDEX(PlaneradeAnställda[],MATCH(INDEX(AvvikelserAnställda[],ROW()-ROW(AvvikelserAnställda[[#Headers],[Apr]]),1),INDEX(PlaneradeAnställda[],,1),0),MATCH(AvvikelserAnställda[[#Headers],[Apr]],PlaneradeAnställda[#Headers],0))-INDEX(FaktiskaAnställda[],MATCH(INDEX(AvvikelserAnställda[],ROW()-ROW(AvvikelserAnställda[[#Headers],[Apr]]),1),INDEX(PlaneradeAnställda[],,1),0),MATCH(AvvikelserAnställda[[#Headers],[Apr]],FaktiskaAnställda[#Headers],0))","v":{"v":-135,"d":"-135.00 kr"}},{"$f":"INDEX(PlaneradeAnställda[],MATCH(INDEX(AvvikelserAnställda[],ROW()-ROW(AvvikelserAnställda[[#Headers],[Maj]]),1),INDEX(PlaneradeAnställda[],,1),0),MATCH(AvvikelserAnställda[[#Headers],[Maj]],PlaneradeAnställda[#Headers],0))-INDEX(FaktiskaAnställda[],MATCH(INDEX(AvvikelserAnställda[],ROW()-ROW(AvvikelserAnställda[[#Headers],[Maj]]),1),INDEX(PlaneradeAnställda[],,1),0),MATCH(AvvikelserAnställda[[#Headers],[Maj]],FaktiskaAnställda[#Headers],0))","v":{"v":-135,"d":"-135.00 kr"}},{"$f":"INDEX(PlaneradeAnställda[],MATCH(INDEX(AvvikelserAnställda[],ROW()-ROW(AvvikelserAnställda[[#Headers],[Jun]]),1),INDEX(PlaneradeAnställda[],,1),0),MATCH(AvvikelserAnställda[[#Headers],[Jun]],PlaneradeAnställda[#Headers],0))-INDEX(FaktiskaAnställda[],MATCH(INDEX(AvvikelserAnställda[],ROW()-ROW(AvvikelserAnställda[[#Headers],[Jun]]),1),INDEX(PlaneradeAnställda[],,1),0),MATCH(AvvikelserAnställda[[#Headers],[Jun]],FaktiskaAnställda[#Headers],0))","v":{"v":-135,"d":"-135.00 kr"}},{"$f":"INDEX(PlaneradeAnställda[],MATCH(INDEX(AvvikelserAnställda[],ROW()-ROW(AvvikelserAnställda[[#Headers],[Jul]]),1),INDEX(PlaneradeAnställda[],,1),0),MATCH(AvvikelserAnställda[[#Headers],[Jul]],PlaneradeAnställda[#Headers],0))-INDEX(FaktiskaAnställda[],MATCH(INDEX(AvvikelserAnställda[],ROW()-ROW(AvvikelserAnställda[[#Headers],[Jul]]),1),INDEX(PlaneradeAnställda[],,1),0),MATCH(AvvikelserAnställda[[#Headers],[Jul]],FaktiskaAnställda[#Headers],0))","v":{"v":23625,"d":"23,625.00 kr"}},{"$f":"INDEX(PlaneradeAnställda[],MATCH(INDEX(AvvikelserAnställda[],ROW()-ROW(AvvikelserAnställda[[#Headers],[Aug]]),1),INDEX(PlaneradeAnställda[],,1),0),MATCH(AvvikelserAnställda[[#Headers],[Aug]],PlaneradeAnställda[#Headers],0))-INDEX(FaktiskaAnställda[],MATCH(INDEX(AvvikelserAnställda[],ROW()-ROW(AvvikelserAnställda[[#Headers],[Aug]]),1),INDEX(PlaneradeAnställda[],,1),0),MATCH(AvvikelserAnställda[[#Headers],[Aug]],FaktiskaAnställda[#Headers],0))","v":{"v":24948,"d":"24,948.00 kr"}},{"$f":"INDEX(PlaneradeAnställda[],MATCH(INDEX(AvvikelserAnställda[],ROW()-ROW(AvvikelserAnställda[[#Headers],[Sep]]),1),INDEX(PlaneradeAnställda[],,1),0),MATCH(AvvikelserAnställda[[#Headers],[Sep]],PlaneradeAnställda[#Headers],0))-INDEX(FaktiskaAnställda[],MATCH(INDEX(AvvikelserAnställda[],ROW()-ROW(AvvikelserAnställda[[#Headers],[Sep]]),1),INDEX(PlaneradeAnställda[],,1),0),MATCH(AvvikelserAnställda[[#Headers],[Sep]],FaktiskaAnställda[#Headers],0))","v":{"v":24948,"d":"24,948.00 kr"}},{"$f":"INDEX(PlaneradeAnställda[],MATCH(INDEX(AvvikelserAnställda[],ROW()-ROW(AvvikelserAnställda[[#Headers],[Okt]]),1),INDEX(PlaneradeAnställda[],,1),0),MATCH(AvvikelserAnställda[[#Headers],[Okt]],PlaneradeAnställda[#Headers],0))-INDEX(FaktiskaAnställda[],MATCH(INDEX(AvvikelserAnställda[],ROW()-ROW(AvvikelserAnställda[[#Headers],[Okt]]),1),INDEX(PlaneradeAnställda[],,1),0),MATCH(AvvikelserAnställda[[#Headers],[Okt]],FaktiskaAnställda[#Headers],0))","v":{"v":24948,"d":"24,948.00 kr"}},{"$f":"INDEX(PlaneradeAnställda[],MATCH(INDEX(AvvikelserAnställda[],ROW()-ROW(AvvikelserAnställda[[#Headers],[Nov]]),1),INDEX(PlaneradeAnställda[],,1),0),MATCH(AvvikelserAnställda[[#Headers],[Nov]],PlaneradeAnställda[#Headers],0))-INDEX(FaktiskaAnställda[],MATCH(INDEX(AvvikelserAnställda[],ROW()-ROW(AvvikelserAnställda[[#Headers],[Nov]]),1),INDEX(PlaneradeAnställda[],,1),0),MATCH(AvvikelserAnställda[[#Headers],[Nov]],FaktiskaAnställda[#Headers],0))","v":{"v":24948,"d":"24,948.00 kr"}},{"$f":"INDEX(PlaneradeAnställda[],MATCH(INDEX(AvvikelserAnställda[],ROW()-ROW(AvvikelserAnställda[[#Headers],[Dec]]),1),INDEX(PlaneradeAnställda[],,1),0),MATCH(AvvikelserAnställda[[#Headers],[Dec]],PlaneradeAnställda[#Headers],0))-INDEX(FaktiskaAnställda[],MATCH(INDEX(AvvikelserAnställda[],ROW()-ROW(AvvikelserAnställda[[#Headers],[Dec]]),1),INDEX(PlaneradeAnställda[],,1),0),MATCH(AvvikelserAnställda[[#Headers],[Dec]],FaktiskaAnställda[#Headers],0))","v":{"v":24948,"d":"24,948.00 kr"}},{"$f":"SUM(AvvikelserAnställda[[#This Row],[Jan]:[Dec]])","v":{"v":147960,"d":"147,960.00 kr"}}]
[null,"Delsumma",{"$f":"SUBTOTAL(109,AvvikelserAnställda[Jan])","v":{"v":0,"d":"0.00 kr"}},{"$f":"SUBTOTAL(109,AvvikelserAnställda[Feb])","v":{"v":0,"d":"0.00 kr"}},{"$f":"SUBTOTAL(109,AvvikelserAnställda[Mar])","v":{"v":0,"d":"0.00 kr"}},{"$f":"SUBTOTAL(109,AvvikelserAnställda[Apr])","v":{"v":-635,"d":"-635.00 kr"}},{"$f":"SUBTOTAL(109,AvvikelserAnställda[Maj])","v":{"v":-635,"d":"-635.00 kr"}},{"$f":"SUBTOTAL(109,AvvikelserAnställda[Jun])","v":{"v":-635,"d":"-635.00 kr"}},{"$f":"SUBTOTAL(109,AvvikelserAnställda[Jul])","v":{"v":111125,"d":"111,125.00 kr"}},{"$f":"SUBTOTAL(109,AvvikelserAnställda[Aug])","v":{"v":117348,"d":"117,348.00 kr"}},{"$f":"SUBTOTAL(109,AvvikelserAnställda[Sep])","v":{"v":117348,"d":"117,348.00 kr"}},{"$f":"SUBTOTAL(109,AvvikelserAnställda[Okt])","v":{"v":117348,"d":"117,348.00 kr"}},{"$f":"SUBTOTAL(109,AvvikelserAnställda[Nov])","v":{"v":117348,"d":"117,348.00 kr"}},{"$f":"SUBTOTAL(109,AvvikelserAnställda[Dec])","v":{"v":117348,"d":"117,348.00 kr"}},{"$f":"SUBTOTAL(109,AvvikelserAnställda[ÅR])","v":{"v":695960,"d":"695,960.00 kr"}}]
[]
[null,"Kontorskostnader","Jan","Feb","Mar","Apr","Maj","Jun","Jul","Aug","Sep","Okt","Nov","Dec","ÅR"]
[null,"Kontorshyra",{"$f":"INDEX(KontorsPlan[],MATCH(INDEX(AvvikelserKontor[],ROW()-ROW(AvvikelserKontor[[#Headers],[Jan]]),1),INDEX(KontorsPlan[],,1),0),MATCH(AvvikelserKontor[[#Headers],[Jan]],KontorsPlan[#Headers],0))-INDEX(FaktiskaKontor[],MATCH(INDEX(AvvikelserKontor[],ROW()-ROW(AvvikelserKontor[[#Headers],[Jan]]),1),INDEX(KontorsPlan[],,1),0),MATCH(AvvikelserKontor[[#Headers],[Jan]],FaktiskaKontor[#Headers],0))","v":{"v":0,"d":"0.00 kr"}},{"$f":"INDEX(KontorsPlan[],MATCH(INDEX(AvvikelserKontor[],ROW()-ROW(AvvikelserKontor[[#Headers],[Feb]]),1),INDEX(KontorsPlan[],,1),0),MATCH(AvvikelserKontor[[#Headers],[Feb]],KontorsPlan[#Headers],0))-INDEX(FaktiskaKontor[],MATCH(INDEX(AvvikelserKontor[],ROW()-ROW(AvvikelserKontor[[#Headers],[Feb]]),1),INDEX(KontorsPlan[],,1),0),MATCH(AvvikelserKontor[[#Headers],[Feb]],FaktiskaKontor[#Headers],0))","v":{"v":0,"d":"0.00 kr"}},{"$f":"INDEX(KontorsPlan[],MATCH(INDEX(AvvikelserKontor[],ROW()-ROW(AvvikelserKontor[[#Headers],[Mar]]),1),INDEX(KontorsPlan[],,1),0),MATCH(AvvikelserKontor[[#Headers],[Mar]],KontorsPlan[#Headers],0))-INDEX(FaktiskaKontor[],MATCH(INDEX(AvvikelserKontor[],ROW()-ROW(AvvikelserKontor[[#Headers],[Mar]]),1),INDEX(KontorsPlan[],,1),0),MATCH(AvvikelserKontor[[#Headers],[Mar]],FaktiskaKontor[#Headers],0))","v":{"v":0,"d":"0.00 kr"}},{"$f":"INDEX(KontorsPlan[],MATCH(INDEX(AvvikelserKontor[],ROW()-ROW(AvvikelserKontor[[#Headers],[Apr]]),1),INDEX(KontorsPlan[],,1),0),MATCH(AvvikelserKontor[[#Headers],[Apr]],KontorsPlan[#Headers],0))-INDEX(FaktiskaKontor[],MATCH(INDEX(AvvikelserKontor[],ROW()-ROW(AvvikelserKontor[[#Headers],[Apr]]),1),INDEX(KontorsPlan[],,1),0),MATCH(AvvikelserKontor[[#Headers],[Apr]],FaktiskaKontor[#Headers],0))","v":{"v":0,"d":"0.00 kr"}},{"$f":"INDEX(KontorsPlan[],MATCH(INDEX(AvvikelserKontor[],ROW()-ROW(AvvikelserKontor[[#Headers],[Maj]]),1),INDEX(KontorsPlan[],,1),0),MATCH(AvvikelserKontor[[#Headers],[Maj]],KontorsPlan[#Headers],0))-INDEX(FaktiskaKontor[],MATCH(INDEX(AvvikelserKontor[],ROW()-ROW(AvvikelserKontor[[#Headers],[Maj]]),1),INDEX(KontorsPlan[],,1),0),MATCH(AvvikelserKontor[[#Headers],[Maj]],FaktiskaKontor[#Headers],0))","v":{"v":0,"d":"0.00 kr"}},{"$f":"INDEX(KontorsPlan[],MATCH(INDEX(AvvikelserKontor[],ROW()-ROW(AvvikelserKontor[[#Headers],[Jun]]),1),INDEX(KontorsPlan[],,1),0),MATCH(AvvikelserKontor[[#Headers],[Jun]],KontorsPlan[#Headers],0))-INDEX(FaktiskaKontor[],MATCH(INDEX(AvvikelserKontor[],ROW()-ROW(AvvikelserKontor[[#Headers],[Jun]]),1),INDEX(KontorsPlan[],,1),0),MATCH(AvvikelserKontor[[#Headers],[Jun]],FaktiskaKontor[#Headers],0))","v":{"v":0,"d":"0.00 kr"}},{"$f":"INDEX(KontorsPlan[],MATCH(INDEX(AvvikelserKontor[],ROW()-ROW(AvvikelserKontor[[#Headers],[Jul]]),1),INDEX(KontorsPlan[],,1),0),MATCH(AvvikelserKontor[[#Headers],[Jul]],KontorsPlan[#Headers],0))-INDEX(FaktiskaKontor[],MATCH(INDEX(AvvikelserKontor[],ROW()-ROW(AvvikelserKontor[[#Headers],[Jul]]),1),INDEX(KontorsPlan[],,1),0),MATCH(AvvikelserKontor[[#Headers],[Jul]],FaktiskaKontor[#Headers],0))","v":{"v":9800,"d":"9,800.00 kr"}},{"$f":"INDEX(KontorsPlan[],MATCH(INDEX(AvvikelserKontor[],ROW()-ROW(AvvikelserKontor[[#Headers],[Aug]]),1),INDEX(KontorsPlan[],,1),0),MATCH(AvvikelserKontor[[#Headers],[Aug]],KontorsPlan[#Headers],0))-INDEX(FaktiskaKontor[],MATCH(INDEX(AvvikelserKontor[],ROW()-ROW(AvvikelserKontor[[#Headers],[Aug]]),1),INDEX(KontorsPlan[],,1),0),MATCH(AvvikelserKontor[[#Headers],[Aug]],FaktiskaKontor[#Headers],0))","v":{"v":9800,"d":"9,800.00 kr"}},{"$f":"INDEX(KontorsPlan[],MATCH(INDEX(AvvikelserKontor[],ROW()-ROW(AvvikelserKontor[[#Headers],[Sep]]),1),INDEX(KontorsPlan[],,1),0),MATCH(AvvikelserKontor[[#Headers],[Sep]],KontorsPlan[#Headers],0))-INDEX(FaktiskaKontor[],MATCH(INDEX(AvvikelserKontor[],ROW()-ROW(AvvikelserKontor[[#Headers],[Sep]]),1),INDEX(KontorsPlan[],,1),0),MATCH(AvvikelserKontor[[#Headers],[Sep]],FaktiskaKontor[#Headers],0))","v":{"v":9800,"d":"9,800.00 kr"}},{"$f":"INDEX(KontorsPlan[],MATCH(INDEX(AvvikelserKontor[],ROW()-ROW(AvvikelserKontor[[#Headers],[Okt]]),1),INDEX(KontorsPlan[],,1),0),MATCH(AvvikelserKontor[[#Headers],[Okt]],KontorsPlan[#Headers],0))-INDEX(FaktiskaKontor[],MATCH(INDEX(AvvikelserKontor[],ROW()-ROW(AvvikelserKontor[[#Headers],[Okt]]),1),INDEX(KontorsPlan[],,1),0),MATCH(AvvikelserKontor[[#Headers],[Okt]],FaktiskaKontor[#Headers],0))","v":{"v":9800,"d":"9,800.00 kr"}},{"$f":"INDEX(KontorsPlan[],MATCH(INDEX(AvvikelserKontor[],ROW()-ROW(AvvikelserKontor[[#Headers],[Nov]]),1),INDEX(KontorsPlan[],,1),0),MATCH(AvvikelserKontor[[#Headers],[Nov]],KontorsPlan[#Headers],0))-INDEX(FaktiskaKontor[],MATCH(INDEX(AvvikelserKontor[],ROW()-ROW(AvvikelserKontor[[#Headers],[Nov]]),1),INDEX(KontorsPlan[],,1),0),MATCH(AvvikelserKontor[[#Headers],[Nov]],FaktiskaKontor[#Headers],0))","v":{"v":9800,"d":"9,800.00 kr"}},{"$f":"INDEX(KontorsPlan[],MATCH(INDEX(AvvikelserKontor[],ROW()-ROW(AvvikelserKontor[[#Headers],[Dec]]),1),INDEX(KontorsPlan[],,1),0),MATCH(AvvikelserKontor[[#Headers],[Dec]],KontorsPlan[#Headers],0))-INDEX(FaktiskaKontor[],MATCH(INDEX(AvvikelserKontor[],ROW()-ROW(AvvikelserKontor[[#Headers],[Dec]]),1),INDEX(KontorsPlan[],,1),0),MATCH(AvvikelserKontor[[#Headers],[Dec]],FaktiskaKontor[#Headers],0))","v":{"v":9800,"d":"9,800.00 kr"}},{"$f":"SUM(AvvikelserKontor[[#This Row],[Jan]:[Dec]])","v":{"v":58800,"d":"58,800.00 kr"}}]
[null,"Gas",{"$f":"INDEX(KontorsPlan[],MATCH(INDEX(AvvikelserKontor[],ROW()-ROW(AvvikelserKontor[[#Headers],[Jan]]),1),INDEX(KontorsPlan[],,1),0),MATCH(AvvikelserKontor[[#Headers],[Jan]],KontorsPlan[#Headers],0))-INDEX(FaktiskaKontor[],MATCH(INDEX(AvvikelserKontor[],ROW()-ROW(AvvikelserKontor[[#Headers],[Jan]]),1),INDEX(KontorsPlan[],,1),0),MATCH(AvvikelserKontor[[#Headers],[Jan]],FaktiskaKontor[#Headers],0))","v":{"v":-4,"d":"-4.00 kr"}},{"$f":"INDEX(KontorsPlan[],MATCH(INDEX(AvvikelserKontor[],ROW()-ROW(AvvikelserKontor[[#Headers],[Feb]]),1),INDEX(KontorsPlan[],,1),0),MATCH(AvvikelserKontor[[#Headers],[Feb]],KontorsPlan[#Headers],0))-INDEX(FaktiskaKontor[],MATCH(INDEX(AvvikelserKontor[],ROW()-ROW(AvvikelserKontor[[#Headers],[Feb]]),1),INDEX(KontorsPlan[],,1),0),MATCH(AvvikelserKontor[[#Headers],[Feb]],FaktiskaKontor[#Headers],0))","v":{"v":-30,"d":"-30.00 kr"}},{"$f":"INDEX(KontorsPlan[],MATCH(INDEX(AvvikelserKontor[],ROW()-ROW(AvvikelserKontor[[#Headers],[Mar]]),1),INDEX(KontorsPlan[],,1),0),MATCH(AvvikelserKontor[[#Headers],[Mar]],KontorsPlan[#Headers],0))-INDEX(FaktiskaKontor[],MATCH(INDEX(AvvikelserKontor[],ROW()-ROW(AvvikelserKontor[[#Headers],[Mar]]),1),INDEX(KontorsPlan[],,1),0),MATCH(AvvikelserKontor[[#Headers],[Mar]],FaktiskaKontor[#Headers],0))","v":{"v":15,"d":"15.00 kr"}},{"$f":"INDEX(KontorsPlan[],MATCH(INDEX(AvvikelserKontor[],ROW()-ROW(AvvikelserKontor[[#Headers],[Apr]]),1),INDEX(KontorsPlan[],,1),0),MATCH(AvvikelserKontor[[#Headers],[Apr]],KontorsPlan[#Headers],0))-INDEX(FaktiskaKontor[],MATCH(INDEX(AvvikelserKontor[],ROW()-ROW(AvvikelserKontor[[#Headers],[Apr]]),1),INDEX(KontorsPlan[],,1),0),MATCH(AvvikelserKontor[[#Headers],[Apr]],FaktiskaKontor[#Headers],0))","v":{"v":-130,"d":"-130.00 kr"}},{"$f":"INDEX(KontorsPlan[],MATCH(INDEX(AvvikelserKontor[],ROW()-ROW(AvvikelserKontor[[#Headers],[Maj]]),1),INDEX(KontorsPlan[],,1),0),MATCH(AvvikelserKontor[[#Headers],[Maj]],KontorsPlan[#Headers],0))-INDEX(FaktiskaKontor[],MATCH(INDEX(AvvikelserKontor[],ROW()-ROW(AvvikelserKontor[[#Headers],[Maj]]),1),INDEX(KontorsPlan[],,1),0),MATCH(AvvikelserKontor[[#Headers],[Maj]],FaktiskaKontor[#Headers],0))","v":{"v":13,"d":"13.00 kr"}},{"$f":"INDEX(KontorsPlan[],MATCH(INDEX(AvvikelserKontor[],ROW()-ROW(AvvikelserKontor[[#Headers],[Jun]]),1),INDEX(KontorsPlan[],,1),0),MATCH(AvvikelserKontor[[#Headers],[Jun]],KontorsPlan[#Headers],0))-INDEX(FaktiskaKontor[],MATCH(INDEX(AvvikelserKontor[],ROW()-ROW(AvvikelserKontor[[#Headers],[Jun]]),1),INDEX(KontorsPlan[],,1),0),MATCH(AvvikelserKontor[[#Headers],[Jun]],FaktiskaKontor[#Headers],0))","v":{"v":12,"d":"12.00 kr"}},{"$f":"INDEX(KontorsPlan[],MATCH(INDEX(AvvikelserKontor[],ROW()-ROW(AvvikelserKontor[[#Headers],[Jul]]),1),INDEX(KontorsPlan[],,1),0),MATCH(AvvikelserKontor[[#Headers],[Jul]],KontorsPlan[#Headers],0))-INDEX(FaktiskaKontor[],MATCH(INDEX(AvvikelserKontor[],ROW()-ROW(AvvikelserKontor[[#Headers],[Jul]]),1),INDEX(KontorsPlan[],,1),0),MATCH(AvvikelserKontor[[#Headers],[Jul]],FaktiskaKontor[#Headers],0))","v":{"v":100,"d":"100.00 kr"}},{"$f":"INDEX(KontorsPlan[],MATCH(INDEX(AvvikelserKontor[],ROW()-ROW(AvvikelserKontor[[#Headers],[Aug]]),1),INDEX(KontorsPlan[],,1),0),MATCH(AvvikelserKontor[[#Headers],[Aug]],KontorsPlan[#Headers],0))-INDEX(FaktiskaKontor[],MATCH(INDEX(AvvikelserKontor[],ROW()-ROW(AvvikelserKontor[[#Headers],[Aug]]),1),INDEX(KontorsPlan[],,1),0),MATCH(AvvikelserKontor[[#Headers],[Aug]],FaktiskaKontor[#Headers],0))","v":{"v":100,"d":"100.00 kr"}},{"$f":"INDEX(KontorsPlan[],MATCH(INDEX(AvvikelserKontor[],ROW()-ROW(AvvikelserKontor[[#Headers],[Sep]]),1),INDEX(KontorsPlan[],,1),0),MATCH(AvvikelserKontor[[#Headers],[Sep]],KontorsPlan[#Headers],0))-INDEX(FaktiskaKontor[],MATCH(INDEX(AvvikelserKontor[],ROW()-ROW(AvvikelserKontor[[#Headers],[Sep]]),1),INDEX(KontorsPlan[],,1),0),MATCH(AvvikelserKontor[[#Headers],[Sep]],FaktiskaKontor[#Headers],0))","v":{"v":100,"d":"100.00 kr"}},{"$f":"INDEX(KontorsPlan[],MATCH(INDEX(AvvikelserKontor[],ROW()-ROW(AvvikelserKontor[[#Headers],[Okt]]),1),INDEX(KontorsPlan[],,1),0),MATCH(AvvikelserKontor[[#Headers],[Okt]],KontorsPlan[#Headers],0))-INDEX(FaktiskaKontor[],MATCH(INDEX(AvvikelserKontor[],ROW()-ROW(AvvikelserKontor[[#Headers],[Okt]]),1),INDEX(KontorsPlan[],,1),0),MATCH(AvvikelserKontor[[#Headers],[Okt]],FaktiskaKontor[#Headers],0))","v":{"v":100,"d":"100.00 kr"}},{"$f":"INDEX(KontorsPlan[],MATCH(INDEX(AvvikelserKontor[],ROW()-ROW(AvvikelserKontor[[#Headers],[Nov]]),1),INDEX(KontorsPlan[],,1),0),MATCH(AvvikelserKontor[[#Headers],[Nov]],KontorsPlan[#Headers],0))-INDEX(FaktiskaKontor[],MATCH(INDEX(AvvikelserKontor[],ROW()-ROW(AvvikelserKontor[[#Headers],[Nov]]),1),INDEX(KontorsPlan[],,1),0),MATCH(AvvikelserKontor[[#Headers],[Nov]],FaktiskaKontor[#Headers],0))","v":{"v":400,"d":"400.00 kr"}},{"$f":"INDEX(KontorsPlan[],MATCH(INDEX(AvvikelserKontor[],ROW()-ROW(AvvikelserKontor[[#Headers],[Dec]]),1),INDEX(KontorsPlan[],,1),0),MATCH(AvvikelserKontor[[#Headers],[Dec]],KontorsPlan[#Headers],0))-INDEX(FaktiskaKontor[],MATCH(INDEX(AvvikelserKontor[],ROW()-ROW(AvvikelserKontor[[#Headers],[Dec]]),1),INDEX(KontorsPlan[],,1),0),MATCH(AvvikelserKontor[[#Headers],[Dec]],FaktiskaKontor[#Headers],0))","v":{"v":400,"d":"400.00 kr"}},{"$f":"SUM(AvvikelserKontor[[#This Row],[Jan]:[Dec]])","v":{"v":1076,"d":"1,076.00 kr"}}]
[null,"El",{"$f":"INDEX(KontorsPlan[],MATCH(INDEX(AvvikelserKontor[],ROW()-ROW(AvvikelserKontor[[#Headers],[Jan]]),1),INDEX(KontorsPlan[],,1),0),MATCH(AvvikelserKontor[[#Headers],[Jan]],KontorsPlan[#Headers],0))-INDEX(FaktiskaKontor[],MATCH(INDEX(AvvikelserKontor[],ROW()-ROW(AvvikelserKontor[[#Headers],[Jan]]),1),INDEX(KontorsPlan[],,1),0),MATCH(AvvikelserKontor[[#Headers],[Jan]],FaktiskaKontor[#Headers],0))","v":{"v":12,"d":"12.00 kr"}},{"$f":"INDEX(KontorsPlan[],MATCH(INDEX(AvvikelserKontor[],ROW()-ROW(AvvikelserKontor[[#Headers],[Feb]]),1),INDEX(KontorsPlan[],,1),0),MATCH(AvvikelserKontor[[#Headers],[Feb]],KontorsPlan[#Headers],0))-INDEX(FaktiskaKontor[],MATCH(INDEX(AvvikelserKontor[],ROW()-ROW(AvvikelserKontor[[#Headers],[Feb]]),1),INDEX(KontorsPlan[],,1),0),MATCH(AvvikelserKontor[[#Headers],[Feb]],FaktiskaKontor[#Headers],0))","v":{"v":22,"d":"22.00 kr"}},{"$f":"INDEX(KontorsPlan[],MATCH(INDEX(AvvikelserKontor[],ROW()-ROW(AvvikelserKontor[[#Headers],[Mar]]),1),INDEX(KontorsPlan[],,1),0),MATCH(AvvikelserKontor[[#Headers],[Mar]],KontorsPlan[#Headers],0))-INDEX(FaktiskaKontor[],MATCH(INDEX(AvvikelserKontor[],ROW()-ROW(AvvikelserKontor[[#Headers],[Mar]]),1),INDEX(KontorsPlan[],,1),0),MATCH(AvvikelserKontor[[#Headers],[Mar]],FaktiskaKontor[#Headers],0))","v":{"v":32,"d":"32.00 kr"}},{"$f":"INDEX(KontorsPlan[],MATCH(INDEX(AvvikelserKontor[],ROW()-ROW(AvvikelserKontor[[#Headers],[Apr]]),1),INDEX(KontorsPlan[],,1),0),MATCH(AvvikelserKontor[[#Headers],[Apr]],KontorsPlan[#Headers],0))-INDEX(FaktiskaKontor[],MATCH(INDEX(AvvikelserKontor[],ROW()-ROW(AvvikelserKontor[[#Headers],[Apr]]),1),INDEX(KontorsPlan[],,1),0),MATCH(AvvikelserKontor[[#Headers],[Apr]],FaktiskaKontor[#Headers],0))","v":{"v":1,"d":"1.00 kr"}},{"$f":"INDEX(KontorsPlan[],MATCH(INDEX(AvvikelserKontor[],ROW()-ROW(AvvikelserKontor[[#Headers],[Maj]]),1),INDEX(KontorsPlan[],,1),0),MATCH(AvvikelserKontor[[#Headers],[Maj]],KontorsPlan[#Headers],0))-INDEX(FaktiskaKontor[],MATCH(INDEX(AvvikelserKontor[],ROW()-ROW(AvvikelserKontor[[#Headers],[Maj]]),1),INDEX(KontorsPlan[],,1),0),MATCH(AvvikelserKontor[[#Headers],[Maj]],FaktiskaKontor[#Headers],0))","v":{"v":-6,"d":"-6.00 kr"}},{"$f":"INDEX(KontorsPlan[],MATCH(INDEX(AvvikelserKontor[],ROW()-ROW(AvvikelserKontor[[#Headers],[Jun]]),1),INDEX(KontorsPlan[],,1),0),MATCH(AvvikelserKontor[[#Headers],[Jun]],KontorsPlan[#Headers],0))-INDEX(FaktiskaKontor[],MATCH(INDEX(AvvikelserKontor[],ROW()-ROW(AvvikelserKontor[[#Headers],[Jun]]),1),INDEX(KontorsPlan[],,1),0),MATCH(AvvikelserKontor[[#Headers],[Jun]],FaktiskaKontor[#Headers],0))","v":{"v":10,"d":"10.00 kr"}},{"$f":"INDEX(KontorsPlan[],MATCH(INDEX(AvvikelserKontor[],ROW()-ROW(AvvikelserKontor[[#Headers],[Jul]]),1),INDEX(KontorsPlan[],,1),0),MATCH(AvvikelserKontor[[#Headers],[Jul]],KontorsPlan[#Headers],0))-INDEX(FaktiskaKontor[],MATCH(INDEX(AvvikelserKontor[],ROW()-ROW(AvvikelserKontor[[#Headers],[Jul]]),1),INDEX(KontorsPlan[],,1),0),MATCH(AvvikelserKontor[[#Headers],[Jul]],FaktiskaKontor[#Headers],0))","v":{"v":300,"d":"300.00 kr"}},{"$f":"INDEX(KontorsPlan[],MATCH(INDEX(AvvikelserKontor[],ROW()-ROW(AvvikelserKontor[[#Headers],[Aug]]),1),INDEX(KontorsPlan[],,1),0),MATCH(AvvikelserKontor[[#Headers],[Aug]],KontorsPlan[#Headers],0))-INDEX(FaktiskaKontor[],MATCH(INDEX(AvvikelserKontor[],ROW()-ROW(AvvikelserKontor[[#Headers],[Aug]]),1),INDEX(KontorsPlan[],,1),0),MATCH(AvvikelserKontor[[#Headers],[Aug]],FaktiskaKontor[#Headers],0))","v":{"v":300,"d":"300.00 kr"}},{"$f":"INDEX(KontorsPlan[],MATCH(INDEX(AvvikelserKontor[],ROW()-ROW(AvvikelserKontor[[#Headers],[Sep]]),1),INDEX(KontorsPlan[],,1),0),MATCH(AvvikelserKontor[[#Headers],[Sep]],KontorsPlan[#Headers],0))-INDEX(FaktiskaKontor[],MATCH(INDEX(AvvikelserKontor[],ROW()-ROW(AvvikelserKontor[[#Headers],[Sep]]),1),INDEX(KontorsPlan[],,1),0),MATCH(AvvikelserKontor[[#Headers],[Sep]],FaktiskaKontor[#Headers],0))","v":{"v":300,"d":"300.00 kr"}},{"$f":"INDEX(KontorsPlan[],MATCH(INDEX(AvvikelserKontor[],ROW()-ROW(AvvikelserKontor[[#Headers],[Okt]]),1),INDEX(KontorsPlan[],,1),0),MATCH(AvvikelserKontor[[#Headers],[Okt]],KontorsPlan[#Headers],0))-INDEX(FaktiskaKontor[],MATCH(INDEX(AvvikelserKontor[],ROW()-ROW(AvvikelserKontor[[#Headers],[Okt]]),1),INDEX(KontorsPlan[],,1),0),MATCH(AvvikelserKontor[[#Headers],[Okt]],FaktiskaKontor[#Headers],0))","v":{"v":300,"d":"300.00 kr"}},{"$f":"INDEX(KontorsPlan[],MATCH(INDEX(AvvikelserKontor[],ROW()-ROW(AvvikelserKontor[[#Headers],[Nov]]),1),INDEX(KontorsPlan[],,1),0),MATCH(AvvikelserKontor[[#Headers],[Nov]],KontorsPlan[#Headers],0))-INDEX(FaktiskaKontor[],MATCH(INDEX(AvvikelserKontor[],ROW()-ROW(AvvikelserKontor[[#Headers],[Nov]]),1),INDEX(KontorsPlan[],,1),0),MATCH(AvvikelserKontor[[#Headers],[Nov]],FaktiskaKontor[#Headers],0))","v":{"v":300,"d":"300.00 kr"}},{"$f":"INDEX(KontorsPlan[],MATCH(INDEX(AvvikelserKontor[],ROW()-ROW(AvvikelserKontor[[#Headers],[Dec]]),1),INDEX(KontorsPlan[],,1),0),MATCH(AvvikelserKontor[[#Headers],[Dec]],KontorsPlan[#Headers],0))-INDEX(FaktiskaKontor[],MATCH(INDEX(AvvikelserKontor[],ROW()-ROW(AvvikelserKontor[[#Headers],[Dec]]),1),INDEX(KontorsPlan[],,1),0),MATCH(AvvikelserKontor[[#Headers],[Dec]],FaktiskaKontor[#Headers],0))","v":{"v":300,"d":"300.00 kr"}},{"$f":"SUM(AvvikelserKontor[[#This Row],[Jan]:[Dec]])","v":{"v":1871,"d":"1,871.00 kr"}}]
[null,"Vatten",{"$f":"INDEX(KontorsPlan[],MATCH(INDEX(AvvikelserKontor[],ROW()-ROW(AvvikelserKontor[[#Headers],[Jan]]),1),INDEX(KontorsPlan[],,1),0),MATCH(AvvikelserKontor[[#Headers],[Jan]],KontorsPlan[#Headers],0))-INDEX(FaktiskaKontor[],MATCH(INDEX(AvvikelserKontor[],ROW()-ROW(AvvikelserKontor[[#Headers],[Jan]]),1),INDEX(KontorsPlan[],,1),0),MATCH(AvvikelserKontor[[#Headers],[Jan]],FaktiskaKontor[#Headers],0))","v":{"v":5,"d":"5.00 kr"}},{"$f":"INDEX(KontorsPlan[],MATCH(INDEX(AvvikelserKontor[],ROW()-ROW(AvvikelserKontor[[#Headers],[Feb]]),1),INDEX(KontorsPlan[],,1),0),MATCH(AvvikelserKontor[[#Headers],[Feb]],KontorsPlan[#Headers],0))-INDEX(FaktiskaKontor[],MATCH(INDEX(AvvikelserKontor[],ROW()-ROW(AvvikelserKontor[[#Headers],[Feb]]),1),INDEX(KontorsPlan[],,1),0),MATCH(AvvikelserKontor[[#Headers],[Feb]],FaktiskaKontor[#Headers],0))","v":{"v":7,"d":"7.00 kr"}},{"$f":"INDEX(KontorsPlan[],MATCH(INDEX(AvvikelserKontor[],ROW()-ROW(AvvikelserKontor[[#Headers],[Mar]]),1),INDEX(KontorsPlan[],,1),0),MATCH(AvvikelserKontor[[#Headers],[Mar]],KontorsPlan[#Headers],0))-INDEX(FaktiskaKontor[],MATCH(INDEX(AvvikelserKontor[],ROW()-ROW(AvvikelserKontor[[#Headers],[Mar]]),1),INDEX(KontorsPlan[],,1),0),MATCH(AvvikelserKontor[[#Headers],[Mar]],FaktiskaKontor[#Headers],0))","v":{"v":6,"d":"6.00 kr"}},{"$f":"INDEX(KontorsPlan[],MATCH(INDEX(AvvikelserKontor[],ROW()-ROW(AvvikelserKontor[[#Headers],[Apr]]),1),INDEX(KontorsPlan[],,1),0),MATCH(AvvikelserKontor[[#Headers],[Apr]],KontorsPlan[#Headers],0))-INDEX(FaktiskaKontor[],MATCH(INDEX(AvvikelserKontor[],ROW()-ROW(AvvikelserKontor[[#Headers],[Apr]]),1),INDEX(KontorsPlan[],,1),0),MATCH(AvvikelserKontor[[#Headers],[Apr]],FaktiskaKontor[#Headers],0))","v":{"v":4,"d":"4.00 kr"}},{"$f":"INDEX(KontorsPlan[],MATCH(INDEX(AvvikelserKontor[],ROW()-ROW(AvvikelserKontor[[#Headers],[Maj]]),1),INDEX(KontorsPlan[],,1),0),MATCH(AvvikelserKontor[[#Headers],[Maj]],KontorsPlan[#Headers],0))-INDEX(FaktiskaKontor[],MATCH(INDEX(AvvikelserKontor[],ROW()-ROW(AvvikelserKontor[[#Headers],[Maj]]),1),INDEX(KontorsPlan[],,1),0),MATCH(AvvikelserKontor[[#Headers],[Maj]],FaktiskaKontor[#Headers],0))","v":{"v":6,"d":"6.00 kr"}},{"$f":"INDEX(KontorsPlan[],MATCH(INDEX(AvvikelserKontor[],ROW()-ROW(AvvikelserKontor[[#Headers],[Jun]]),1),INDEX(KontorsPlan[],,1),0),MATCH(AvvikelserKontor[[#Headers],[Jun]],KontorsPlan[#Headers],0))-INDEX(FaktiskaKontor[],MATCH(INDEX(AvvikelserKontor[],ROW()-ROW(AvvikelserKontor[[#Headers],[Jun]]),1),INDEX(KontorsPlan[],,1),0),MATCH(AvvikelserKontor[[#Headers],[Jun]],FaktiskaKontor[#Headers],0))","v":{"v":4,"d":"4.00 kr"}},{"$f":"INDEX(KontorsPlan[],MATCH(INDEX(AvvikelserKontor[],ROW()-ROW(AvvikelserKontor[[#Headers],[Jul]]),1),INDEX(KontorsPlan[],,1),0),MATCH(AvvikelserKontor[[#Headers],[Jul]],KontorsPlan[#Headers],0))-INDEX(FaktiskaKontor[],MATCH(INDEX(AvvikelserKontor[],ROW()-ROW(AvvikelserKontor[[#Headers],[Jul]]),1),INDEX(KontorsPlan[],,1),0),MATCH(AvvikelserKontor[[#Headers],[Jul]],FaktiskaKontor[#Headers],0))","v":{"v":40,"d":"40.00 kr"}},{"$f":"INDEX(KontorsPlan[],MATCH(INDEX(AvvikelserKontor[],ROW()-ROW(AvvikelserKontor[[#Headers],[Aug]]),1),INDEX(KontorsPlan[],,1),0),MATCH(AvvikelserKontor[[#Headers],[Aug]],KontorsPlan[#Headers],0))-INDEX(FaktiskaKontor[],MATCH(INDEX(AvvikelserKontor[],ROW()-ROW(AvvikelserKontor[[#Headers],[Aug]]),1),INDEX(KontorsPlan[],,1),0),MATCH(AvvikelserKontor[[#Headers],[Aug]],FaktiskaKontor[#Headers],0))","v":{"v":40,"d":"40.00 kr"}},{"$f":"INDEX(KontorsPlan[],MATCH(INDEX(AvvikelserKontor[],ROW()-ROW(AvvikelserKontor[[#Headers],[Sep]]),1),INDEX(KontorsPlan[],,1),0),MATCH(AvvikelserKontor[[#Headers],[Sep]],KontorsPlan[#Headers],0))-INDEX(FaktiskaKontor[],MATCH(INDEX(AvvikelserKontor[],ROW()-ROW(AvvikelserKontor[[#Headers],[Sep]]),1),INDEX(KontorsPlan[],,1),0),MATCH(AvvikelserKontor[[#Headers],[Sep]],FaktiskaKontor[#Headers],0))","v":{"v":40,"d":"40.00 kr"}},{"$f":"INDEX(KontorsPlan[],MATCH(INDEX(AvvikelserKontor[],ROW()-ROW(AvvikelserKontor[[#Headers],[Okt]]),1),INDEX(KontorsPlan[],,1),0),MATCH(AvvikelserKontor[[#Headers],[Okt]],KontorsPlan[#Headers],0))-INDEX(FaktiskaKontor[],MATCH(INDEX(AvvikelserKontor[],ROW()-ROW(AvvikelserKontor[[#Headers],[Okt]]),1),INDEX(KontorsPlan[],,1),0),MATCH(AvvikelserKontor[[#Headers],[Okt]],FaktiskaKontor[#Headers],0))","v":{"v":40,"d":"40.00 kr"}},{"$f":"INDEX(KontorsPlan[],MATCH(INDEX(AvvikelserKontor[],ROW()-ROW(AvvikelserKontor[[#Headers],[Nov]]),1),INDEX(KontorsPlan[],,1),0),MATCH(AvvikelserKontor[[#Headers],[Nov]],KontorsPlan[#Headers],0))-INDEX(FaktiskaKontor[],MATCH(INDEX(AvvikelserKontor[],ROW()-ROW(AvvikelserKontor[[#Headers],[Nov]]),1),INDEX(KontorsPlan[],,1),0),MATCH(AvvikelserKontor[[#Headers],[Nov]],FaktiskaKontor[#Headers],0))","v":{"v":40,"d":"40.00 kr"}},{"$f":"INDEX(KontorsPlan[],MATCH(INDEX(AvvikelserKontor[],ROW()-ROW(AvvikelserKontor[[#Headers],[Dec]]),1),INDEX(KontorsPlan[],,1),0),MATCH(AvvikelserKontor[[#Headers],[Dec]],KontorsPlan[#Headers],0))-INDEX(FaktiskaKontor[],MATCH(INDEX(AvvikelserKontor[],ROW()-ROW(AvvikelserKontor[[#Headers],[Dec]]),1),INDEX(KontorsPlan[],,1),0),MATCH(AvvikelserKontor[[#Headers],[Dec]],FaktiskaKontor[#Headers],0))","v":{"v":40,"d":"40.00 kr"}},{"$f":"SUM(AvvikelserKontor[[#This Row],[Jan]:[Dec]])","v":{"v":272,"d":"272.00 kr"}}]
[null,"Telefon",{"$f":"INDEX(KontorsPlan[],MATCH(INDEX(AvvikelserKontor[],ROW()-ROW(AvvikelserKontor[[#Headers],[Jan]]),1),INDEX(KontorsPlan[],,1),0),MATCH(AvvikelserKontor[[#Headers],[Jan]],KontorsPlan[#Headers],0))-INDEX(FaktiskaKontor[],MATCH(INDEX(AvvikelserKontor[],ROW()-ROW(AvvikelserKontor[[#Headers],[Jan]]),1),INDEX(KontorsPlan[],,1),0),MATCH(AvvikelserKontor[[#Headers],[Jan]],FaktiskaKontor[#Headers],0))","v":{"v":26,"d":"26.00 kr"}},{"$f":"INDEX(KontorsPlan[],MATCH(INDEX(AvvikelserKontor[],ROW()-ROW(AvvikelserKontor[[#Headers],[Feb]]),1),INDEX(KontorsPlan[],,1),0),MATCH(AvvikelserKontor[[#Headers],[Feb]],KontorsPlan[#Headers],0))-INDEX(FaktiskaKontor[],MATCH(INDEX(AvvikelserKontor[],ROW()-ROW(AvvikelserKontor[[#Headers],[Feb]]),1),INDEX(KontorsPlan[],,1),0),MATCH(AvvikelserKontor[[#Headers],[Feb]],FaktiskaKontor[#Headers],0))","v":{"v":15,"d":"15.00 kr"}},{"$f":"INDEX(KontorsPlan[],MATCH(INDEX(AvvikelserKontor[],ROW()-ROW(AvvikelserKontor[[#Headers],[Mar]]),1),INDEX(KontorsPlan[],,1),0),MATCH(AvvikelserKontor[[#Headers],[Mar]],KontorsPlan[#Headers],0))-INDEX(FaktiskaKontor[],MATCH(INDEX(AvvikelserKontor[],ROW()-ROW(AvvikelserKontor[[#Headers],[Mar]]),1),INDEX(KontorsPlan[],,1),0),MATCH(AvvikelserKontor[[#Headers],[Mar]],FaktiskaKontor[#Headers],0))","v":{"v":-15,"d":"-15.00 kr"}},{"$f":"INDEX(KontorsPlan[],MATCH(INDEX(AvvikelserKontor[],ROW()-ROW(AvvikelserKontor[[#Headers],[Apr]]),1),INDEX(KontorsPlan[],,1),0),MATCH(AvvikelserKontor[[#Headers],[Apr]],KontorsPlan[#Headers],0))-INDEX(FaktiskaKontor[],MATCH(INDEX(AvvikelserKontor[],ROW()-ROW(AvvikelserKontor[[#Headers],[Apr]]),1),INDEX(KontorsPlan[],,1),0),MATCH(AvvikelserKontor[[#Headers],[Apr]],FaktiskaKontor[#Headers],0))","v":{"v":5,"d":"5.00 kr"}},{"$f":"INDEX(KontorsPlan[],MATCH(INDEX(AvvikelserKontor[],ROW()-ROW(AvvikelserKontor[[#Headers],[Maj]]),1),INDEX(KontorsPlan[],,1),0),MATCH(AvvikelserKontor[[#Headers],[Maj]],KontorsPlan[#Headers],0))-INDEX(FaktiskaKontor[],MATCH(INDEX(AvvikelserKontor[],ROW()-ROW(AvvikelserKontor[[#Headers],[Maj]]),1),INDEX(KontorsPlan[],,1),0),MATCH(AvvikelserKontor[[#Headers],[Maj]],FaktiskaKontor[#Headers],0))","v":{"v":5,"d":"5.00 kr"}},{"$f":"INDEX(KontorsPlan[],MATCH(INDEX(AvvikelserKontor[],ROW()-ROW(AvvikelserKontor[[#Headers],[Jun]]),1),INDEX(KontorsPlan[],,1),0),MATCH(AvvikelserKontor[[#Headers],[Jun]],KontorsPlan[#Headers],0))-INDEX(FaktiskaKontor[],MATCH(INDEX(AvvikelserKontor[],ROW()-ROW(AvvikelserKontor[[#Headers],[Jun]]),1),INDEX(KontorsPlan[],,1),0),MATCH(AvvikelserKontor[[#Headers],[Jun]],FaktiskaKontor[#Headers],0))","v":{"v":30,"d":"30.00 kr"}},{"$f":"INDEX(KontorsPlan[],MATCH(INDEX(AvvikelserKontor[],ROW()-ROW(AvvikelserKontor[[#Headers],[Jul]]),1),INDEX(KontorsPlan[],,1),0),MATCH(AvvikelserKontor[[#Headers],[Jul]],KontorsPlan[#Headers],0))-INDEX(FaktiskaKontor[],MATCH(INDEX(AvvikelserKontor[],ROW()-ROW(AvvikelserKontor[[#Headers],[Jul]]),1),INDEX(KontorsPlan[],,1),0),MATCH(AvvikelserKontor[[#Headers],[Jul]],FaktiskaKontor[#Headers],0))","v":{"v":250,"d":"250.00 kr"}},{"$f":"INDEX(KontorsPlan[],MATCH(INDEX(AvvikelserKontor[],ROW()-ROW(AvvikelserKontor[[#Headers],[Aug]]),1),INDEX(KontorsPlan[],,1),0),MATCH(AvvikelserKontor[[#Headers],[Aug]],KontorsPlan[#Headers],0))-INDEX(FaktiskaKontor[],MATCH(INDEX(AvvikelserKontor[],ROW()-ROW(AvvikelserKontor[[#Headers],[Aug]]),1),INDEX(KontorsPlan[],,1),0),MATCH(AvvikelserKontor[[#Headers],[Aug]],FaktiskaKontor[#Headers],0))","v":{"v":250,"d":"250.00 kr"}},{"$f":"INDEX(KontorsPlan[],MATCH(INDEX(AvvikelserKontor[],ROW()-ROW(AvvikelserKontor[[#Headers],[Sep]]),1),INDEX(KontorsPlan[],,1),0),MATCH(AvvikelserKontor[[#Headers],[Sep]],KontorsPlan[#Headers],0))-INDEX(FaktiskaKontor[],MATCH(INDEX(AvvikelserKontor[],ROW()-ROW(AvvikelserKontor[[#Headers],[Sep]]),1),INDEX(KontorsPlan[],,1),0),MATCH(AvvikelserKontor[[#Headers],[Sep]],FaktiskaKontor[#Headers],0))","v":{"v":250,"d":"250.00 kr"}},{"$f":"INDEX(KontorsPlan[],MATCH(INDEX(AvvikelserKontor[],ROW()-ROW(AvvikelserKontor[[#Headers],[Okt]]),1),INDEX(KontorsPlan[],,1),0),MATCH(AvvikelserKontor[[#Headers],[Okt]],KontorsPlan[#Headers],0))-INDEX(FaktiskaKontor[],MATCH(INDEX(AvvikelserKontor[],ROW()-ROW(AvvikelserKontor[[#Headers],[Okt]]),1),INDEX(KontorsPlan[],,1),0),MATCH(AvvikelserKontor[[#Headers],[Okt]],FaktiskaKontor[#Headers],0))","v":{"v":250,"d":"250.00 kr"}},{"$f":"INDEX(KontorsPlan[],MATCH(INDEX(AvvikelserKontor[],ROW()-ROW(AvvikelserKontor[[#Headers],[Nov]]),1),INDEX(KontorsPlan[],,1),0),MATCH(AvvikelserKontor[[#Headers],[Nov]],KontorsPlan[#Headers],0))-INDEX(FaktiskaKontor[],MATCH(INDEX(AvvikelserKontor[],ROW()-ROW(AvvikelserKontor[[#Headers],[Nov]]),1),INDEX(KontorsPlan[],,1),0),MATCH(AvvikelserKontor[[#Headers],[Nov]],FaktiskaKontor[#Headers],0))","v":{"v":250,"d":"250.00 kr"}},{"$f":"INDEX(KontorsPlan[],MATCH(INDEX(AvvikelserKontor[],ROW()-ROW(AvvikelserKontor[[#Headers],[Dec]]),1),INDEX(KontorsPlan[],,1),0),MATCH(AvvikelserKontor[[#Headers],[Dec]],KontorsPlan[#Headers],0))-INDEX(FaktiskaKontor[],MATCH(INDEX(AvvikelserKontor[],ROW()-ROW(AvvikelserKontor[[#Headers],[Dec]]),1),INDEX(KontorsPlan[],,1),0),MATCH(AvvikelserKontor[[#Headers],[Dec]],FaktiskaKontor[#Headers],0))","v":{"v":250,"d":"250.00 kr"}},{"$f":"SUM(AvvikelserKontor[[#This Row],[Jan]:[Dec]])","v":{"v":1566,"d":"1,566.00 kr"}}]
[null,"Internetåtkomst",{"$f":"INDEX(KontorsPlan[],MATCH(INDEX(AvvikelserKontor[],ROW()-ROW(AvvikelserKontor[[#Headers],[Jan]]),1),INDEX(KontorsPlan[],,1),0),MATCH(AvvikelserKontor[[#Headers],[Jan]],KontorsPlan[#Headers],0))-INDEX(FaktiskaKontor[],MATCH(INDEX(AvvikelserKontor[],ROW()-ROW(AvvikelserKontor[[#Headers],[Jan]]),1),INDEX(KontorsPlan[],,1),0),MATCH(AvvikelserKontor[[#Headers],[Jan]],FaktiskaKontor[#Headers],0))","v":{"v":0,"d":"0.00 kr"}},{"$f":"INDEX(KontorsPlan[],MATCH(INDEX(AvvikelserKontor[],ROW()-ROW(AvvikelserKontor[[#Headers],[Feb]]),1),INDEX(KontorsPlan[],,1),0),MATCH(AvvikelserKontor[[#Headers],[Feb]],KontorsPlan[#Headers],0))-INDEX(FaktiskaKontor[],MATCH(INDEX(AvvikelserKontor[],ROW()-ROW(AvvikelserKontor[[#Headers],[Feb]]),1),INDEX(KontorsPlan[],,1),0),MATCH(AvvikelserKontor[[#Headers],[Feb]],FaktiskaKontor[#Headers],0))","v":{"v":0,"d":"0.00 kr"}},{"$f":"INDEX(KontorsPlan[],MATCH(INDEX(AvvikelserKontor[],ROW()-ROW(AvvikelserKontor[[#Headers],[Mar]]),1),INDEX(KontorsPlan[],,1),0),MATCH(AvvikelserKontor[[#Headers],[Mar]],KontorsPlan[#Headers],0))-INDEX(FaktiskaKontor[],MATCH(INDEX(AvvikelserKontor[],ROW()-ROW(AvvikelserKontor[[#Headers],[Mar]]),1),INDEX(KontorsPlan[],,1),0),MATCH(AvvikelserKontor[[#Headers],[Mar]],FaktiskaKontor[#Headers],0))","v":{"v":0,"d":"0.00 kr"}},{"$f":"INDEX(KontorsPlan[],MATCH(INDEX(AvvikelserKontor[],ROW()-ROW(AvvikelserKontor[[#Headers],[Apr]]),1),INDEX(KontorsPlan[],,1),0),MATCH(AvvikelserKontor[[#Headers],[Apr]],KontorsPlan[#Headers],0))-INDEX(FaktiskaKontor[],MATCH(INDEX(AvvikelserKontor[],ROW()-ROW(AvvikelserKontor[[#Headers],[Apr]]),1),INDEX(KontorsPlan[],,1),0),MATCH(AvvikelserKontor[[#Headers],[Apr]],FaktiskaKontor[#Headers],0))","v":{"v":0,"d":"0.00 kr"}},{"$f":"INDEX(KontorsPlan[],MATCH(INDEX(AvvikelserKontor[],ROW()-ROW(AvvikelserKontor[[#Headers],[Maj]]),1),INDEX(KontorsPlan[],,1),0),MATCH(AvvikelserKontor[[#Headers],[Maj]],KontorsPlan[#Headers],0))-INDEX(FaktiskaKontor[],MATCH(INDEX(AvvikelserKontor[],ROW()-ROW(AvvikelserKontor[[#Headers],[Maj]]),1),INDEX(KontorsPlan[],,1),0),MATCH(AvvikelserKontor[[#Headers],[Maj]],FaktiskaKontor[#Headers],0))","v":{"v":0,"d":"0.00 kr"}},{"$f":"INDEX(KontorsPlan[],MATCH(INDEX(AvvikelserKontor[],ROW()-ROW(AvvikelserKontor[[#Headers],[Jun]]),1),INDEX(KontorsPlan[],,1),0),MATCH(AvvikelserKontor[[#Headers],[Jun]],KontorsPlan[#Headers],0))-INDEX(FaktiskaKontor[],MATCH(INDEX(AvvikelserKontor[],ROW()-ROW(AvvikelserKontor[[#Headers],[Jun]]),1),INDEX(KontorsPlan[],,1),0),MATCH(AvvikelserKontor[[#Headers],[Jun]],FaktiskaKontor[#Headers],0))","v":{"v":0,"d":"0.00 kr"}},{"$f":"INDEX(KontorsPlan[],MATCH(INDEX(AvvikelserKontor[],ROW()-ROW(AvvikelserKontor[[#Headers],[Jul]]),1),INDEX(KontorsPlan[],,1),0),MATCH(AvvikelserKontor[[#Headers],[Jul]],KontorsPlan[#Headers],0))-INDEX(FaktiskaKontor[],MATCH(INDEX(AvvikelserKontor[],ROW()-ROW(AvvikelserKontor[[#Headers],[Jul]]),1),INDEX(KontorsPlan[],,1),0),MATCH(AvvikelserKontor[[#Headers],[Jul]],FaktiskaKontor[#Headers],0))","v":{"v":180,"d":"180.00 kr"}},{"$f":"INDEX(KontorsPlan[],MATCH(INDEX(AvvikelserKontor[],ROW()-ROW(AvvikelserKontor[[#Headers],[Aug]]),1),INDEX(KontorsPlan[],,1),0),MATCH(AvvikelserKontor[[#Headers],[Aug]],KontorsPlan[#Headers],0))-INDEX(FaktiskaKontor[],MATCH(INDEX(AvvikelserKontor[],ROW()-ROW(AvvikelserKontor[[#Headers],[Aug]]),1),INDEX(KontorsPlan[],,1),0),MATCH(AvvikelserKontor[[#Headers],[Aug]],FaktiskaKontor[#Headers],0))","v":{"v":180,"d":"180.00 kr"}},{"$f":"INDEX(KontorsPlan[],MATCH(INDEX(AvvikelserKontor[],ROW()-ROW(AvvikelserKontor[[#Headers],[Sep]]),1),INDEX(KontorsPlan[],,1),0),MATCH(AvvikelserKontor[[#Headers],[Sep]],KontorsPlan[#Headers],0))-INDEX(FaktiskaKontor[],MATCH(INDEX(AvvikelserKontor[],ROW()-ROW(AvvikelserKontor[[#Headers],[Sep]]),1),INDEX(KontorsPlan[],,1),0),MATCH(AvvikelserKontor[[#Headers],[Sep]],FaktiskaKontor[#Headers],0))","v":{"v":180,"d":"180.00 kr"}},{"$f":"INDEX(KontorsPlan[],MATCH(INDEX(AvvikelserKontor[],ROW()-ROW(AvvikelserKontor[[#Headers],[Okt]]),1),INDEX(KontorsPlan[],,1),0),MATCH(AvvikelserKontor[[#Headers],[Okt]],KontorsPlan[#Headers],0))-INDEX(FaktiskaKontor[],MATCH(INDEX(AvvikelserKontor[],ROW()-ROW(AvvikelserKontor[[#Headers],[Okt]]),1),INDEX(KontorsPlan[],,1),0),MATCH(AvvikelserKontor[[#Headers],[Okt]],FaktiskaKontor[#Headers],0))","v":{"v":180,"d":"180.00 kr"}},{"$f":"INDEX(KontorsPlan[],MATCH(INDEX(AvvikelserKontor[],ROW()-ROW(AvvikelserKontor[[#Headers],[Nov]]),1),INDEX(KontorsPlan[],,1),0),MATCH(AvvikelserKontor[[#Headers],[Nov]],KontorsPlan[#Headers],0))-INDEX(FaktiskaKontor[],MATCH(INDEX(AvvikelserKontor[],ROW()-ROW(AvvikelserKontor[[#Headers],[Nov]]),1),INDEX(KontorsPlan[],,1),0),MATCH(AvvikelserKontor[[#Headers],[Nov]],FaktiskaKontor[#Headers],0))","v":{"v":180,"d":"180.00 kr"}},{"$f":"INDEX(KontorsPlan[],MATCH(INDEX(AvvikelserKontor[],ROW()-ROW(AvvikelserKontor[[#Headers],[Dec]]),1),INDEX(KontorsPlan[],,1),0),MATCH(AvvikelserKontor[[#Headers],[Dec]],KontorsPlan[#Headers],0))-INDEX(FaktiskaKontor[],MATCH(INDEX(AvvikelserKontor[],ROW()-ROW(AvvikelserKontor[[#Headers],[Dec]]),1),INDEX(KontorsPlan[],,1),0),MATCH(AvvikelserKontor[[#Headers],[Dec]],FaktiskaKontor[#Headers],0))","v":{"v":180,"d":"180.00 kr"}},{"$f":"SUM(AvvikelserKontor[[#This Row],[Jan]:[Dec]])","v":{"v":1080,"d":"1,080.00 kr"}}]
[null,"Kontorsmaterial",{"$f":"INDEX(KontorsPlan[],MATCH(INDEX(AvvikelserKontor[],ROW()-ROW(AvvikelserKontor[[#Headers],[Jan]]),1),INDEX(KontorsPlan[],,1),0),MATCH(AvvikelserKontor[[#Headers],[Jan]],KontorsPlan[#Headers],0))-INDEX(FaktiskaKontor[],MATCH(INDEX(AvvikelserKontor[],ROW()-ROW(AvvikelserKontor[[#Headers],[Jan]]),1),INDEX(KontorsPlan[],,1),0),MATCH(AvvikelserKontor[[#Headers],[Jan]],FaktiskaKontor[#Headers],0))","v":{"v":-56,"d":"-56.00 kr"}},{"$f":"INDEX(KontorsPlan[],MATCH(INDEX(AvvikelserKontor[],ROW()-ROW(AvvikelserKontor[[#Headers],[Feb]]),1),INDEX(KontorsPlan[],,1),0),MATCH(AvvikelserKontor[[#Headers],[Feb]],KontorsPlan[#Headers],0))-INDEX(FaktiskaKontor[],MATCH(INDEX(AvvikelserKontor[],ROW()-ROW(AvvikelserKontor[[#Headers],[Feb]]),1),INDEX(KontorsPlan[],,1),0),MATCH(AvvikelserKontor[[#Headers],[Feb]],FaktiskaKontor[#Headers],0))","v":{"v":58,"d":"58.00 kr"}},{"$f":"INDEX(KontorsPlan[],MATCH(INDEX(AvvikelserKontor[],ROW()-ROW(AvvikelserKontor[[#Headers],[Mar]]),1),INDEX(KontorsPlan[],,1),0),MATCH(AvvikelserKontor[[#Headers],[Mar]],KontorsPlan[#Headers],0))-INDEX(FaktiskaKontor[],MATCH(INDEX(AvvikelserKontor[],ROW()-ROW(AvvikelserKontor[[#Headers],[Mar]]),1),INDEX(KontorsPlan[],,1),0),MATCH(AvvikelserKontor[[#Headers],[Mar]],FaktiskaKontor[#Headers],0))","v":{"v":40,"d":"40.00 kr"}},{"$f":"INDEX(KontorsPlan[],MATCH(INDEX(AvvikelserKontor[],ROW()-ROW(AvvikelserKontor[[#Headers],[Apr]]),1),INDEX(KontorsPlan[],,1),0),MATCH(AvvikelserKontor[[#Headers],[Apr]],KontorsPlan[#Headers],0))-INDEX(FaktiskaKontor[],MATCH(INDEX(AvvikelserKontor[],ROW()-ROW(AvvikelserKontor[[#Headers],[Apr]]),1),INDEX(KontorsPlan[],,1),0),MATCH(AvvikelserKontor[[#Headers],[Apr]],FaktiskaKontor[#Headers],0))","v":{"v":-21,"d":"-21.00 kr"}},{"$f":"INDEX(KontorsPlan[],MATCH(INDEX(AvvikelserKontor[],ROW()-ROW(AvvikelserKontor[[#Headers],[Maj]]),1),INDEX(KontorsPlan[],,1),0),MATCH(AvvikelserKontor[[#Headers],[Maj]],KontorsPlan[#Headers],0))-INDEX(FaktiskaKontor[],MATCH(INDEX(AvvikelserKontor[],ROW()-ROW(AvvikelserKontor[[#Headers],[Maj]]),1),INDEX(KontorsPlan[],,1),0),MATCH(AvvikelserKontor[[#Headers],[Maj]],FaktiskaKontor[#Headers],0))","v":{"v":-56,"d":"-56.00 kr"}},{"$f":"INDEX(KontorsPlan[],MATCH(INDEX(AvvikelserKontor[],ROW()-ROW(AvvikelserKontor[[#Headers],[Jun]]),1),INDEX(KontorsPlan[],,1),0),MATCH(AvvikelserKontor[[#Headers],[Jun]],KontorsPlan[#Headers],0))-INDEX(FaktiskaKontor[],MATCH(INDEX(AvvikelserKontor[],ROW()-ROW(AvvikelserKontor[[#Headers],[Jun]]),1),INDEX(KontorsPlan[],,1),0),MATCH(AvvikelserKontor[[#Headers],[Jun]],FaktiskaKontor[#Headers],0))","v":{"v":-40,"d":"-40.00 kr"}},{"$f":"INDEX(KontorsPlan[],MATCH(INDEX(AvvikelserKontor[],ROW()-ROW(AvvikelserKontor[[#Headers],[Jul]]),1),INDEX(KontorsPlan[],,1),0),MATCH(AvvikelserKontor[[#Headers],[Jul]],KontorsPlan[#Headers],0))-INDEX(FaktiskaKontor[],MATCH(INDEX(AvvikelserKontor[],ROW()-ROW(AvvikelserKontor[[#Headers],[Jul]]),1),INDEX(KontorsPlan[],,1),0),MATCH(AvvikelserKontor[[#Headers],[Jul]],FaktiskaKontor[#Headers],0))","v":{"v":200,"d":"200.00 kr"}},{"$f":"INDEX(KontorsPlan[],MATCH(INDEX(AvvikelserKontor[],ROW()-ROW(AvvikelserKontor[[#Headers],[Aug]]),1),INDEX(KontorsPlan[],,1),0),MATCH(AvvikelserKontor[[#Headers],[Aug]],KontorsPlan[#Headers],0))-INDEX(FaktiskaKontor[],MATCH(INDEX(AvvikelserKontor[],ROW()-ROW(AvvikelserKontor[[#Headers],[Aug]]),1),INDEX(KontorsPlan[],,1),0),MATCH(AvvikelserKontor[[#Headers],[Aug]],FaktiskaKontor[#Headers],0))","v":{"v":200,"d":"200.00 kr"}},{"$f":"INDEX(KontorsPlan[],MATCH(INDEX(AvvikelserKontor[],ROW()-ROW(AvvikelserKontor[[#Headers],[Sep]]),1),INDEX(KontorsPlan[],,1),0),MATCH(AvvikelserKontor[[#Headers],[Sep]],KontorsPlan[#Headers],0))-INDEX(FaktiskaKontor[],MATCH(INDEX(AvvikelserKontor[],ROW()-ROW(AvvikelserKontor[[#Headers],[Sep]]),1),INDEX(KontorsPlan[],,1),0),MATCH(AvvikelserKontor[[#Headers],[Sep]],FaktiskaKontor[#Headers],0))","v":{"v":200,"d":"200.00 kr"}},{"$f":"INDEX(KontorsPlan[],MATCH(INDEX(AvvikelserKontor[],ROW()-ROW(AvvikelserKontor[[#Headers],[Okt]]),1),INDEX(KontorsPlan[],,1),0),MATCH(AvvikelserKontor[[#Headers],[Okt]],KontorsPlan[#Headers],0))-INDEX(FaktiskaKontor[],MATCH(INDEX(AvvikelserKontor[],ROW()-ROW(AvvikelserKontor[[#Headers],[Okt]]),1),INDEX(KontorsPlan[],,1),0),MATCH(AvvikelserKontor[[#Headers],[Okt]],FaktiskaKontor[#Headers],0))","v":{"v":200,"d":"200.00 kr"}},{"$f":"INDEX(KontorsPlan[],MATCH(INDEX(AvvikelserKontor[],ROW()-ROW(AvvikelserKontor[[#Headers],[Nov]]),1),INDEX(KontorsPlan[],,1),0),MATCH(AvvikelserKontor[[#Headers],[Nov]],KontorsPlan[#Headers],0))-INDEX(FaktiskaKontor[],MATCH(INDEX(AvvikelserKontor[],ROW()-ROW(AvvikelserKontor[[#Headers],[Nov]]),1),INDEX(KontorsPlan[],,1),0),MATCH(AvvikelserKontor[[#Headers],[Nov]],FaktiskaKontor[#Headers],0))","v":{"v":200,"d":"200.00 kr"}},{"$f":"INDEX(KontorsPlan[],MATCH(INDEX(AvvikelserKontor[],ROW()-ROW(AvvikelserKontor[[#Headers],[Dec]]),1),INDEX(KontorsPlan[],,1),0),MATCH(AvvikelserKontor[[#Headers],[Dec]],KontorsPlan[#Headers],0))-INDEX(FaktiskaKontor[],MATCH(INDEX(AvvikelserKontor[],ROW()-ROW(AvvikelserKontor[[#Headers],[Dec]]),1),INDEX(KontorsPlan[],,1),0),MATCH(AvvikelserKontor[[#Headers],[Dec]],FaktiskaKontor[#Headers],0))","v":{"v":200,"d":"200.00 kr"}},{"$f":"SUM(AvvikelserKontor[[#This Row],[Jan]:[Dec]])","v":{"v":1125,"d":"1,125.00 kr"}}]
[null,"Säkerhet",{"$f":"INDEX(KontorsPlan[],MATCH(INDEX(AvvikelserKontor[],ROW()-ROW(AvvikelserKontor[[#Headers],[Jan]]),1),INDEX(KontorsPlan[],,1),0),MATCH(AvvikelserKontor[[#Headers],[Jan]],KontorsPlan[#Headers],0))-INDEX(FaktiskaKontor[],MATCH(INDEX(AvvikelserKontor[],ROW()-ROW(AvvikelserKontor[[#Headers],[Jan]]),1),INDEX(KontorsPlan[],,1),0),MATCH(AvvikelserKontor[[#Headers],[Jan]],FaktiskaKontor[#Headers],0))","v":{"v":0,"d":"0.00 kr"}},{"$f":"INDEX(KontorsPlan[],MATCH(INDEX(AvvikelserKontor[],ROW()-ROW(AvvikelserKontor[[#Headers],[Feb]]),1),INDEX(KontorsPlan[],,1),0),MATCH(AvvikelserKontor[[#Headers],[Feb]],KontorsPlan[#Headers],0))-INDEX(FaktiskaKontor[],MATCH(INDEX(AvvikelserKontor[],ROW()-ROW(AvvikelserKontor[[#Headers],[Feb]]),1),INDEX(KontorsPlan[],,1),0),MATCH(AvvikelserKontor[[#Headers],[Feb]],FaktiskaKontor[#Headers],0))","v":{"v":0,"d":"0.00 kr"}},{"$f":"INDEX(KontorsPlan[],MATCH(INDEX(AvvikelserKontor[],ROW()-ROW(AvvikelserKontor[[#Headers],[Mar]]),1),INDEX(KontorsPlan[],,1),0),MATCH(AvvikelserKontor[[#Headers],[Mar]],KontorsPlan[#Headers],0))-INDEX(FaktiskaKontor[],MATCH(INDEX(AvvikelserKontor[],ROW()-ROW(AvvikelserKontor[[#Headers],[Mar]]),1),INDEX(KontorsPlan[],,1),0),MATCH(AvvikelserKontor[[#Headers],[Mar]],FaktiskaKontor[#Headers],0))","v":{"v":0,"d":"0.00 kr"}},{"$f":"INDEX(KontorsPlan[],MATCH(INDEX(AvvikelserKontor[],ROW()-ROW(AvvikelserKontor[[#Headers],[Apr]]),1),INDEX(KontorsPlan[],,1),0),MATCH(AvvikelserKontor[[#Headers],[Apr]],KontorsPlan[#Headers],0))-INDEX(FaktiskaKontor[],MATCH(INDEX(AvvikelserKontor[],ROW()-ROW(AvvikelserKontor[[#Headers],[Apr]]),1),INDEX(KontorsPlan[],,1),0),MATCH(AvvikelserKontor[[#Headers],[Apr]],FaktiskaKontor[#Headers],0))","v":{"v":0,"d":"0.00 kr"}},{"$f":"INDEX(KontorsPlan[],MATCH(INDEX(AvvikelserKontor[],ROW()-ROW(AvvikelserKontor[[#Headers],[Maj]]),1),INDEX(KontorsPlan[],,1),0),MATCH(AvvikelserKontor[[#Headers],[Maj]],KontorsPlan[#Headers],0))-INDEX(FaktiskaKontor[],MATCH(INDEX(AvvikelserKontor[],ROW()-ROW(AvvikelserKontor[[#Headers],[Maj]]),1),INDEX(KontorsPlan[],,1),0),MATCH(AvvikelserKontor[[#Headers],[Maj]],FaktiskaKontor[#Headers],0))","v":{"v":0,"d":"0.00 kr"}},{"$f":"INDEX(KontorsPlan[],MATCH(INDEX(AvvikelserKontor[],ROW()-ROW(AvvikelserKontor[[#Headers],[Jun]]),1),INDEX(KontorsPlan[],,1),0),MATCH(AvvikelserKontor[[#Headers],[Jun]],KontorsPlan[#Headers],0))-INDEX(FaktiskaKontor[],MATCH(INDEX(AvvikelserKontor[],ROW()-ROW(AvvikelserKontor[[#Headers],[Jun]]),1),INDEX(KontorsPlan[],,1),0),MATCH(AvvikelserKontor[[#Headers],[Jun]],FaktiskaKontor[#Headers],0))","v":{"v":0,"d":"0.00 kr"}},{"$f":"INDEX(KontorsPlan[],MATCH(INDEX(AvvikelserKontor[],ROW()-ROW(AvvikelserKontor[[#Headers],[Jul]]),1),INDEX(KontorsPlan[],,1),0),MATCH(AvvikelserKontor[[#Headers],[Jul]],KontorsPlan[#Headers],0))-INDEX(FaktiskaKontor[],MATCH(INDEX(AvvikelserKontor[],ROW()-ROW(AvvikelserKontor[[#Headers],[Jul]]),1),INDEX(KontorsPlan[],,1),0),MATCH(AvvikelserKontor[[#Headers],[Jul]],FaktiskaKontor[#Headers],0))","v":{"v":600,"d":"600.00 kr"}},{"$f":"INDEX(KontorsPlan[],MATCH(INDEX(AvvikelserKontor[],ROW()-ROW(AvvikelserKontor[[#Headers],[Aug]]),1),INDEX(KontorsPlan[],,1),0),MATCH(AvvikelserKontor[[#Headers],[Aug]],KontorsPlan[#Headers],0))-INDEX(FaktiskaKontor[],MATCH(INDEX(AvvikelserKontor[],ROW()-ROW(AvvikelserKontor[[#Headers],[Aug]]),1),INDEX(KontorsPlan[],,1),0),MATCH(AvvikelserKontor[[#Headers],[Aug]],FaktiskaKontor[#Headers],0))","v":{"v":600,"d":"600.00 kr"}},{"$f":"INDEX(KontorsPlan[],MATCH(INDEX(AvvikelserKontor[],ROW()-ROW(AvvikelserKontor[[#Headers],[Sep]]),1),INDEX(KontorsPlan[],,1),0),MATCH(AvvikelserKontor[[#Headers],[Sep]],KontorsPlan[#Headers],0))-INDEX(FaktiskaKontor[],MATCH(INDEX(AvvikelserKontor[],ROW()-ROW(AvvikelserKontor[[#Headers],[Sep]]),1),INDEX(KontorsPlan[],,1),0),MATCH(AvvikelserKontor[[#Headers],[Sep]],FaktiskaKontor[#Headers],0))","v":{"v":600,"d":"600.00 kr"}},{"$f":"INDEX(KontorsPlan[],MATCH(INDEX(AvvikelserKontor[],ROW()-ROW(AvvikelserKontor[[#Headers],[Okt]]),1),INDEX(KontorsPlan[],,1),0),MATCH(AvvikelserKontor[[#Headers],[Okt]],KontorsPlan[#Headers],0))-INDEX(FaktiskaKontor[],MATCH(INDEX(AvvikelserKontor[],ROW()-ROW(AvvikelserKontor[[#Headers],[Okt]]),1),INDEX(KontorsPlan[],,1),0),MATCH(AvvikelserKontor[[#Headers],[Okt]],FaktiskaKontor[#Headers],0))","v":{"v":600,"d":"600.00 kr"}},{"$f":"INDEX(KontorsPlan[],MATCH(INDEX(AvvikelserKontor[],ROW()-ROW(AvvikelserKontor[[#Headers],[Nov]]),1),INDEX(KontorsPlan[],,1),0),MATCH(AvvikelserKontor[[#Headers],[Nov]],KontorsPlan[#Headers],0))-INDEX(FaktiskaKontor[],MATCH(INDEX(AvvikelserKontor[],ROW()-ROW(AvvikelserKontor[[#Headers],[Nov]]),1),INDEX(KontorsPlan[],,1),0),MATCH(AvvikelserKontor[[#Headers],[Nov]],FaktiskaKontor[#Headers],0))","v":{"v":600,"d":"600.00 kr"}},{"$f":"INDEX(KontorsPlan[],MATCH(INDEX(AvvikelserKontor[],ROW()-ROW(AvvikelserKontor[[#Headers],[Dec]]),1),INDEX(KontorsPlan[],,1),0),MATCH(AvvikelserKontor[[#Headers],[Dec]],KontorsPlan[#Headers],0))-INDEX(FaktiskaKontor[],MATCH(INDEX(AvvikelserKontor[],ROW()-ROW(AvvikelserKontor[[#Headers],[Dec]]),1),INDEX(KontorsPlan[],,1),0),MATCH(AvvikelserKontor[[#Headers],[Dec]],FaktiskaKontor[#Headers],0))","v":{"v":600,"d":"600.00 kr"}},{"$f":"SUM(AvvikelserKontor[[#This Row],[Jan]:[Dec]])","v":{"v":3600,"d":"3,600.00 kr"}}]
[null,"Delsumma",{"$f":"SUBTOTAL(109,AvvikelserKontor[Jan])","v":{"v":-17,"d":"-17.00 kr"}},{"$f":"SUBTOTAL(109,AvvikelserKontor[Feb])","v":{"v":72,"d":"72.00 kr"}},{"$f":"SUBTOTAL(109,AvvikelserKontor[Mar])","v":{"v":78,"d":"78.00 kr"}},{"$f":"SUBTOTAL(109,AvvikelserKontor[Apr])","v":{"v":-141,"d":"-141.00 kr"}},{"$f":"SUBTOTAL(109,AvvikelserKontor[Maj])","v":{"v":-38,"d":"-38.00 kr"}},{"$f":"SUBTOTAL(109,AvvikelserKontor[Jun])","v":{"v":16,"d":"16.00 kr"}},{"$f":"SUBTOTAL(109,AvvikelserKontor[Jul])","v":{"v":11470,"d":"11,470.00 kr"}},{"$f":"SUBTOTAL(109,AvvikelserKontor[Aug])","v":{"v":11470,"d":"11,470.00 kr"}},{"$f":"SUBTOTAL(109,AvvikelserKontor[Sep])","v":{"v":11470,"d":"11,470.00 kr"}},{"$f":"SUBTOTAL(109,AvvikelserKontor[Okt])","v":{"v":11470,"d":"11,470.00 kr"}},{"$f":"SUBTOTAL(109,AvvikelserKontor[Nov])","v":{"v":11770,"d":"11,770.00 kr"}},{"$f":"SUBTOTAL(109,AvvikelserKontor[Dec])","v":{"v":11770,"d":"11,770.00 kr"}},{"$f":"SUBTOTAL(109,AvvikelserKontor[ÅR])","v":{"v":69390,"d":"69,390.00 kr"}}]
[]
[null,"Marknadsföringskostnader","Jan","Feb","Mar","Apr","Maj","Jun","Jul","Aug","Sep","Okt","Nov","Dec","ÅR"]
[null,"Webbplatsvärd",{"$f":"INDEX(PlaneradeMarknadsföring[],MATCH(INDEX(AvvikelserMarknadsföring[],ROW()-ROW(AvvikelserMarknadsföring[[#Headers],[Jan]]),1),INDEX(PlaneradeMarknadsföring[],,1),0),MATCH(AvvikelserMarknadsföring[[#Headers],[Jan]],PlaneradeMarknadsföring[#Headers],0))-INDEX(FaktiskaMarknadsföring[],MATCH(INDEX(AvvikelserMarknadsföring[],ROW()-ROW(AvvikelserMarknadsföring[[#Headers],[Jan]]),1),INDEX(PlaneradeMarknadsföring[],,1),0),MATCH(AvvikelserMarknadsföring[[#Headers],[Jan]],FaktiskaMarknadsföring[#Headers],0))","v":{"v":0,"d":"0.00 kr"}},{"$f":"INDEX(PlaneradeMarknadsföring[],MATCH(INDEX(AvvikelserMarknadsföring[],ROW()-ROW(AvvikelserMarknadsföring[[#Headers],[Feb]]),1),INDEX(PlaneradeMarknadsföring[],,1),0),MATCH(AvvikelserMarknadsföring[[#Headers],[Feb]],PlaneradeMarknadsföring[#Headers],0))-INDEX(FaktiskaMarknadsföring[],MATCH(INDEX(AvvikelserMarknadsföring[],ROW()-ROW(AvvikelserMarknadsföring[[#Headers],[Feb]]),1),INDEX(PlaneradeMarknadsföring[],,1),0),MATCH(AvvikelserMarknadsföring[[#Headers],[Feb]],FaktiskaMarknadsföring[#Headers],0))","v":{"v":0,"d":"0.00 kr"}},{"$f":"INDEX(PlaneradeMarknadsföring[],MATCH(INDEX(AvvikelserMarknadsföring[],ROW()-ROW(AvvikelserMarknadsföring[[#Headers],[Mar]]),1),INDEX(PlaneradeMarknadsföring[],,1),0),MATCH(AvvikelserMarknadsföring[[#Headers],[Mar]],PlaneradeMarknadsföring[#Headers],0))-INDEX(FaktiskaMarknadsföring[],MATCH(INDEX(AvvikelserMarknadsföring[],ROW()-ROW(AvvikelserMarknadsföring[[#Headers],[Mar]]),1),INDEX(PlaneradeMarknadsföring[],,1),0),MATCH(AvvikelserMarknadsföring[[#Headers],[Mar]],FaktiskaMarknadsföring[#Headers],0))","v":{"v":0,"d":"0.00 kr"}},{"$f":"INDEX(PlaneradeMarknadsföring[],MATCH(INDEX(AvvikelserMarknadsföring[],ROW()-ROW(AvvikelserMarknadsföring[[#Headers],[Apr]]),1),INDEX(PlaneradeMarknadsföring[],,1),0),MATCH(AvvikelserMarknadsföring[[#Headers],[Apr]],PlaneradeMarknadsföring[#Headers],0))-INDEX(FaktiskaMarknadsföring[],MATCH(INDEX(AvvikelserMarknadsföring[],ROW()-ROW(AvvikelserMarknadsföring[[#Headers],[Apr]]),1),INDEX(PlaneradeMarknadsföring[],,1),0),MATCH(AvvikelserMarknadsföring[[#Headers],[Apr]],FaktiskaMarknadsföring[#Headers],0))","v":{"v":0,"d":"0.00 kr"}},{"$f":"INDEX(PlaneradeMarknadsföring[],MATCH(INDEX(AvvikelserMarknadsföring[],ROW()-ROW(AvvikelserMarknadsföring[[#Headers],[Maj]]),1),INDEX(PlaneradeMarknadsföring[],,1),0),MATCH(AvvikelserMarknadsföring[[#Headers],[Maj]],PlaneradeMarknadsföring[#Headers],0))-INDEX(FaktiskaMarknadsföring[],MATCH(INDEX(AvvikelserMarknadsföring[],ROW()-ROW(AvvikelserMarknadsföring[[#Headers],[Maj]]),1),INDEX(PlaneradeMarknadsföring[],,1),0),MATCH(AvvikelserMarknadsföring[[#Headers],[Maj]],FaktiskaMarknadsföring[#Headers],0))","v":{"v":0,"d":"0.00 kr"}},{"$f":"INDEX(PlaneradeMarknadsföring[],MATCH(INDEX(AvvikelserMarknadsföring[],ROW()-ROW(AvvikelserMarknadsföring[[#Headers],[Jun]]),1),INDEX(PlaneradeMarknadsföring[],,1),0),MATCH(AvvikelserMarknadsföring[[#Headers],[Jun]],PlaneradeMarknadsföring[#Headers],0))-INDEX(FaktiskaMarknadsföring[],MATCH(INDEX(AvvikelserMarknadsföring[],ROW()-ROW(AvvikelserMarknadsföring[[#Headers],[Jun]]),1),INDEX(PlaneradeMarknadsföring[],,1),0),MATCH(AvvikelserMarknadsföring[[#Headers],[Jun]],FaktiskaMarknadsföring[#Headers],0))","v":{"v":0,"d":"0.00 kr"}},{"$f":"INDEX(PlaneradeMarknadsföring[],MATCH(INDEX(AvvikelserMarknadsföring[],ROW()-ROW(AvvikelserMarknadsföring[[#Headers],[Jul]]),1),INDEX(PlaneradeMarknadsföring[],,1),0),MATCH(AvvikelserMarknadsföring[[#Headers],[Jul]],PlaneradeMarknadsföring[#Headers],0))-INDEX(FaktiskaMarknadsföring[],MATCH(INDEX(AvvikelserMarknadsföring[],ROW()-ROW(AvvikelserMarknadsföring[[#Headers],[Jul]]),1),INDEX(PlaneradeMarknadsföring[],,1),0),MATCH(AvvikelserMarknadsföring[[#Headers],[Jul]],FaktiskaMarknadsföring[#Headers],0))","v":{"v":500,"d":"500.00 kr"}},{"$f":"INDEX(PlaneradeMarknadsföring[],MATCH(INDEX(AvvikelserMarknadsföring[],ROW()-ROW(AvvikelserMarknadsföring[[#Headers],[Aug]]),1),INDEX(PlaneradeMarknadsföring[],,1),0),MATCH(AvvikelserMarknadsföring[[#Headers],[Aug]],PlaneradeMarknadsföring[#Headers],0))-INDEX(FaktiskaMarknadsföring[],MATCH(INDEX(AvvikelserMarknadsföring[],ROW()-ROW(AvvikelserMarknadsföring[[#Headers],[Aug]]),1),INDEX(PlaneradeMarknadsföring[],,1),0),MATCH(AvvikelserMarknadsföring[[#Headers],[Aug]],FaktiskaMarknadsföring[#Headers],0))","v":{"v":500,"d":"500.00 kr"}},{"$f":"INDEX(PlaneradeMarknadsföring[],MATCH(INDEX(AvvikelserMarknadsföring[],ROW()-ROW(AvvikelserMarknadsföring[[#Headers],[Sep]]),1),INDEX(PlaneradeMarknadsföring[],,1),0),MATCH(AvvikelserMarknadsföring[[#Headers],[Sep]],PlaneradeMarknadsföring[#Headers],0))-INDEX(FaktiskaMarknadsföring[],MATCH(INDEX(AvvikelserMarknadsföring[],ROW()-ROW(AvvikelserMarknadsföring[[#Headers],[Sep]]),1),INDEX(PlaneradeMarknadsföring[],,1),0),MATCH(AvvikelserMarknadsföring[[#Headers],[Sep]],FaktiskaMarknadsföring[#Headers],0))","v":{"v":500,"d":"500.00 kr"}},{"$f":"INDEX(PlaneradeMarknadsföring[],MATCH(INDEX(AvvikelserMarknadsföring[],ROW()-ROW(AvvikelserMarknadsföring[[#Headers],[Okt]]),1),INDEX(PlaneradeMarknadsföring[],,1),0),MATCH(AvvikelserMarknadsföring[[#Headers],[Okt]],PlaneradeMarknadsföring[#Headers],0))-INDEX(FaktiskaMarknadsföring[],MATCH(INDEX(AvvikelserMarknadsföring[],ROW()-ROW(AvvikelserMarknadsföring[[#Headers],[Okt]]),1),INDEX(PlaneradeMarknadsföring[],,1),0),MATCH(AvvikelserMarknadsföring[[#Headers],[Okt]],FaktiskaMarknadsföring[#Headers],0))","v":{"v":500,"d":"500.00 kr"}},{"$f":"INDEX(PlaneradeMarknadsföring[],MATCH(INDEX(AvvikelserMarknadsföring[],ROW()-ROW(AvvikelserMarknadsföring[[#Headers],[Nov]]),1),INDEX(PlaneradeMarknadsföring[],,1),0),MATCH(AvvikelserMarknadsföring[[#Headers],[Nov]],PlaneradeMarknadsföring[#Headers],0))-INDEX(FaktiskaMarknadsföring[],MATCH(INDEX(AvvikelserMarknadsföring[],ROW()-ROW(AvvikelserMarknadsföring[[#Headers],[Nov]]),1),INDEX(PlaneradeMarknadsföring[],,1),0),MATCH(AvvikelserMarknadsföring[[#Headers],[Nov]],FaktiskaMarknadsföring[#Headers],0))","v":{"v":500,"d":"500.00 kr"}},{"$f":"INDEX(PlaneradeMarknadsföring[],MATCH(INDEX(AvvikelserMarknadsföring[],ROW()-ROW(AvvikelserMarknadsföring[[#Headers],[Dec]]),1),INDEX(PlaneradeMarknadsföring[],,1),0),MATCH(AvvikelserMarknadsföring[[#Headers],[Dec]],PlaneradeMarknadsföring[#Headers],0))-INDEX(FaktiskaMarknadsföring[],MATCH(INDEX(AvvikelserMarknadsföring[],ROW()-ROW(AvvikelserMarknadsföring[[#Headers],[Dec]]),1),INDEX(PlaneradeMarknadsföring[],,1),0),MATCH(AvvikelserMarknadsföring[[#Headers],[Dec]],FaktiskaMarknadsföring[#Headers],0))","v":{"v":500,"d":"500.00 kr"}},{"$f":"SUM(AvvikelserMarknadsföring[[#This Row],[Jan]:[Dec]])","v":{"v":3000,"d":"3,000.00 kr"}}]
[null,"Webbplatsuppdateringar",{"$f":"INDEX(PlaneradeMarknadsföring[],MATCH(INDEX(AvvikelserMarknadsföring[],ROW()-ROW(AvvikelserMarknadsföring[[#Headers],[Jan]]),1),INDEX(PlaneradeMarknadsföring[],,1),0),MATCH(AvvikelserMarknadsföring[[#Headers],[Jan]],PlaneradeMarknadsföring[#Headers],0))-INDEX(FaktiskaMarknadsföring[],MATCH(INDEX(AvvikelserMarknadsföring[],ROW()-ROW(AvvikelserMarknadsföring[[#Headers],[Jan]]),1),INDEX(PlaneradeMarknadsföring[],,1),0),MATCH(AvvikelserMarknadsföring[[#Headers],[Jan]],FaktiskaMarknadsföring[#Headers],0))","v":{"v":0,"d":"0.00 kr"}},{"$f":"INDEX(PlaneradeMarknadsföring[],MATCH(INDEX(AvvikelserMarknadsföring[],ROW()-ROW(AvvikelserMarknadsföring[[#Headers],[Feb]]),1),INDEX(PlaneradeMarknadsföring[],,1),0),MATCH(AvvikelserMarknadsföring[[#Headers],[Feb]],PlaneradeMarknadsföring[#Headers],0))-INDEX(FaktiskaMarknadsföring[],MATCH(INDEX(AvvikelserMarknadsföring[],ROW()-ROW(AvvikelserMarknadsföring[[#Headers],[Feb]]),1),INDEX(PlaneradeMarknadsföring[],,1),0),MATCH(AvvikelserMarknadsföring[[#Headers],[Feb]],FaktiskaMarknadsföring[#Headers],0))","v":{"v":0,"d":"0.00 kr"}},{"$f":"INDEX(PlaneradeMarknadsföring[],MATCH(INDEX(AvvikelserMarknadsföring[],ROW()-ROW(AvvikelserMarknadsföring[[#Headers],[Mar]]),1),INDEX(PlaneradeMarknadsföring[],,1),0),MATCH(AvvikelserMarknadsföring[[#Headers],[Mar]],PlaneradeMarknadsföring[#Headers],0))-INDEX(FaktiskaMarknadsföring[],MATCH(INDEX(AvvikelserMarknadsföring[],ROW()-ROW(AvvikelserMarknadsföring[[#Headers],[Mar]]),1),INDEX(PlaneradeMarknadsföring[],,1),0),MATCH(AvvikelserMarknadsföring[[#Headers],[Mar]],FaktiskaMarknadsföring[#Headers],0))","v":{"v":0,"d":"0.00 kr"}},{"$f":"INDEX(PlaneradeMarknadsföring[],MATCH(INDEX(AvvikelserMarknadsföring[],ROW()-ROW(AvvikelserMarknadsföring[[#Headers],[Apr]]),1),INDEX(PlaneradeMarknadsföring[],,1),0),MATCH(AvvikelserMarknadsföring[[#Headers],[Apr]],PlaneradeMarknadsföring[#Headers],0))-INDEX(FaktiskaMarknadsföring[],MATCH(INDEX(AvvikelserMarknadsföring[],ROW()-ROW(AvvikelserMarknadsföring[[#Headers],[Apr]]),1),INDEX(PlaneradeMarknadsföring[],,1),0),MATCH(AvvikelserMarknadsföring[[#Headers],[Apr]],FaktiskaMarknadsföring[#Headers],0))","v":{"v":0,"d":"0.00 kr"}},{"$f":"INDEX(PlaneradeMarknadsföring[],MATCH(INDEX(AvvikelserMarknadsföring[],ROW()-ROW(AvvikelserMarknadsföring[[#Headers],[Maj]]),1),INDEX(PlaneradeMarknadsföring[],,1),0),MATCH(AvvikelserMarknadsföring[[#Headers],[Maj]],PlaneradeMarknadsföring[#Headers],0))-INDEX(FaktiskaMarknadsföring[],MATCH(INDEX(AvvikelserMarknadsföring[],ROW()-ROW(AvvikelserMarknadsföring[[#Headers],[Maj]]),1),INDEX(PlaneradeMarknadsföring[],,1),0),MATCH(AvvikelserMarknadsföring[[#Headers],[Maj]],FaktiskaMarknadsföring[#Headers],0))","v":{"v":0,"d":"0.00 kr"}},{"$f":"INDEX(PlaneradeMarknadsföring[],MATCH(INDEX(AvvikelserMarknadsföring[],ROW()-ROW(AvvikelserMarknadsföring[[#Headers],[Jun]]),1),INDEX(PlaneradeMarknadsföring[],,1),0),MATCH(AvvikelserMarknadsföring[[#Headers],[Jun]],PlaneradeMarknadsföring[#Headers],0))-INDEX(FaktiskaMarknadsföring[],MATCH(INDEX(AvvikelserMarknadsföring[],ROW()-ROW(AvvikelserMarknadsföring[[#Headers],[Jun]]),1),INDEX(PlaneradeMarknadsföring[],,1),0),MATCH(AvvikelserMarknadsföring[[#Headers],[Jun]],FaktiskaMarknadsföring[#Headers],0))","v":{"v":-500,"d":"-500.00 kr"}},{"$f":"INDEX(PlaneradeMarknadsföring[],MATCH(INDEX(AvvikelserMarknadsföring[],ROW()-ROW(AvvikelserMarknadsföring[[#Headers],[Jul]]),1),INDEX(PlaneradeMarknadsföring[],,1),0),MATCH(AvvikelserMarknadsföring[[#Headers],[Jul]],PlaneradeMarknadsföring[#Headers],0))-INDEX(FaktiskaMarknadsföring[],MATCH(INDEX(AvvikelserMarknadsföring[],ROW()-ROW(AvvikelserMarknadsföring[[#Headers],[Jul]]),1),INDEX(PlaneradeMarknadsföring[],,1),0),MATCH(AvvikelserMarknadsföring[[#Headers],[Jul]],FaktiskaMarknadsföring[#Headers],0))","v":{"v":200,"d":"200.00 kr"}},{"$f":"INDEX(PlaneradeMarknadsföring[],MATCH(INDEX(AvvikelserMarknadsföring[],ROW()-ROW(AvvikelserMarknadsföring[[#Headers],[Aug]]),1),INDEX(PlaneradeMarknadsföring[],,1),0),MATCH(AvvikelserMarknadsföring[[#Headers],[Aug]],PlaneradeMarknadsföring[#Headers],0))-INDEX(FaktiskaMarknadsföring[],MATCH(INDEX(AvvikelserMarknadsföring[],ROW()-ROW(AvvikelserMarknadsföring[[#Headers],[Aug]]),1),INDEX(PlaneradeMarknadsföring[],,1),0),MATCH(AvvikelserMarknadsföring[[#Headers],[Aug]],FaktiskaMarknadsföring[#Headers],0))","v":{"v":200,"d":"200.00 kr"}},{"$f":"INDEX(PlaneradeMarknadsföring[],MATCH(INDEX(AvvikelserMarknadsföring[],ROW()-ROW(AvvikelserMarknadsföring[[#Headers],[Sep]]),1),INDEX(PlaneradeMarknadsföring[],,1),0),MATCH(AvvikelserMarknadsföring[[#Headers],[Sep]],PlaneradeMarknadsföring[#Headers],0))-INDEX(FaktiskaMarknadsföring[],MATCH(INDEX(AvvikelserMarknadsföring[],ROW()-ROW(AvvikelserMarknadsföring[[#Headers],[Sep]]),1),INDEX(PlaneradeMarknadsföring[],,1),0),MATCH(AvvikelserMarknadsföring[[#Headers],[Sep]],FaktiskaMarknadsföring[#Headers],0))","v":{"v":200,"d":"200.00 kr"}},{"$f":"INDEX(PlaneradeMarknadsföring[],MATCH(INDEX(AvvikelserMarknadsföring[],ROW()-ROW(AvvikelserMarknadsföring[[#Headers],[Okt]]),1),INDEX(PlaneradeMarknadsföring[],,1),0),MATCH(AvvikelserMarknadsföring[[#Headers],[Okt]],PlaneradeMarknadsföring[#Headers],0))-INDEX(FaktiskaMarknadsföring[],MATCH(INDEX(AvvikelserMarknadsföring[],ROW()-ROW(AvvikelserMarknadsföring[[#Headers],[Okt]]),1),INDEX(PlaneradeMarknadsföring[],,1),0),MATCH(AvvikelserMarknadsföring[[#Headers],[Okt]],FaktiskaMarknadsföring[#Headers],0))","v":{"v":200,"d":"200.00 kr"}},{"$f":"INDEX(PlaneradeMarknadsföring[],MATCH(INDEX(AvvikelserMarknadsföring[],ROW()-ROW(AvvikelserMarknadsföring[[#Headers],[Nov]]),1),INDEX(PlaneradeMarknadsföring[],,1),0),MATCH(AvvikelserMarknadsföring[[#Headers],[Nov]],PlaneradeMarknadsföring[#Headers],0))-INDEX(FaktiskaMarknadsföring[],MATCH(INDEX(AvvikelserMarknadsföring[],ROW()-ROW(AvvikelserMarknadsföring[[#Headers],[Nov]]),1),INDEX(PlaneradeMarknadsföring[],,1),0),MATCH(AvvikelserMarknadsföring[[#Headers],[Nov]],FaktiskaMarknadsföring[#Headers],0))","v":{"v":200,"d":"200.00 kr"}},{"$f":"INDEX(PlaneradeMarknadsföring[],MATCH(INDEX(AvvikelserMarknadsföring[],ROW()-ROW(AvvikelserMarknadsföring[[#Headers],[Dec]]),1),INDEX(PlaneradeMarknadsföring[],,1),0),MATCH(AvvikelserMarknadsföring[[#Headers],[Dec]],PlaneradeMarknadsföring[#Headers],0))-INDEX(FaktiskaMarknadsföring[],MATCH(INDEX(AvvikelserMarknadsföring[],ROW()-ROW(AvvikelserMarknadsföring[[#Headers],[Dec]]),1),INDEX(PlaneradeMarknadsföring[],,1),0),MATCH(AvvikelserMarknadsföring[[#Headers],[Dec]],FaktiskaMarknadsföring[#Headers],0))","v":{"v":1000,"d":"1,000.00 kr"}},{"$f":"SUM(AvvikelserMarknadsföring[[#This Row],[Jan]:[Dec]])","v":{"v":1500,"d":"1,500.00 kr"}}]
[null,"Kollateral förberedelse",{"$f":"INDEX(PlaneradeMarknadsföring[],MATCH(INDEX(AvvikelserMarknadsföring[],ROW()-ROW(AvvikelserMarknadsföring[[#Headers],[Jan]]),1),INDEX(PlaneradeMarknadsföring[],,1),0),MATCH(AvvikelserMarknadsföring[[#Headers],[Jan]],PlaneradeMarknadsföring[#Headers],0))-INDEX(FaktiskaMarknadsföring[],MATCH(INDEX(AvvikelserMarknadsföring[],ROW()-ROW(AvvikelserMarknadsföring[[#Headers],[Jan]]),1),INDEX(PlaneradeMarknadsföring[],,1),0),MATCH(AvvikelserMarknadsföring[[#Headers],[Jan]],FaktiskaMarknadsföring[#Headers],0))","v":{"v":200,"d":"200.00 kr"}},{"$f":"INDEX(PlaneradeMarknadsföring[],MATCH(INDEX(AvvikelserMarknadsföring[],ROW()-ROW(AvvikelserMarknadsföring[[#Headers],[Feb]]),1),INDEX(PlaneradeMarknadsföring[],,1),0),MATCH(AvvikelserMarknadsföring[[#Headers],[Feb]],PlaneradeMarknadsföring[#Headers],0))-INDEX(FaktiskaMarknadsföring[],MATCH(INDEX(AvvikelserMarknadsföring[],ROW()-ROW(AvvikelserMarknadsföring[[#Headers],[Feb]]),1),INDEX(PlaneradeMarknadsföring[],,1),0),MATCH(AvvikelserMarknadsföring[[#Headers],[Feb]],FaktiskaMarknadsföring[#Headers],0))","v":{"v":0,"d":"0.00 kr"}},{"$f":"INDEX(PlaneradeMarknadsföring[],MATCH(INDEX(AvvikelserMarknadsföring[],ROW()-ROW(AvvikelserMarknadsföring[[#Headers],[Mar]]),1),INDEX(PlaneradeMarknadsföring[],,1),0),MATCH(AvvikelserMarknadsföring[[#Headers],[Mar]],PlaneradeMarknadsföring[#Headers],0))-INDEX(FaktiskaMarknadsföring[],MATCH(INDEX(AvvikelserMarknadsföring[],ROW()-ROW(AvvikelserMarknadsföring[[#Headers],[Mar]]),1),INDEX(PlaneradeMarknadsföring[],,1),0),MATCH(AvvikelserMarknadsföring[[#Headers],[Mar]],FaktiskaMarknadsföring[#Headers],0))","v":{"v":0,"d":"0.00 kr"}},{"$f":"INDEX(PlaneradeMarknadsföring[],MATCH(INDEX(AvvikelserMarknadsföring[],ROW()-ROW(AvvikelserMarknadsföring[[#Headers],[Apr]]),1),INDEX(PlaneradeMarknadsföring[],,1),0),MATCH(AvvikelserMarknadsföring[[#Headers],[Apr]],PlaneradeMarknadsföring[#Headers],0))-INDEX(FaktiskaMarknadsföring[],MATCH(INDEX(AvvikelserMarknadsföring[],ROW()-ROW(AvvikelserMarknadsföring[[#Headers],[Apr]]),1),INDEX(PlaneradeMarknadsföring[],,1),0),MATCH(AvvikelserMarknadsföring[[#Headers],[Apr]],FaktiskaMarknadsföring[#Headers],0))","v":{"v":-500,"d":"-500.00 kr"}},{"$f":"INDEX(PlaneradeMarknadsföring[],MATCH(INDEX(AvvikelserMarknadsföring[],ROW()-ROW(AvvikelserMarknadsföring[[#Headers],[Maj]]),1),INDEX(PlaneradeMarknadsföring[],,1),0),MATCH(AvvikelserMarknadsföring[[#Headers],[Maj]],PlaneradeMarknadsföring[#Headers],0))-INDEX(FaktiskaMarknadsföring[],MATCH(INDEX(AvvikelserMarknadsföring[],ROW()-ROW(AvvikelserMarknadsföring[[#Headers],[Maj]]),1),INDEX(PlaneradeMarknadsföring[],,1),0),MATCH(AvvikelserMarknadsföring[[#Headers],[Maj]],FaktiskaMarknadsföring[#Headers],0))","v":{"v":0,"d":"0.00 kr"}},{"$f":"INDEX(PlaneradeMarknadsföring[],MATCH(INDEX(AvvikelserMarknadsföring[],ROW()-ROW(AvvikelserMarknadsföring[[#Headers],[Jun]]),1),INDEX(PlaneradeMarknadsföring[],,1),0),MATCH(AvvikelserMarknadsföring[[#Headers],[Jun]],PlaneradeMarknadsföring[#Headers],0))-INDEX(FaktiskaMarknadsföring[],MATCH(INDEX(AvvikelserMarknadsföring[],ROW()-ROW(AvvikelserMarknadsföring[[#Headers],[Jun]]),1),INDEX(PlaneradeMarknadsföring[],,1),0),MATCH(AvvikelserMarknadsföring[[#Headers],[Jun]],FaktiskaMarknadsföring[#Headers],0))","v":{"v":0,"d":"0.00 kr"}},{"$f":"INDEX(PlaneradeMarknadsföring[],MATCH(INDEX(AvvikelserMarknadsföring[],ROW()-ROW(AvvikelserMarknadsföring[[#Headers],[Jul]]),1),INDEX(PlaneradeMarknadsföring[],,1),0),MATCH(AvvikelserMarknadsföring[[#Headers],[Jul]],PlaneradeMarknadsföring[#Headers],0))-INDEX(FaktiskaMarknadsföring[],MATCH(INDEX(AvvikelserMarknadsföring[],ROW()-ROW(AvvikelserMarknadsföring[[#Headers],[Jul]]),1),INDEX(PlaneradeMarknadsföring[],,1),0),MATCH(AvvikelserMarknadsföring[[#Headers],[Jul]],FaktiskaMarknadsföring[#Headers],0))","v":{"v":5000,"d":"5,000.00 kr"}},{"$f":"INDEX(PlaneradeMarknadsföring[],MATCH(INDEX(AvvikelserMarknadsföring[],ROW()-ROW(AvvikelserMarknadsföring[[#Headers],[Aug]]),1),INDEX(PlaneradeMarknadsföring[],,1),0),MATCH(AvvikelserMarknadsföring[[#Headers],[Aug]],PlaneradeMarknadsföring[#Headers],0))-INDEX(FaktiskaMarknadsföring[],MATCH(INDEX(AvvikelserMarknadsföring[],ROW()-ROW(AvvikelserMarknadsföring[[#Headers],[Aug]]),1),INDEX(PlaneradeMarknadsföring[],,1),0),MATCH(AvvikelserMarknadsföring[[#Headers],[Aug]],FaktiskaMarknadsföring[#Headers],0))","v":{"v":0,"d":"0.00 kr"}},{"$f":"INDEX(PlaneradeMarknadsföring[],MATCH(INDEX(AvvikelserMarknadsföring[],ROW()-ROW(AvvikelserMarknadsföring[[#Headers],[Sep]]),1),INDEX(PlaneradeMarknadsföring[],,1),0),MATCH(AvvikelserMarknadsföring[[#Headers],[Sep]],PlaneradeMarknadsföring[#Headers],0))-INDEX(FaktiskaMarknadsföring[],MATCH(INDEX(AvvikelserMarknadsföring[],ROW()-ROW(AvvikelserMarknadsföring[[#Headers],[Sep]]),1),INDEX(PlaneradeMarknadsföring[],,1),0),MATCH(AvvikelserMarknadsföring[[#Headers],[Sep]],FaktiskaMarknadsföring[#Headers],0))","v":{"v":0,"d":"0.00 kr"}},{"$f":"INDEX(PlaneradeMarknadsföring[],MATCH(INDEX(AvvikelserMarknadsföring[],ROW()-ROW(AvvikelserMarknadsföring[[#Headers],[Okt]]),1),INDEX(PlaneradeMarknadsföring[],,1),0),MATCH(AvvikelserMarknadsföring[[#Headers],[Okt]],PlaneradeMarknadsföring[#Headers],0))-INDEX(FaktiskaMarknadsföring[],MATCH(INDEX(AvvikelserMarknadsföring[],ROW()-ROW(AvvikelserMarknadsföring[[#Headers],[Okt]]),1),INDEX(PlaneradeMarknadsföring[],,1),0),MATCH(AvvikelserMarknadsföring[[#Headers],[Okt]],FaktiskaMarknadsföring[#Headers],0))","v":{"v":5000,"d":"5,000.00 kr"}},{"$f":"INDEX(PlaneradeMarknadsföring[],MATCH(INDEX(AvvikelserMarknadsföring[],ROW()-ROW(AvvikelserMarknadsföring[[#Headers],[Nov]]),1),INDEX(PlaneradeMarknadsföring[],,1),0),MATCH(AvvikelserMarknadsföring[[#Headers],[Nov]],PlaneradeMarknadsföring[#Headers],0))-INDEX(FaktiskaMarknadsföring[],MATCH(INDEX(AvvikelserMarknadsföring[],ROW()-ROW(AvvikelserMarknadsföring[[#Headers],[Nov]]),1),INDEX(PlaneradeMarknadsföring[],,1),0),MATCH(AvvikelserMarknadsföring[[#Headers],[Nov]],FaktiskaMarknadsföring[#Headers],0))","v":{"v":0,"d":"0.00 kr"}},{"$f":"INDEX(PlaneradeMarknadsföring[],MATCH(INDEX(AvvikelserMarknadsföring[],ROW()-ROW(AvvikelserMarknadsföring[[#Headers],[Dec]]),1),INDEX(PlaneradeMarknadsföring[],,1),0),MATCH(AvvikelserMarknadsföring[[#Headers],[Dec]],PlaneradeMarknadsföring[#Headers],0))-INDEX(FaktiskaMarknadsföring[],MATCH(INDEX(AvvikelserMarknadsföring[],ROW()-ROW(AvvikelserMarknadsföring[[#Headers],[Dec]]),1),INDEX(PlaneradeMarknadsföring[],,1),0),MATCH(AvvikelserMarknadsföring[[#Headers],[Dec]],FaktiskaMarknadsföring[#Headers],0))","v":{"v":0,"d":"0.00 kr"}},{"$f":"SUM(AvvikelserMarknadsföring[[#This Row],[Jan]:[Dec]])","v":{"v":9700,"d":"9,700.00 kr"}}]
[null,"Kollateral utskrift",{"$f":"INDEX(PlaneradeMarknadsföring[],MATCH(INDEX(AvvikelserMarknadsföring[],ROW()-ROW(AvvikelserMarknadsföring[[#Headers],[Jan]]),1),INDEX(PlaneradeMarknadsföring[],,1),0),MATCH(AvvikelserMarknadsföring[[#Headers],[Jan]],PlaneradeMarknadsföring[#Headers],0))-INDEX(FaktiskaMarknadsföring[],MATCH(INDEX(AvvikelserMarknadsföring[],ROW()-ROW(AvvikelserMarknadsföring[[#Headers],[Jan]]),1),INDEX(PlaneradeMarknadsföring[],,1),0),MATCH(AvvikelserMarknadsföring[[#Headers],[Jan]],FaktiskaMarknadsföring[#Headers],0))","v":{"v":100,"d":"100.00 kr"}},{"$f":"INDEX(PlaneradeMarknadsföring[],MATCH(INDEX(AvvikelserMarknadsföring[],ROW()-ROW(AvvikelserMarknadsföring[[#Headers],[Feb]]),1),INDEX(PlaneradeMarknadsföring[],,1),0),MATCH(AvvikelserMarknadsföring[[#Headers],[Feb]],PlaneradeMarknadsföring[#Headers],0))-INDEX(FaktiskaMarknadsföring[],MATCH(INDEX(AvvikelserMarknadsföring[],ROW()-ROW(AvvikelserMarknadsföring[[#Headers],[Feb]]),1),INDEX(PlaneradeMarknadsföring[],,1),0),MATCH(AvvikelserMarknadsföring[[#Headers],[Feb]],FaktiskaMarknadsföring[#Headers],0))","v":{"v":-300,"d":"-300.00 kr"}},{"$f":"INDEX(PlaneradeMarknadsföring[],MATCH(INDEX(AvvikelserMarknadsföring[],ROW()-ROW(AvvikelserMarknadsföring[[#Headers],[Mar]]),1),INDEX(PlaneradeMarknadsföring[],,1),0),MATCH(AvvikelserMarknadsföring[[#Headers],[Mar]],PlaneradeMarknadsföring[#Headers],0))-INDEX(FaktiskaMarknadsföring[],MATCH(INDEX(AvvikelserMarknadsföring[],ROW()-ROW(AvvikelserMarknadsföring[[#Headers],[Mar]]),1),INDEX(PlaneradeMarknadsföring[],,1),0),MATCH(AvvikelserMarknadsföring[[#Headers],[Mar]],FaktiskaMarknadsföring[#Headers],0))","v":{"v":100,"d":"100.00 kr"}},{"$f":"INDEX(PlaneradeMarknadsföring[],MATCH(INDEX(AvvikelserMarknadsföring[],ROW()-ROW(AvvikelserMarknadsföring[[#Headers],[Apr]]),1),INDEX(PlaneradeMarknadsföring[],,1),0),MATCH(AvvikelserMarknadsföring[[#Headers],[Apr]],PlaneradeMarknadsföring[#Headers],0))-INDEX(FaktiskaMarknadsföring[],MATCH(INDEX(AvvikelserMarknadsföring[],ROW()-ROW(AvvikelserMarknadsföring[[#Headers],[Apr]]),1),INDEX(PlaneradeMarknadsföring[],,1),0),MATCH(AvvikelserMarknadsföring[[#Headers],[Apr]],FaktiskaMarknadsföring[#Headers],0))","v":{"v":100,"d":"100.00 kr"}},{"$f":"INDEX(PlaneradeMarknadsföring[],MATCH(INDEX(AvvikelserMarknadsföring[],ROW()-ROW(AvvikelserMarknadsföring[[#Headers],[Maj]]),1),INDEX(PlaneradeMarknadsföring[],,1),0),MATCH(AvvikelserMarknadsföring[[#Headers],[Maj]],PlaneradeMarknadsföring[#Headers],0))-INDEX(FaktiskaMarknadsföring[],MATCH(INDEX(AvvikelserMarknadsföring[],ROW()-ROW(AvvikelserMarknadsföring[[#Headers],[Maj]]),1),INDEX(PlaneradeMarknadsföring[],,1),0),MATCH(AvvikelserMarknadsföring[[#Headers],[Maj]],FaktiskaMarknadsföring[#Headers],0))","v":{"v":-400,"d":"-400.00 kr"}},{"$f":"INDEX(PlaneradeMarknadsföring[],MATCH(INDEX(AvvikelserMarknadsföring[],ROW()-ROW(AvvikelserMarknadsföring[[#Headers],[Jun]]),1),INDEX(PlaneradeMarknadsföring[],,1),0),MATCH(AvvikelserMarknadsföring[[#Headers],[Jun]],PlaneradeMarknadsföring[#Headers],0))-INDEX(FaktiskaMarknadsföring[],MATCH(INDEX(AvvikelserMarknadsföring[],ROW()-ROW(AvvikelserMarknadsföring[[#Headers],[Jun]]),1),INDEX(PlaneradeMarknadsföring[],,1),0),MATCH(AvvikelserMarknadsföring[[#Headers],[Jun]],FaktiskaMarknadsföring[#Headers],0))","v":{"v":20,"d":"20.00 kr"}},{"$f":"INDEX(PlaneradeMarknadsföring[],MATCH(INDEX(AvvikelserMarknadsföring[],ROW()-ROW(AvvikelserMarknadsföring[[#Headers],[Jul]]),1),INDEX(PlaneradeMarknadsföring[],,1),0),MATCH(AvvikelserMarknadsföring[[#Headers],[Jul]],PlaneradeMarknadsföring[#Headers],0))-INDEX(FaktiskaMarknadsföring[],MATCH(INDEX(AvvikelserMarknadsföring[],ROW()-ROW(AvvikelserMarknadsföring[[#Headers],[Jul]]),1),INDEX(PlaneradeMarknadsföring[],,1),0),MATCH(AvvikelserMarknadsföring[[#Headers],[Jul]],FaktiskaMarknadsföring[#Headers],0))","v":{"v":200,"d":"200.00 kr"}},{"$f":"INDEX(PlaneradeMarknadsföring[],MATCH(INDEX(AvvikelserMarknadsföring[],ROW()-ROW(AvvikelserMarknadsföring[[#Headers],[Aug]]),1),INDEX(PlaneradeMarknadsföring[],,1),0),MATCH(AvvikelserMarknadsföring[[#Headers],[Aug]],PlaneradeMarknadsföring[#Headers],0))-INDEX(FaktiskaMarknadsföring[],MATCH(INDEX(AvvikelserMarknadsföring[],ROW()-ROW(AvvikelserMarknadsföring[[#Headers],[Aug]]),1),INDEX(PlaneradeMarknadsföring[],,1),0),MATCH(AvvikelserMarknadsföring[[#Headers],[Aug]],FaktiskaMarknadsföring[#Headers],0))","v":{"v":200,"d":"200.00 kr"}},{"$f":"INDEX(PlaneradeMarknadsföring[],MATCH(INDEX(AvvikelserMarknadsföring[],ROW()-ROW(AvvikelserMarknadsföring[[#Headers],[Sep]]),1),INDEX(PlaneradeMarknadsföring[],,1),0),MATCH(AvvikelserMarknadsföring[[#Headers],[Sep]],PlaneradeMarknadsföring[#Headers],0))-INDEX(FaktiskaMarknadsföring[],MATCH(INDEX(AvvikelserMarknadsföring[],ROW()-ROW(AvvikelserMarknadsföring[[#Headers],[Sep]]),1),INDEX(PlaneradeMarknadsföring[],,1),0),MATCH(AvvikelserMarknadsföring[[#Headers],[Sep]],FaktiskaMarknadsföring[#Headers],0))","v":{"v":200,"d":"200.00 kr"}},{"$f":"INDEX(PlaneradeMarknadsföring[],MATCH(INDEX(AvvikelserMarknadsföring[],ROW()-ROW(AvvikelserMarknadsföring[[#Headers],[Okt]]),1),INDEX(PlaneradeMarknadsföring[],,1),0),MATCH(AvvikelserMarknadsföring[[#Headers],[Okt]],PlaneradeMarknadsföring[#Headers],0))-INDEX(FaktiskaMarknadsföring[],MATCH(INDEX(AvvikelserMarknadsföring[],ROW()-ROW(AvvikelserMarknadsföring[[#Headers],[Okt]]),1),INDEX(PlaneradeMarknadsföring[],,1),0),MATCH(AvvikelserMarknadsföring[[#Headers],[Okt]],FaktiskaMarknadsföring[#Headers],0))","v":{"v":200,"d":"200.00 kr"}},{"$f":"INDEX(PlaneradeMarknadsföring[],MATCH(INDEX(AvvikelserMarknadsföring[],ROW()-ROW(AvvikelserMarknadsföring[[#Headers],[Nov]]),1),INDEX(PlaneradeMarknadsföring[],,1),0),MATCH(AvvikelserMarknadsföring[[#Headers],[Nov]],PlaneradeMarknadsföring[#Headers],0))-INDEX(FaktiskaMarknadsföring[],MATCH(INDEX(AvvikelserMarknadsföring[],ROW()-ROW(AvvikelserMarknadsföring[[#Headers],[Nov]]),1),INDEX(PlaneradeMarknadsföring[],,1),0),MATCH(AvvikelserMarknadsföring[[#Headers],[Nov]],FaktiskaMarknadsföring[#Headers],0))","v":{"v":200,"d":"200.00 kr"}},{"$f":"INDEX(PlaneradeMarknadsföring[],MATCH(INDEX(AvvikelserMarknadsföring[],ROW()-ROW(AvvikelserMarknadsföring[[#Headers],[Dec]]),1),INDEX(PlaneradeMarknadsföring[],,1),0),MATCH(AvvikelserMarknadsföring[[#Headers],[Dec]],PlaneradeMarknadsföring[#Headers],0))-INDEX(FaktiskaMarknadsföring[],MATCH(INDEX(AvvikelserMarknadsföring[],ROW()-ROW(AvvikelserMarknadsföring[[#Headers],[Dec]]),1),INDEX(PlaneradeMarknadsföring[],,1),0),MATCH(AvvikelserMarknadsföring[[#Headers],[Dec]],FaktiskaMarknadsföring[#Headers],0))","v":{"v":200,"d":"200.00 kr"}},{"$f":"SUM(AvvikelserMarknadsföring[[#This Row],[Jan]:[Dec]])","v":{"v":820,"d":"820.00 kr"}}]
[null,"Marknadsföringshändelser",{"$f":"INDEX(PlaneradeMarknadsföring[],MATCH(INDEX(AvvikelserMarknadsföring[],ROW()-ROW(AvvikelserMarknadsföring[[#Headers],[Jan]]),1),INDEX(PlaneradeMarknadsföring[],,1),0),MATCH(AvvikelserMarknadsföring[[#Headers],[Jan]],PlaneradeMarknadsföring[#Headers],0))-INDEX(FaktiskaMarknadsföring[],MATCH(INDEX(AvvikelserMarknadsföring[],ROW()-ROW(AvvikelserMarknadsföring[[#Headers],[Jan]]),1),INDEX(PlaneradeMarknadsföring[],,1),0),MATCH(AvvikelserMarknadsföring[[#Headers],[Jan]],FaktiskaMarknadsföring[#Headers],0))","v":{"v":200,"d":"200.00 kr"}},{"$f":"INDEX(PlaneradeMarknadsföring[],MATCH(INDEX(AvvikelserMarknadsföring[],ROW()-ROW(AvvikelserMarknadsföring[[#Headers],[Feb]]),1),INDEX(PlaneradeMarknadsföring[],,1),0),MATCH(AvvikelserMarknadsföring[[#Headers],[Feb]],PlaneradeMarknadsföring[#Headers],0))-INDEX(FaktiskaMarknadsföring[],MATCH(INDEX(AvvikelserMarknadsföring[],ROW()-ROW(AvvikelserMarknadsföring[[#Headers],[Feb]]),1),INDEX(PlaneradeMarknadsföring[],,1),0),MATCH(AvvikelserMarknadsföring[[#Headers],[Feb]],FaktiskaMarknadsföring[#Headers],0))","v":{"v":-200,"d":"-200.00 kr"}},{"$f":"INDEX(PlaneradeMarknadsföring[],MATCH(INDEX(AvvikelserMarknadsföring[],ROW()-ROW(AvvikelserMarknadsföring[[#Headers],[Mar]]),1),INDEX(PlaneradeMarknadsföring[],,1),0),MATCH(AvvikelserMarknadsföring[[#Headers],[Mar]],PlaneradeMarknadsföring[#Headers],0))-INDEX(FaktiskaMarknadsföring[],MATCH(INDEX(AvvikelserMarknadsföring[],ROW()-ROW(AvvikelserMarknadsföring[[#Headers],[Mar]]),1),INDEX(PlaneradeMarknadsföring[],,1),0),MATCH(AvvikelserMarknadsföring[[#Headers],[Mar]],FaktiskaMarknadsföring[#Headers],0))","v":{"v":-200,"d":"-200.00 kr"}},{"$f":"INDEX(PlaneradeMarknadsföring[],MATCH(INDEX(AvvikelserMarknadsföring[],ROW()-ROW(AvvikelserMarknadsföring[[#Headers],[Apr]]),1),INDEX(PlaneradeMarknadsföring[],,1),0),MATCH(AvvikelserMarknadsföring[[#Headers],[Apr]],PlaneradeMarknadsföring[#Headers],0))-INDEX(FaktiskaMarknadsföring[],MATCH(INDEX(AvvikelserMarknadsföring[],ROW()-ROW(AvvikelserMarknadsföring[[#Headers],[Apr]]),1),INDEX(PlaneradeMarknadsföring[],,1),0),MATCH(AvvikelserMarknadsföring[[#Headers],[Apr]],FaktiskaMarknadsföring[#Headers],0))","v":{"v":300,"d":"300.00 kr"}},{"$f":"INDEX(PlaneradeMarknadsföring[],MATCH(INDEX(AvvikelserMarknadsföring[],ROW()-ROW(AvvikelserMarknadsföring[[#Headers],[Maj]]),1),INDEX(PlaneradeMarknadsföring[],,1),0),MATCH(AvvikelserMarknadsföring[[#Headers],[Maj]],PlaneradeMarknadsföring[#Headers],0))-INDEX(FaktiskaMarknadsföring[],MATCH(INDEX(AvvikelserMarknadsföring[],ROW()-ROW(AvvikelserMarknadsföring[[#Headers],[Maj]]),1),INDEX(PlaneradeMarknadsföring[],,1),0),MATCH(AvvikelserMarknadsföring[[#Headers],[Maj]],FaktiskaMarknadsföring[#Headers],0))","v":{"v":500,"d":"500.00 kr"}},{"$f":"INDEX(PlaneradeMarknadsföring[],MATCH(INDEX(AvvikelserMarknadsföring[],ROW()-ROW(AvvikelserMarknadsföring[[#Headers],[Jun]]),1),INDEX(PlaneradeMarknadsföring[],,1),0),MATCH(AvvikelserMarknadsföring[[#Headers],[Jun]],PlaneradeMarknadsföring[#Headers],0))-INDEX(FaktiskaMarknadsföring[],MATCH(INDEX(AvvikelserMarknadsföring[],ROW()-ROW(AvvikelserMarknadsföring[[#Headers],[Jun]]),1),INDEX(PlaneradeMarknadsföring[],,1),0),MATCH(AvvikelserMarknadsföring[[#Headers],[Jun]],FaktiskaMarknadsföring[#Headers],0))","v":{"v":-300,"d":"-300.00 kr"}},{"$f":"INDEX(PlaneradeMarknadsföring[],MATCH(INDEX(AvvikelserMarknadsföring[],ROW()-ROW(AvvikelserMarknadsföring[[#Headers],[Jul]]),1),INDEX(PlaneradeMarknadsföring[],,1),0),MATCH(AvvikelserMarknadsföring[[#Headers],[Jul]],PlaneradeMarknadsföring[#Headers],0))-INDEX(FaktiskaMarknadsföring[],MATCH(INDEX(AvvikelserMarknadsföring[],ROW()-ROW(AvvikelserMarknadsföring[[#Headers],[Jul]]),1),INDEX(PlaneradeMarknadsföring[],,1),0),MATCH(AvvikelserMarknadsföring[[#Headers],[Jul]],FaktiskaMarknadsföring[#Headers],0))","v":{"v":2000,"d":"2,000.00 kr"}},{"$f":"INDEX(PlaneradeMarknadsföring[],MATCH(INDEX(AvvikelserMarknadsföring[],ROW()-ROW(AvvikelserMarknadsföring[[#Headers],[Aug]]),1),INDEX(PlaneradeMarknadsföring[],,1),0),MATCH(AvvikelserMarknadsföring[[#Headers],[Aug]],PlaneradeMarknadsföring[#Headers],0))-INDEX(FaktiskaMarknadsföring[],MATCH(INDEX(AvvikelserMarknadsföring[],ROW()-ROW(AvvikelserMarknadsföring[[#Headers],[Aug]]),1),INDEX(PlaneradeMarknadsföring[],,1),0),MATCH(AvvikelserMarknadsföring[[#Headers],[Aug]],FaktiskaMarknadsföring[#Headers],0))","v":{"v":5000,"d":"5,000.00 kr"}},{"$f":"INDEX(PlaneradeMarknadsföring[],MATCH(INDEX(AvvikelserMarknadsföring[],ROW()-ROW(AvvikelserMarknadsföring[[#Headers],[Sep]]),1),INDEX(PlaneradeMarknadsföring[],,1),0),MATCH(AvvikelserMarknadsföring[[#Headers],[Sep]],PlaneradeMarknadsföring[#Headers],0))-INDEX(FaktiskaMarknadsföring[],MATCH(INDEX(AvvikelserMarknadsföring[],ROW()-ROW(AvvikelserMarknadsföring[[#Headers],[Sep]]),1),INDEX(PlaneradeMarknadsföring[],,1),0),MATCH(AvvikelserMarknadsföring[[#Headers],[Sep]],FaktiskaMarknadsföring[#Headers],0))","v":{"v":2000,"d":"2,000.00 kr"}},{"$f":"INDEX(PlaneradeMarknadsföring[],MATCH(INDEX(AvvikelserMarknadsföring[],ROW()-ROW(AvvikelserMarknadsföring[[#Headers],[Okt]]),1),INDEX(PlaneradeMarknadsföring[],,1),0),MATCH(AvvikelserMarknadsföring[[#Headers],[Okt]],PlaneradeMarknadsföring[#Headers],0))-INDEX(FaktiskaMarknadsföring[],MATCH(INDEX(AvvikelserMarknadsföring[],ROW()-ROW(AvvikelserMarknadsföring[[#Headers],[Okt]]),1),INDEX(PlaneradeMarknadsföring[],,1),0),MATCH(AvvikelserMarknadsföring[[#Headers],[Okt]],FaktiskaMarknadsföring[#Headers],0))","v":{"v":2000,"d":"2,000.00 kr"}},{"$f":"INDEX(PlaneradeMarknadsföring[],MATCH(INDEX(AvvikelserMarknadsföring[],ROW()-ROW(AvvikelserMarknadsföring[[#Headers],[Nov]]),1),INDEX(PlaneradeMarknadsföring[],,1),0),MATCH(AvvikelserMarknadsföring[[#Headers],[Nov]],PlaneradeMarknadsföring[#Headers],0))-INDEX(FaktiskaMarknadsföring[],MATCH(INDEX(AvvikelserMarknadsföring[],ROW()-ROW(AvvikelserMarknadsföring[[#Headers],[Nov]]),1),INDEX(PlaneradeMarknadsföring[],,1),0),MATCH(AvvikelserMarknadsföring[[#Headers],[Nov]],FaktiskaMarknadsföring[#Headers],0))","v":{"v":2000,"d":"2,000.00 kr"}},{"$f":"INDEX(PlaneradeMarknadsföring[],MATCH(INDEX(AvvikelserMarknadsföring[],ROW()-ROW(AvvikelserMarknadsföring[[#Headers],[Dec]]),1),INDEX(PlaneradeMarknadsföring[],,1),0),MATCH(AvvikelserMarknadsföring[[#Headers],[Dec]],PlaneradeMarknadsföring[#Headers],0))-INDEX(FaktiskaMarknadsföring[],MATCH(INDEX(AvvikelserMarknadsföring[],ROW()-ROW(AvvikelserMarknadsföring[[#Headers],[Dec]]),1),INDEX(PlaneradeMarknadsföring[],,1),0),MATCH(AvvikelserMarknadsföring[[#Headers],[Dec]],FaktiskaMarknadsföring[#Headers],0))","v":{"v":5000,"d":"5,000.00 kr"}},{"$f":"SUM(AvvikelserMarknadsföring[[#This Row],[Jan]:[Dec]])","v":{"v":18300,"d":"18,300.00 kr"}}]
[null,"Diverse utgifter",{"$f":"INDEX(PlaneradeMarknadsföring[],MATCH(INDEX(AvvikelserMarknadsföring[],ROW()-ROW(AvvikelserMarknadsföring[[#Headers],[Jan]]),1),INDEX(PlaneradeMarknadsföring[],,1),0),MATCH(AvvikelserMarknadsföring[[#Headers],[Jan]],PlaneradeMarknadsföring[#Headers],0))-INDEX(FaktiskaMarknadsföring[],MATCH(INDEX(AvvikelserMarknadsföring[],ROW()-ROW(AvvikelserMarknadsföring[[#Headers],[Jan]]),1),INDEX(PlaneradeMarknadsföring[],,1),0),MATCH(AvvikelserMarknadsföring[[#Headers],[Jan]],FaktiskaMarknadsföring[#Headers],0))","v":{"v":55,"d":"55.00 kr"}},{"$f":"INDEX(PlaneradeMarknadsföring[],MATCH(INDEX(AvvikelserMarknadsföring[],ROW()-ROW(AvvikelserMarknadsföring[[#Headers],[Feb]]),1),INDEX(PlaneradeMarknadsföring[],,1),0),MATCH(AvvikelserMarknadsföring[[#Headers],[Feb]],PlaneradeMarknadsföring[#Headers],0))-INDEX(FaktiskaMarknadsföring[],MATCH(INDEX(AvvikelserMarknadsföring[],ROW()-ROW(AvvikelserMarknadsföring[[#Headers],[Feb]]),1),INDEX(PlaneradeMarknadsföring[],,1),0),MATCH(AvvikelserMarknadsföring[[#Headers],[Feb]],FaktiskaMarknadsföring[#Headers],0))","v":{"v":44,"d":"44.00 kr"}},{"$f":"INDEX(PlaneradeMarknadsföring[],MATCH(INDEX(AvvikelserMarknadsföring[],ROW()-ROW(AvvikelserMarknadsföring[[#Headers],[Mar]]),1),INDEX(PlaneradeMarknadsföring[],,1),0),MATCH(AvvikelserMarknadsföring[[#Headers],[Mar]],PlaneradeMarknadsföring[#Headers],0))-INDEX(FaktiskaMarknadsföring[],MATCH(INDEX(AvvikelserMarknadsföring[],ROW()-ROW(AvvikelserMarknadsföring[[#Headers],[Mar]]),1),INDEX(PlaneradeMarknadsföring[],,1),0),MATCH(AvvikelserMarknadsföring[[#Headers],[Mar]],FaktiskaMarknadsföring[#Headers],0))","v":{"v":77,"d":"77.00 kr"}},{"$f":"INDEX(PlaneradeMarknadsföring[],MATCH(INDEX(AvvikelserMarknadsföring[],ROW()-ROW(AvvikelserMarknadsföring[[#Headers],[Apr]]),1),INDEX(PlaneradeMarknadsföring[],,1),0),MATCH(AvvikelserMarknadsföring[[#Headers],[Apr]],PlaneradeMarknadsföring[#Headers],0))-INDEX(FaktiskaMarknadsföring[],MATCH(INDEX(AvvikelserMarknadsföring[],ROW()-ROW(AvvikelserMarknadsföring[[#Headers],[Apr]]),1),INDEX(PlaneradeMarknadsföring[],,1),0),MATCH(AvvikelserMarknadsföring[[#Headers],[Apr]],FaktiskaMarknadsföring[#Headers],0))","v":{"v":-23,"d":"-23.00 kr"}},{"$f":"INDEX(PlaneradeMarknadsföring[],MATCH(INDEX(AvvikelserMarknadsföring[],ROW()-ROW(AvvikelserMarknadsföring[[#Headers],[Maj]]),1),INDEX(PlaneradeMarknadsföring[],,1),0),MATCH(AvvikelserMarknadsföring[[#Headers],[Maj]],PlaneradeMarknadsföring[#Headers],0))-INDEX(FaktiskaMarknadsföring[],MATCH(INDEX(AvvikelserMarknadsföring[],ROW()-ROW(AvvikelserMarknadsföring[[#Headers],[Maj]]),1),INDEX(PlaneradeMarknadsföring[],,1),0),MATCH(AvvikelserMarknadsföring[[#Headers],[Maj]],FaktiskaMarknadsföring[#Headers],0))","v":{"v":13,"d":"13.00 kr"}},{"$f":"INDEX(PlaneradeMarknadsföring[],MATCH(INDEX(AvvikelserMarknadsföring[],ROW()-ROW(AvvikelserMarknadsföring[[#Headers],[Jun]]),1),INDEX(PlaneradeMarknadsföring[],,1),0),MATCH(AvvikelserMarknadsföring[[#Headers],[Jun]],PlaneradeMarknadsföring[#Headers],0))-INDEX(FaktiskaMarknadsföring[],MATCH(INDEX(AvvikelserMarknadsföring[],ROW()-ROW(AvvikelserMarknadsföring[[#Headers],[Jun]]),1),INDEX(PlaneradeMarknadsföring[],,1),0),MATCH(AvvikelserMarknadsföring[[#Headers],[Jun]],FaktiskaMarknadsföring[#Headers],0))","v":{"v":-45,"d":"-45.00 kr"}},{"$f":"INDEX(PlaneradeMarknadsföring[],MATCH(INDEX(AvvikelserMarknadsföring[],ROW()-ROW(AvvikelserMarknadsföring[[#Headers],[Jul]]),1),INDEX(PlaneradeMarknadsföring[],,1),0),MATCH(AvvikelserMarknadsföring[[#Headers],[Jul]],PlaneradeMarknadsföring[#Headers],0))-INDEX(FaktiskaMarknadsföring[],MATCH(INDEX(AvvikelserMarknadsföring[],ROW()-ROW(AvvikelserMarknadsföring[[#Headers],[Jul]]),1),INDEX(PlaneradeMarknadsföring[],,1),0),MATCH(AvvikelserMarknadsföring[[#Headers],[Jul]],FaktiskaMarknadsföring[#Headers],0))","v":{"v":200,"d":"200.00 kr"}},{"$f":"INDEX(PlaneradeMarknadsföring[],MATCH(INDEX(AvvikelserMarknadsföring[],ROW()-ROW(AvvikelserMarknadsföring[[#Headers],[Aug]]),1),INDEX(PlaneradeMarknadsföring[],,1),0),MATCH(AvvikelserMarknadsföring[[#Headers],[Aug]],PlaneradeMarknadsföring[#Headers],0))-INDEX(FaktiskaMarknadsföring[],MATCH(INDEX(AvvikelserMarknadsföring[],ROW()-ROW(AvvikelserMarknadsföring[[#Headers],[Aug]]),1),INDEX(PlaneradeMarknadsföring[],,1),0),MATCH(AvvikelserMarknadsföring[[#Headers],[Aug]],FaktiskaMarknadsföring[#Headers],0))","v":{"v":200,"d":"200.00 kr"}},{"$f":"INDEX(PlaneradeMarknadsföring[],MATCH(INDEX(AvvikelserMarknadsföring[],ROW()-ROW(AvvikelserMarknadsföring[[#Headers],[Sep]]),1),INDEX(PlaneradeMarknadsföring[],,1),0),MATCH(AvvikelserMarknadsföring[[#Headers],[Sep]],PlaneradeMarknadsföring[#Headers],0))-INDEX(FaktiskaMarknadsföring[],MATCH(INDEX(AvvikelserMarknadsföring[],ROW()-ROW(AvvikelserMarknadsföring[[#Headers],[Sep]]),1),INDEX(PlaneradeMarknadsföring[],,1),0),MATCH(AvvikelserMarknadsföring[[#Headers],[Sep]],FaktiskaMarknadsföring[#Headers],0))","v":{"v":200,"d":"200.00 kr"}},{"$f":"INDEX(PlaneradeMarknadsföring[],MATCH(INDEX(AvvikelserMarknadsföring[],ROW()-ROW(AvvikelserMarknadsföring[[#Headers],[Okt]]),1),INDEX(PlaneradeMarknadsföring[],,1),0),MATCH(AvvikelserMarknadsföring[[#Headers],[Okt]],PlaneradeMarknadsföring[#Headers],0))-INDEX(FaktiskaMarknadsföring[],MATCH(INDEX(AvvikelserMarknadsföring[],ROW()-ROW(AvvikelserMarknadsföring[[#Headers],[Okt]]),1),INDEX(PlaneradeMarknadsföring[],,1),0),MATCH(AvvikelserMarknadsföring[[#Headers],[Okt]],FaktiskaMarknadsföring[#Headers],0))","v":{"v":200,"d":"200.00 kr"}},{"$f":"INDEX(PlaneradeMarknadsföring[],MATCH(INDEX(AvvikelserMarknadsföring[],ROW()-ROW(AvvikelserMarknadsföring[[#Headers],[Nov]]),1),INDEX(PlaneradeMarknadsföring[],,1),0),MATCH(AvvikelserMarknadsföring[[#Headers],[Nov]],PlaneradeMarknadsföring[#Headers],0))-INDEX(FaktiskaMarknadsföring[],MATCH(INDEX(AvvikelserMarknadsföring[],ROW()-ROW(AvvikelserMarknadsföring[[#Headers],[Nov]]),1),INDEX(PlaneradeMarknadsföring[],,1),0),MATCH(AvvikelserMarknadsföring[[#Headers],[Nov]],FaktiskaMarknadsföring[#Headers],0))","v":{"v":200,"d":"200.00 kr"}},{"$f":"INDEX(PlaneradeMarknadsföring[],MATCH(INDEX(AvvikelserMarknadsföring[],ROW()-ROW(AvvikelserMarknadsföring[[#Headers],[Dec]]),1),INDEX(PlaneradeMarknadsföring[],,1),0),MATCH(AvvikelserMarknadsföring[[#Headers],[Dec]],PlaneradeMarknadsföring[#Headers],0))-INDEX(FaktiskaMarknadsföring[],MATCH(INDEX(AvvikelserMarknadsföring[],ROW()-ROW(AvvikelserMarknadsföring[[#Headers],[Dec]]),1),INDEX(PlaneradeMarknadsföring[],,1),0),MATCH(AvvikelserMarknadsföring[[#Headers],[Dec]],FaktiskaMarknadsföring[#Headers],0))","v":{"v":200,"d":"200.00 kr"}},{"$f":"SUM(AvvikelserMarknadsföring[[#This Row],[Jan]:[Dec]])","v":{"v":1321,"d":"1,321.00 kr"}}]
[null,"Delsumma",{"$f":"SUBTOTAL(109,AvvikelserMarknadsföring[Jan])","v":{"v":555,"d":"555.00 kr"}},{"$f":"SUBTOTAL(109,AvvikelserMarknadsföring[Feb])","v":{"v":-456,"d":"-456.00 kr"}},{"$f":"SUBTOTAL(109,AvvikelserMarknadsföring[Mar])","v":{"v":-23,"d":"-23.00 kr"}},{"$f":"SUBTOTAL(109,AvvikelserMarknadsföring[Apr])","v":{"v":-123,"d":"-123.00 kr"}},{"$f":"SUBTOTAL(109,AvvikelserMarknadsföring[Maj])","v":{"v":113,"d":"113.00 kr"}},{"$f":"SUBTOTAL(109,AvvikelserMarknadsföring[Jun])","v":{"v":-825,"d":"-825.00 kr"}},{"$f":"SUBTOTAL(109,AvvikelserMarknadsföring[Jul])","v":{"v":8100,"d":"8,100.00 kr"}},{"$f":"SUBTOTAL(109,AvvikelserMarknadsföring[Aug])","v":{"v":6100,"d":"6,100.00 kr"}},{"$f":"SUBTOTAL(109,AvvikelserMarknadsföring[Sep])","v":{"v":3100,"d":"3,100.00 kr"}},{"$f":"SUBTOTAL(109,AvvikelserMarknadsföring[Okt])","v":{"v":8100,"d":"8,100.00 kr"}},{"$f":"SUBTOTAL(109,AvvikelserMarknadsföring[Nov])","v":{"v":3100,"d":"3,100.00 kr"}},{"$f":"SUBTOTAL(109,AvvikelserMarknadsföring[Dec])","v":{"v":6900,"d":"6,900.00 kr"}},{"$f":"SUBTOTAL(109,AvvikelserMarknadsföring[ÅR])","v":{"v":34641,"d":"34,641.00 kr"}}]
[]
[null,"Utbildning/resor","Jan","Feb","Mar","Apr","Maj","Jun","Jul","Aug","Sep","Okt","Nov","Dec","ÅR"]
[null,"Utbildning, kurser",{"$f":"INDEX(PlaneradeUtbildningOchResor[],MATCH(INDEX(AvvikelserUtbildningOchResor[],ROW()-ROW(AvvikelserUtbildningOchResor[[#Headers],[Jan]]),1),INDEX(PlaneradeUtbildningOchResor[],,1),0),MATCH(AvvikelserUtbildningOchResor[[#Headers],[Jan]],PlaneradeUtbildningOchResor[#Headers],0))-INDEX(FaktiskaUtbildningOchResor[],MATCH(INDEX(AvvikelserUtbildningOchResor[],ROW()-ROW(AvvikelserUtbildningOchResor[[#Headers],[Jan]]),1),INDEX(PlaneradeUtbildningOchResor[],,1),0),MATCH(AvvikelserUtbildningOchResor[[#Headers],[Jan]],FaktiskaUtbildningOchResor[#Headers],0))","v":{"v":400,"d":"400.00 kr"}},{"$f":"INDEX(PlaneradeUtbildningOchResor[],MATCH(INDEX(AvvikelserUtbildningOchResor[],ROW()-ROW(AvvikelserUtbildningOchResor[[#Headers],[Feb]]),1),INDEX(PlaneradeUtbildningOchResor[],,1),0),MATCH(AvvikelserUtbildningOchResor[[#Headers],[Feb]],PlaneradeUtbildningOchResor[#Headers],0))-INDEX(FaktiskaUtbildningOchResor[],MATCH(INDEX(AvvikelserUtbildningOchResor[],ROW()-ROW(AvvikelserUtbildningOchResor[[#Headers],[Feb]]),1),INDEX(PlaneradeUtbildningOchResor[],,1),0),MATCH(AvvikelserUtbildningOchResor[[#Headers],[Feb]],FaktiskaUtbildningOchResor[#Headers],0))","v":{"v":-400,"d":"-400.00 kr"}},{"$f":"INDEX(PlaneradeUtbildningOchResor[],MATCH(INDEX(AvvikelserUtbildningOchResor[],ROW()-ROW(AvvikelserUtbildningOchResor[[#Headers],[Mar]]),1),INDEX(PlaneradeUtbildningOchResor[],,1),0),MATCH(AvvikelserUtbildningOchResor[[#Headers],[Mar]],PlaneradeUtbildningOchResor[#Headers],0))-INDEX(FaktiskaUtbildningOchResor[],MATCH(INDEX(AvvikelserUtbildningOchResor[],ROW()-ROW(AvvikelserUtbildningOchResor[[#Headers],[Mar]]),1),INDEX(PlaneradeUtbildningOchResor[],,1),0),MATCH(AvvikelserUtbildningOchResor[[#Headers],[Mar]],FaktiskaUtbildningOchResor[#Headers],0))","v":{"v":600,"d":"600.00 kr"}},{"$f":"INDEX(PlaneradeUtbildningOchResor[],MATCH(INDEX(AvvikelserUtbildningOchResor[],ROW()-ROW(AvvikelserUtbildningOchResor[[#Headers],[Apr]]),1),INDEX(PlaneradeUtbildningOchResor[],,1),0),MATCH(AvvikelserUtbildningOchResor[[#Headers],[Apr]],PlaneradeUtbildningOchResor[#Headers],0))-INDEX(FaktiskaUtbildningOchResor[],MATCH(INDEX(AvvikelserUtbildningOchResor[],ROW()-ROW(AvvikelserUtbildningOchResor[[#Headers],[Apr]]),1),INDEX(PlaneradeUtbildningOchResor[],,1),0),MATCH(AvvikelserUtbildningOchResor[[#Headers],[Apr]],FaktiskaUtbildningOchResor[#Headers],0))","v":{"v":400,"d":"400.00 kr"}},{"$f":"INDEX(PlaneradeUtbildningOchResor[],MATCH(INDEX(AvvikelserUtbildningOchResor[],ROW()-ROW(AvvikelserUtbildningOchResor[[#Headers],[Maj]]),1),INDEX(PlaneradeUtbildningOchResor[],,1),0),MATCH(AvvikelserUtbildningOchResor[[#Headers],[Maj]],PlaneradeUtbildningOchResor[#Headers],0))-INDEX(FaktiskaUtbildningOchResor[],MATCH(INDEX(AvvikelserUtbildningOchResor[],ROW()-ROW(AvvikelserUtbildningOchResor[[#Headers],[Maj]]),1),INDEX(PlaneradeUtbildningOchResor[],,1),0),MATCH(AvvikelserUtbildningOchResor[[#Headers],[Maj]],FaktiskaUtbildningOchResor[#Headers],0))","v":{"v":800,"d":"800.00 kr"}},{"$f":"INDEX(PlaneradeUtbildningOchResor[],MATCH(INDEX(AvvikelserUtbildningOchResor[],ROW()-ROW(AvvikelserUtbildningOchResor[[#Headers],[Jun]]),1),INDEX(PlaneradeUtbildningOchResor[],,1),0),MATCH(AvvikelserUtbildningOchResor[[#Headers],[Jun]],PlaneradeUtbildningOchResor[#Headers],0))-INDEX(FaktiskaUtbildningOchResor[],MATCH(INDEX(AvvikelserUtbildningOchResor[],ROW()-ROW(AvvikelserUtbildningOchResor[[#Headers],[Jun]]),1),INDEX(PlaneradeUtbildningOchResor[],,1),0),MATCH(AvvikelserUtbildningOchResor[[#Headers],[Jun]],FaktiskaUtbildningOchResor[#Headers],0))","v":{"v":-800,"d":"-800.00 kr"}},{"$f":"INDEX(PlaneradeUtbildningOchResor[],MATCH(INDEX(AvvikelserUtbildningOchResor[],ROW()-ROW(AvvikelserUtbildningOchResor[[#Headers],[Jul]]),1),INDEX(PlaneradeUtbildningOchResor[],,1),0),MATCH(AvvikelserUtbildningOchResor[[#Headers],[Jul]],PlaneradeUtbildningOchResor[#Headers],0))-INDEX(FaktiskaUtbildningOchResor[],MATCH(INDEX(AvvikelserUtbildningOchResor[],ROW()-ROW(AvvikelserUtbildningOchResor[[#Headers],[Jul]]),1),INDEX(PlaneradeUtbildningOchResor[],,1),0),MATCH(AvvikelserUtbildningOchResor[[#Headers],[Jul]],FaktiskaUtbildningOchResor[#Headers],0))","v":{"v":2000,"d":"2,000.00 kr"}},{"$f":"INDEX(PlaneradeUtbildningOchResor[],MATCH(INDEX(AvvikelserUtbildningOchResor[],ROW()-ROW(AvvikelserUtbildningOchResor[[#Headers],[Aug]]),1),INDEX(PlaneradeUtbildningOchResor[],,1),0),MATCH(AvvikelserUtbildningOchResor[[#Headers],[Aug]],PlaneradeUtbildningOchResor[#Headers],0))-INDEX(FaktiskaUtbildningOchResor[],MATCH(INDEX(AvvikelserUtbildningOchResor[],ROW()-ROW(AvvikelserUtbildningOchResor[[#Headers],[Aug]]),1),INDEX(PlaneradeUtbildningOchResor[],,1),0),MATCH(AvvikelserUtbildningOchResor[[#Headers],[Aug]],FaktiskaUtbildningOchResor[#Headers],0))","v":{"v":2000,"d":"2,000.00 kr"}},{"$f":"INDEX(PlaneradeUtbildningOchResor[],MATCH(INDEX(AvvikelserUtbildningOchResor[],ROW()-ROW(AvvikelserUtbildningOchResor[[#Headers],[Sep]]),1),INDEX(PlaneradeUtbildningOchResor[],,1),0),MATCH(AvvikelserUtbildningOchResor[[#Headers],[Sep]],PlaneradeUtbildningOchResor[#Headers],0))-INDEX(FaktiskaUtbildningOchResor[],MATCH(INDEX(AvvikelserUtbildningOchResor[],ROW()-ROW(AvvikelserUtbildningOchResor[[#Headers],[Sep]]),1),INDEX(PlaneradeUtbildningOchResor[],,1),0),MATCH(AvvikelserUtbildningOchResor[[#Headers],[Sep]],FaktiskaUtbildningOchResor[#Headers],0))","v":{"v":2000,"d":"2,000.00 kr"}},{"$f":"INDEX(PlaneradeUtbildningOchResor[],MATCH(INDEX(AvvikelserUtbildningOchResor[],ROW()-ROW(AvvikelserUtbildningOchResor[[#Headers],[Okt]]),1),INDEX(PlaneradeUtbildningOchResor[],,1),0),MATCH(AvvikelserUtbildningOchResor[[#Headers],[Okt]],PlaneradeUtbildningOchResor[#Headers],0))-INDEX(FaktiskaUtbildningOchResor[],MATCH(INDEX(AvvikelserUtbildningOchResor[],ROW()-ROW(AvvikelserUtbildningOchResor[[#Headers],[Okt]]),1),INDEX(PlaneradeUtbildningOchResor[],,1),0),MATCH(AvvikelserUtbildningOchResor[[#Headers],[Okt]],FaktiskaUtbildningOchResor[#Headers],0))","v":{"v":2000,"d":"2,000.00 kr"}},{"$f":"INDEX(PlaneradeUtbildningOchResor[],MATCH(INDEX(AvvikelserUtbildningOchResor[],ROW()-ROW(AvvikelserUtbildningOchResor[[#Headers],[Nov]]),1),INDEX(PlaneradeUtbildningOchResor[],,1),0),MATCH(AvvikelserUtbildningOchResor[[#Headers],[Nov]],PlaneradeUtbildningOchResor[#Headers],0))-INDEX(FaktiskaUtbildningOchResor[],MATCH(INDEX(AvvikelserUtbildningOchResor[],ROW()-ROW(AvvikelserUtbildningOchResor[[#Headers],[Nov]]),1),INDEX(PlaneradeUtbildningOchResor[],,1),0),MATCH(AvvikelserUtbildningOchResor[[#Headers],[Nov]],FaktiskaUtbildningOchResor[#Headers],0))","v":{"v":2000,"d":"2,000.00 kr"}},{"$f":"INDEX(PlaneradeUtbildningOchResor[],MATCH(INDEX(AvvikelserUtbildningOchResor[],ROW()-ROW(AvvikelserUtbildningOchResor[[#Headers],[Dec]]),1),INDEX(PlaneradeUtbildningOchResor[],,1),0),MATCH(AvvikelserUtbildningOchResor[[#Headers],[Dec]],PlaneradeUtbildningOchResor[#Headers],0))-INDEX(FaktiskaUtbildningOchResor[],MATCH(INDEX(AvvikelserUtbildningOchResor[],ROW()-ROW(AvvikelserUtbildningOchResor[[#Headers],[Dec]]),1),INDEX(PlaneradeUtbildningOchResor[],,1),0),MATCH(AvvikelserUtbildningOchResor[[#Headers],[Dec]],FaktiskaUtbildningOchResor[#Headers],0))","v":{"v":2000,"d":"2,000.00 kr"}},{"$f":"SUM(AvvikelserUtbildningOchResor[[#This Row],[Jan]:[Dec]])","v":{"v":13000,"d":"13,000.00 kr"}}]
[null,"Utbildningsrelaterade resekostnader",{"$f":"INDEX(PlaneradeUtbildningOchResor[],MATCH(INDEX(AvvikelserUtbildningOchResor[],ROW()-ROW(AvvikelserUtbildningOchResor[[#Headers],[Jan]]),1),INDEX(PlaneradeUtbildningOchResor[],,1),0),MATCH(AvvikelserUtbildningOchResor[[#Headers],[Jan]],PlaneradeUtbildningOchResor[#Headers],0))-INDEX(FaktiskaUtbildningOchResor[],MATCH(INDEX(AvvikelserUtbildningOchResor[],ROW()-ROW(AvvikelserUtbildningOchResor[[#Headers],[Jan]]),1),INDEX(PlaneradeUtbildningOchResor[],,1),0),MATCH(AvvikelserUtbildningOchResor[[#Headers],[Jan]],FaktiskaUtbildningOchResor[#Headers],0))","v":{"v":800,"d":"800.00 kr"}},{"$f":"INDEX(PlaneradeUtbildningOchResor[],MATCH(INDEX(AvvikelserUtbildningOchResor[],ROW()-ROW(AvvikelserUtbildningOchResor[[#Headers],[Feb]]),1),INDEX(PlaneradeUtbildningOchResor[],,1),0),MATCH(AvvikelserUtbildningOchResor[[#Headers],[Feb]],PlaneradeUtbildningOchResor[#Headers],0))-INDEX(FaktiskaUtbildningOchResor[],MATCH(INDEX(AvvikelserUtbildningOchResor[],ROW()-ROW(AvvikelserUtbildningOchResor[[#Headers],[Feb]]),1),INDEX(PlaneradeUtbildningOchResor[],,1),0),MATCH(AvvikelserUtbildningOchResor[[#Headers],[Feb]],FaktiskaUtbildningOchResor[#Headers],0))","v":{"v":-200,"d":"-200.00 kr"}},{"$f":"INDEX(PlaneradeUtbildningOchResor[],MATCH(INDEX(AvvikelserUtbildningOchResor[],ROW()-ROW(AvvikelserUtbildningOchResor[[#Headers],[Mar]]),1),INDEX(PlaneradeUtbildningOchResor[],,1),0),MATCH(AvvikelserUtbildningOchResor[[#Headers],[Mar]],PlaneradeUtbildningOchResor[#Headers],0))-INDEX(FaktiskaUtbildningOchResor[],MATCH(INDEX(AvvikelserUtbildningOchResor[],ROW()-ROW(AvvikelserUtbildningOchResor[[#Headers],[Mar]]),1),INDEX(PlaneradeUtbildningOchResor[],,1),0),MATCH(AvvikelserUtbildningOchResor[[#Headers],[Mar]],FaktiskaUtbildningOchResor[#Headers],0))","v":{"v":600,"d":"600.00 kr"}},{"$f":"INDEX(PlaneradeUtbildningOchResor[],MATCH(INDEX(AvvikelserUtbildningOchResor[],ROW()-ROW(AvvikelserUtbildningOchResor[[#Headers],[Apr]]),1),INDEX(PlaneradeUtbildningOchResor[],,1),0),MATCH(AvvikelserUtbildningOchResor[[#Headers],[Apr]],PlaneradeUtbildningOchResor[#Headers],0))-INDEX(FaktiskaUtbildningOchResor[],MATCH(INDEX(AvvikelserUtbildningOchResor[],ROW()-ROW(AvvikelserUtbildningOchResor[[#Headers],[Apr]]),1),INDEX(PlaneradeUtbildningOchResor[],,1),0),MATCH(AvvikelserUtbildningOchResor[[#Headers],[Apr]],FaktiskaUtbildningOchResor[#Headers],0))","v":{"v":800,"d":"800.00 kr"}},{"$f":"INDEX(PlaneradeUtbildningOchResor[],MATCH(INDEX(AvvikelserUtbildningOchResor[],ROW()-ROW(AvvikelserUtbildningOchResor[[#Headers],[Maj]]),1),INDEX(PlaneradeUtbildningOchResor[],,1),0),MATCH(AvvikelserUtbildningOchResor[[#Headers],[Maj]],PlaneradeUtbildningOchResor[#Headers],0))-INDEX(FaktiskaUtbildningOchResor[],MATCH(INDEX(AvvikelserUtbildningOchResor[],ROW()-ROW(AvvikelserUtbildningOchResor[[#Headers],[Maj]]),1),INDEX(PlaneradeUtbildningOchResor[],,1),0),MATCH(AvvikelserUtbildningOchResor[[#Headers],[Maj]],FaktiskaUtbildningOchResor[#Headers],0))","v":{"v":1200,"d":"1,200.00 kr"}},{"$f":"INDEX(PlaneradeUtbildningOchResor[],MATCH(INDEX(AvvikelserUtbildningOchResor[],ROW()-ROW(AvvikelserUtbildningOchResor[[#Headers],[Jun]]),1),INDEX(PlaneradeUtbildningOchResor[],,1),0),MATCH(AvvikelserUtbildningOchResor[[#Headers],[Jun]],PlaneradeUtbildningOchResor[#Headers],0))-INDEX(FaktiskaUtbildningOchResor[],MATCH(INDEX(AvvikelserUtbildningOchResor[],ROW()-ROW(AvvikelserUtbildningOchResor[[#Headers],[Jun]]),1),INDEX(PlaneradeUtbildningOchResor[],,1),0),MATCH(AvvikelserUtbildningOchResor[[#Headers],[Jun]],FaktiskaUtbildningOchResor[#Headers],0))","v":{"v":-1500,"d":"-1,500.00 kr"}},{"$f":"INDEX(PlaneradeUtbildningOchResor[],MATCH(INDEX(AvvikelserUtbildningOchResor[],ROW()-ROW(AvvikelserUtbildningOchResor[[#Headers],[Jul]]),1),INDEX(PlaneradeUtbildningOchResor[],,1),0),MATCH(AvvikelserUtbildningOchResor[[#Headers],[Jul]],PlaneradeUtbildningOchResor[#Headers],0))-INDEX(FaktiskaUtbildningOchResor[],MATCH(INDEX(AvvikelserUtbildningOchResor[],ROW()-ROW(AvvikelserUtbildningOchResor[[#Headers],[Jul]]),1),INDEX(PlaneradeUtbildningOchResor[],,1),0),MATCH(AvvikelserUtbildningOchResor[[#Headers],[Jul]],FaktiskaUtbildningOchResor[#Headers],0))","v":{"v":2000,"d":"2,000.00 kr"}},{"$f":"INDEX(PlaneradeUtbildningOchResor[],MATCH(INDEX(AvvikelserUtbildningOchResor[],ROW()-ROW(AvvikelserUtbildningOchResor[[#Headers],[Aug]]),1),INDEX(PlaneradeUtbildningOchResor[],,1),0),MATCH(AvvikelserUtbildningOchResor[[#Headers],[Aug]],PlaneradeUtbildningOchResor[#Headers],0))-INDEX(FaktiskaUtbildningOchResor[],MATCH(INDEX(AvvikelserUtbildningOchResor[],ROW()-ROW(AvvikelserUtbildningOchResor[[#Headers],[Aug]]),1),INDEX(PlaneradeUtbildningOchResor[],,1),0),MATCH(AvvikelserUtbildningOchResor[[#Headers],[Aug]],FaktiskaUtbildningOchResor[#Headers],0))","v":{"v":2000,"d":"2,000.00 kr"}},{"$f":"INDEX(PlaneradeUtbildningOchResor[],MATCH(INDEX(AvvikelserUtbildningOchResor[],ROW()-ROW(AvvikelserUtbildningOchResor[[#Headers],[Sep]]),1),INDEX(PlaneradeUtbildningOchResor[],,1),0),MATCH(AvvikelserUtbildningOchResor[[#Headers],[Sep]],PlaneradeUtbildningOchResor[#Headers],0))-INDEX(FaktiskaUtbildningOchResor[],MATCH(INDEX(AvvikelserUtbildningOchResor[],ROW()-ROW(AvvikelserUtbildningOchResor[[#Headers],[Sep]]),1),INDEX(PlaneradeUtbildningOchResor[],,1),0),MATCH(AvvikelserUtbildningOchResor[[#Headers],[Sep]],FaktiskaUtbildningOchResor[#Headers],0))","v":{"v":2000,"d":"2,000.00 kr"}},{"$f":"INDEX(PlaneradeUtbildningOchResor[],MATCH(INDEX(AvvikelserUtbildningOchResor[],ROW()-ROW(AvvikelserUtbildningOchResor[[#Headers],[Okt]]),1),INDEX(PlaneradeUtbildningOchResor[],,1),0),MATCH(AvvikelserUtbildningOchResor[[#Headers],[Okt]],PlaneradeUtbildningOchResor[#Headers],0))-INDEX(FaktiskaUtbildningOchResor[],MATCH(INDEX(AvvikelserUtbildningOchResor[],ROW()-ROW(AvvikelserUtbildningOchResor[[#Headers],[Okt]]),1),INDEX(PlaneradeUtbildningOchResor[],,1),0),MATCH(AvvikelserUtbildningOchResor[[#Headers],[Okt]],FaktiskaUtbildningOchResor[#Headers],0))","v":{"v":2000,"d":"2,000.00 kr"}},{"$f":"INDEX(PlaneradeUtbildningOchResor[],MATCH(INDEX(AvvikelserUtbildningOchResor[],ROW()-ROW(AvvikelserUtbildningOchResor[[#Headers],[Nov]]),1),INDEX(PlaneradeUtbildningOchResor[],,1),0),MATCH(AvvikelserUtbildningOchResor[[#Headers],[Nov]],PlaneradeUtbildningOchResor[#Headers],0))-INDEX(FaktiskaUtbildningOchResor[],MATCH(INDEX(AvvikelserUtbildningOchResor[],ROW()-ROW(AvvikelserUtbildningOchResor[[#Headers],[Nov]]),1),INDEX(PlaneradeUtbildningOchResor[],,1),0),MATCH(AvvikelserUtbildningOchResor[[#Headers],[Nov]],FaktiskaUtbildningOchResor[#Headers],0))","v":{"v":2000,"d":"2,000.00 kr"}},{"$f":"INDEX(PlaneradeUtbildningOchResor[],MATCH(INDEX(AvvikelserUtbildningOchResor[],ROW()-ROW(AvvikelserUtbildningOchResor[[#Headers],[Dec]]),1),INDEX(PlaneradeUtbildningOchResor[],,1),0),MATCH(AvvikelserUtbildningOchResor[[#Headers],[Dec]],PlaneradeUtbildningOchResor[#Headers],0))-INDEX(FaktiskaUtbildningOchResor[],MATCH(INDEX(AvvikelserUtbildningOchResor[],ROW()-ROW(AvvikelserUtbildningOchResor[[#Headers],[Dec]]),1),INDEX(PlaneradeUtbildningOchResor[],,1),0),MATCH(AvvikelserUtbildningOchResor[[#Headers],[Dec]],FaktiskaUtbildningOchResor[#Headers],0))","v":{"v":2000,"d":"2,000.00 kr"}},{"$f":"SUM(AvvikelserUtbildningOchResor[[#This Row],[Jan]:[Dec]])","v":{"v":13700,"d":"13,700.00 kr"}}]
[null,"Delsumma",{"$f":"SUBTOTAL(109,AvvikelserUtbildningOchResor[Jan])","v":{"v":1200,"d":"1,200.00 kr"}},{"$f":"SUBTOTAL(109,AvvikelserUtbildningOchResor[Feb])","v":{"v":-600,"d":"-600.00 kr"}},{"$f":"SUBTOTAL(109,AvvikelserUtbildningOchResor[Mar])","v":{"v":1200,"d":"1,200.00 kr"}},{"$f":"SUBTOTAL(109,AvvikelserUtbildningOchResor[Apr])","v":{"v":1200,"d":"1,200.00 kr"}},{"$f":"SUBTOTAL(109,AvvikelserUtbildningOchResor[Maj])","v":{"v":2000,"d":"2,000.00 kr"}},{"$f":"SUBTOTAL(109,AvvikelserUtbildningOchResor[Jun])","v":{"v":-2300,"d":"-2,300.00 kr"}},{"$f":"SUBTOTAL(109,AvvikelserUtbildningOchResor[Jul])","v":{"v":4000,"d":"4,000.00 kr"}},{"$f":"SUBTOTAL(109,AvvikelserUtbildningOchResor[Aug])","v":{"v":4000,"d":"4,000.00 kr"}},{"$f":"SUBTOTAL(109,AvvikelserUtbildningOchResor[Sep])","v":{"v":4000,"d":"4,000.00 kr"}},{"$f":"SUBTOTAL(109,AvvikelserUtbildningOchResor[Okt])","v":{"v":4000,"d":"4,000.00 kr"}},{"$f":"SUBTOTAL(109,AvvikelserUtbildningOchResor[Nov])","v":{"v":4000,"d":"4,000.00 kr"}},{"$f":"SUBTOTAL(109,AvvikelserUtbildningOchResor[Dec])","v":{"v":4000,"d":"4,000.00 kr"}},{"$f":"SUBTOTAL(109,AvvikelserUtbildningOchResor[ÅR])","v":{"v":26700,"d":"26,700.00 kr"}}]
[]
[null,"TOTALSUMMOR","Jan","Feb","Mar","Apr","Maj","Jun","Jul","Aug","Sep","Okt","Nov","Dec","År"]
[null,"Faktiska månadsutgifter",{"$f":"AvvikelserUtbildningOchResor[[#Totals],[Jan]]+AvvikelserMarknadsföring[[#Totals],[Jan]]+AvvikelserKontor[[#Totals],[Jan]]+AvvikelserAnställda[[#Totals],[Jan]]","v":{"v":1738,"d":"1,738.00 kr"}},{"$f":"AvvikelserUtbildningOchResor[[#Totals],[Feb]]+AvvikelserMarknadsföring[[#Totals],[Feb]]+AvvikelserKontor[[#Totals],[Feb]]+AvvikelserAnställda[[#Totals],[Feb]]","v":{"v":-984,"d":"-984.00 kr"}},{"$f":"AvvikelserUtbildningOchResor[[#Totals],[Mar]]+AvvikelserMarknadsföring[[#Totals],[Mar]]+AvvikelserKontor[[#Totals],[Mar]]+AvvikelserAnställda[[#Totals],[Mar]]","v":{"v":1255,"d":"1,255.00 kr"}},{"$f":"AvvikelserUtbildningOchResor[[#Totals],[Apr]]+AvvikelserMarknadsföring[[#Totals],[Apr]]+AvvikelserKontor[[#Totals],[Apr]]+AvvikelserAnställda[[#Totals],[Apr]]","v":{"v":301,"d":"301.00 kr"}},{"$f":"AvvikelserUtbildningOchResor[[#Totals],[Maj]]+AvvikelserMarknadsföring[[#Totals],[Maj]]+AvvikelserKontor[[#Totals],[Maj]]+AvvikelserAnställda[[#Totals],[Maj]]","v":{"v":1440,"d":"1,440.00 kr"}},{"$f":"AvvikelserUtbildningOchResor[[#Totals],[Jun]]+AvvikelserMarknadsföring[[#Totals],[Jun]]+AvvikelserKontor[[#Totals],[Jun]]+AvvikelserAnställda[[#Totals],[Jun]]","v":{"v":-3744,"d":"-3,744.00 kr"}},{"$f":"AvvikelserUtbildningOchResor[[#Totals],[Jul]]+AvvikelserMarknadsföring[[#Totals],[Jul]]+AvvikelserKontor[[#Totals],[Jul]]+AvvikelserAnställda[[#Totals],[Jul]]","v":{"v":134695,"d":"134,695.00 kr"}},{"$f":"AvvikelserUtbildningOchResor[[#Totals],[Aug]]+AvvikelserMarknadsföring[[#Totals],[Aug]]+AvvikelserKontor[[#Totals],[Aug]]+AvvikelserAnställda[[#Totals],[Aug]]","v":{"v":138918,"d":"138,918.00 kr"}},{"$f":"AvvikelserUtbildningOchResor[[#Totals],[Sep]]+AvvikelserMarknadsföring[[#Totals],[Sep]]+AvvikelserKontor[[#Totals],[Sep]]+AvvikelserAnställda[[#Totals],[Sep]]","v":{"v":135918,"d":"135,918.00 kr"}},{"$f":"AvvikelserUtbildningOchResor[[#Totals],[Okt]]+AvvikelserMarknadsföring[[#Totals],[Okt]]+AvvikelserKontor[[#Totals],[Okt]]+AvvikelserAnställda[[#Totals],[Okt]]","v":{"v":140918,"d":"140,918.00 kr"}},{"$f":"AvvikelserUtbildningOchResor[[#Totals],[Nov]]+AvvikelserMarknadsföring[[#Totals],[Nov]]+AvvikelserKontor[[#Totals],[Nov]]+AvvikelserAnställda[[#Totals],[Nov]]","v":{"v":136218,"d":"136,218.00 kr"}},{"$f":"AvvikelserUtbildningOchResor[[#Totals],[Dec]]+AvvikelserMarknadsföring[[#Totals],[Dec]]+AvvikelserKontor[[#Totals],[Dec]]+AvvikelserAnställda[[#Totals],[Dec]]","v":{"v":140018,"d":"140,018.00 kr"}},{"$f":"AvvikelserUtbildningOchResor[[#Totals],[ÅR]]+AvvikelserMarknadsföring[[#Totals],[ÅR]]+AvvikelserKontor[[#Totals],[ÅR]]+AvvikelserAnställda[[#Totals],[ÅR]]","v":{"v":826691,"d":"826,691.00 kr"}}]
[null,"Summa faktiska utgifter",{"$f":"SUM($C$36:C36)","v":{"v":1738,"d":"1,738.00 kr"}},{"$f":"SUM($C$36:D36)","v":{"v":754,"d":"754.00 kr"}},{"$f":"SUM($C$36:E36)","v":{"v":2009,"d":"2,009.00 kr"}},{"$f":"SUM($C$36:F36)","v":{"v":2310,"d":"2,310.00 kr"}},{"$f":"SUM($C$36:G36)","v":{"v":3750,"d":"3,750.00 kr"}},{"$f":"SUM($C$36:H36)","v":{"v":6,"d":"6.00 kr"}},{"$f":"SUM($C$36:I36)","v":{"v":134701,"d":"134,701.00 kr"}},{"$f":"SUM($C$36:J36)","v":{"v":273619,"d":"273,619.00 kr"}},{"$f":"SUM($C$36:K36)","v":{"v":409537,"d":"409,537.00 kr"}},{"$f":"SUM($C$36:L36)","v":{"v":550455,"d":"550,455.00 kr"}},{"$f":"SUM($C$36:M36)","v":{"v":686673,"d":"686,673.00 kr"}},{"$f":"SUM($C$36:N36)","v":{"v":826691,"d":"826,691.00 kr"}}]

{"sheet":"UTGIFTSANALYS","index":4,"n_rows":10,"n_cols":16,"rows_kept":10,"merged":[[2,4,2,6],[11,1,11,5]]}
[{"$nulls":6}," ",{"$nulls":8}," "]
[null,{"$f":"'BERÄKNADE UTGIFTER'!B2:D3","v":"Företagsnamn"}]
[{"$nulls":4},{"$f":"worksheet_title","v":"Detaljerade utgiftsberäkningar"}]
[]
[null,"Utgiftskategori","Planerade utgifter","Faktiska utgifter","Utgiftsavvikelser","Avvikelseprocent"]
[null,"Kostnader för anställda",{"$f":"PlaneradeAnställda[[#Totals],[ÅR]]","v":{"v":1355090,"d":"1,355,090.00 kr"}},{"$f":"FaktiskaAnställda[[#Totals],[ÅR]]","v":{"v":659130,"d":"659,130.00 kr"}},{"$f":"C6-D6","v":{"v":695960,"d":"695,960.00 kr"}},{"$f":"E6/C6","v":{"v":0.5135895032802249,"d":"51%"}}]
[null,{"$f":"'BERÄKNADE UTGIFTER'!B10","v":"Kontorskostnader"},{"$f":"KontorsPlan[[#Totals],[ÅR]]","v":{"v":138740,"d":"138,740.00 kr"}},{"$f":"FaktiskaKontor[[#Totals],[ÅR]]","v":{"v":69350,"d":"69,350.00 kr"}},{"$f":"C7-D7","v":{"v":69390,"d":"69,390.00 kr"}},{"$f":"E7/C7","v":{"v":0.5001441545336601,"d":"50%"}}]
[null,{"$f":"'BERÄKNADE UTGIFTER'!B21","v":"Marknadsföringskostnader"},{"$f":"PlaneradeMarknadsföring[[#Totals],[ÅR]]","v":{"v":67800,"d":"67,800.00 kr"}},{"$f":"FaktiskaMarknadsföring[[#Totals],[ÅR]]","v":{"v":33159,"d":"33,159.00 kr"}},{"$f":"C8-D8","v":{"v":34641,"d":"34,641.00 kr"}},{"$f":"E8/C8","v":{"v":0.510929203539823,"d":"51%"}}]
[null,{"$f":"'BERÄKNADE UTGIFTER'!B30","v":"Utbildning/resor"},{"$f":"PlaneradeUtbildningOchResor[[#Totals],[ÅR]]","v":{"v":48000,"d":"48,000.00 kr"}},{"$f":"FaktiskaUtbildningOchResor[[#Totals],[ÅR]]","v":{"v":21300,"d":"21,300.00 kr"}},{"$f":"C9-D9","v":{"v":26700,"d":"26,700.00 kr"}},{"$f":"E9/C9","v":{"v":0.55625,"d":"56%"}}]
[null,{"$f":"'BERÄKNADE UTGIFTER'!B35","v":"TOTALSUMMOR"},{"$f":"'BERÄKNADE UTGIFTER'!O36","v":{"v":1609630,"d":"1,609,630.00 kr"}},{"$f":"'FAKTISKA UTGIFTER'!O36","v":{"v":782939,"d":"782,939.00 kr"}},{"$f":"C10-D10","v":{"v":826691,"d":"826,691.00 kr"}},{"$f":"E10/C10","v":{"v":0.5135907009685455,"d":"51%"}}]